Transaction Date,Local Authority Department,Beneficiary,Purpose of Expenditure,Amount (excluding VAT),Non Recoverable VAT,Merchant Category
 09-05-2022,Adults,Lodge Group Care UK Ltd,Home Care - Private Contractors Payment,500.86,0.00,COMMERCIAL SUPPLIER 
 04-05-2022,Adults,Matrix SCM Ltd,Agency Staff,501.12,0.00,COMMERCIAL SUPPLIER 
 06-05-2022,Adults,Home Support Services (Havering & Essex) Ltd,Home Care - Private Contractors Payment,501.51,0.00,COMMERCIAL SUPPLIER 
 09-05-2022,Adults,Lodge Group Care UK Ltd,Home Care - Private Contractors Payment,503.81,0.00,COMMERCIAL SUPPLIER 
 09-05-2022,Adults,Home Sweet Home Care Ltd,Home Care - Private Contractors Payment,503.81,0.00,COMMERCIAL SUPPLIER 
 09-05-2022,Adults,Home Sweet Home Care Ltd,Home Care - Private Contractors Payment,503.81,0.00,COMMERCIAL SUPPLIER 
 06-05-2022,Adults,Home Support Services (Havering & Essex) Ltd,Home Care - Private Contractors Payment,504.42,0.00,COMMERCIAL SUPPLIER 
 13-05-2022,Adults,Cera Care Operations Ltd,Home Care - Private Contractors Payment,504.79,0.00,COMMERCIAL SUPPLIER 
 04-05-2022,Adults,Matrix SCM Ltd,Agency Staff,505.75,0.00,COMMERCIAL SUPPLIER 
 18-05-2022,Adults,Matrix SCM Ltd,Agency Staff,505.75,0.00,COMMERCIAL SUPPLIER 
 25-05-2022,Adults,Matrix SCM Ltd,Agency Staff,505.75,0.00,COMMERCIAL SUPPLIER 
 06-05-2022,Adults,Care-Away Ltd T/A Care Support,Home Care - Private Contractors Payment,507.52,0.00,COMMERCIAL SUPPLIER 
 09-05-2022,Adults,Lodge Group Care UK Ltd,Home Care - Private Contractors Payment,509.71,0.00,COMMERCIAL SUPPLIER 
 09-05-2022,Adults,Lodge Group Care UK Ltd,Home Care - Private Contractors Payment,510.04,0.00,COMMERCIAL SUPPLIER 
 06-05-2022,Adults,Home Support Services (Havering & Essex) Ltd,Home Care - Private Contractors Payment,510.70,0.00,COMMERCIAL SUPPLIER 
 20-05-2022,Adults,Personal Information ? Redacted,Home Care - Private Contractors Payment,511.68,0.00,INDIVIDUALS 
 20-05-2022,Adults,Personal Information ? Redacted,Home Care - Private Contractors Payment,511.68,0.00,INDIVIDUALS 
 26-05-2022,Adults,Inna Care Ltd,Home Care - Private Contractors Payment,511.68,0.00,COMMERCIAL SUPPLIER 
 09-05-2022,Adults,Home Sweet Home Care Ltd,Home Care - Private Contractors Payment,512.00,0.00,COMMERCIAL SUPPLIER 
 23-05-2022,Adults,Tapestry_a.,Daycare - Private Contractors Payment,513.00,0.00,COMMERCIAL SUPPLIER 
 06-05-2022,Adults,Topaz Care and Support Co Ltd,Supported Other Accommodation - Private Contractors Payment,514.08,0.00,COMMERCIAL SUPPLIER 
 31-05-2022,Adults,Topaz Care and Support Co Ltd,Supported Other Accommodation - Private Contractors Payment,514.08,0.00,COMMERCIAL SUPPLIER 
 09-05-2022,Adults,Lodge Group Care UK Ltd,Home Care - Private Contractors Payment,514.96,0.00,COMMERCIAL SUPPLIER 
 06-05-2022,Adults,Emily Brown,Direct Payments Income,515.52,0.00,NON COMMERCIAL SUPPLIER 
 06-05-2022,Adults,Home Support Services (Havering & Essex) Ltd,Home Care - Private Contractors Payment,517.26,0.00,COMMERCIAL SUPPLIER 
 09-05-2022,Adults,Home Sweet Home Care Ltd,Home Care - Private Contractors Payment,517.58,0.00,COMMERCIAL SUPPLIER 
 03-05-2022,Adults,Quality Healthcare Solutions Ltd t/a Kare Plus Romford,Home Care - Private Contractors Payment,518.24,0.00,COMMERCIAL SUPPLIER 
 06-05-2022,Adults,Home Support Services (Havering & Essex) Ltd,Home Care - Private Contractors Payment,518.24,0.00,COMMERCIAL SUPPLIER 
 23-05-2022,Adults,The Camden Society,Daycare - Private Contractors Payment,520.00,0.00,NON COMMERCIAL SUPPLIER 
 04-05-2022,Adults,Matrix SCM Ltd,Agency Staff,520.45,0.00,COMMERCIAL SUPPLIER 
 18-05-2022,Adults,Matrix SCM Ltd,Agency Staff,520.45,0.00,COMMERCIAL SUPPLIER 
 25-05-2022,Adults,Matrix SCM Ltd,Agency Staff,520.45,0.00,COMMERCIAL SUPPLIER 
 06-05-2022,Adults,John Stanleys Care Agency Ltd,Home Care - Private Contractors Payment,520.54,0.00,COMMERCIAL SUPPLIER 
 03-05-2022,Adults,Quality Healthcare Solutions Ltd t/a Kare Plus Romford,Home Care - Private Contractors Payment,521.75,0.00,COMMERCIAL SUPPLIER 
 04-05-2022,Adults,Westminster Homecare Ltd_a,Home Care - Private Contractors Payment,522.18,0.00,COMMERCIAL SUPPLIER 
 13-05-2022,Adults,Anytime Care 2020_a,Home Care - Private Contractors Payment,523.21,0.00,COMMERCIAL SUPPLIER 
 06-05-2022,Adults,Home Support Services (Havering & Essex) Ltd,Home Care - Private Contractors Payment,523.27,0.00,COMMERCIAL SUPPLIER 
 11-05-2022,Adults,Matrix SCM Ltd,Agency Staff,523.52,0.00,COMMERCIAL SUPPLIER 
 09-05-2022,Adults,Lodge Group Care UK Ltd,Home Care - Private Contractors Payment,524.47,0.00,COMMERCIAL SUPPLIER 
 11-05-2022,Adults,Prior Care Ltd_a,Home Care - Private Contractors Payment,524.80,0.00,COMMERCIAL SUPPLIER 
 13-05-2022,Adults,Cera Care Operations Ltd,Home Care - Private Contractors Payment,524.80,0.00,COMMERCIAL SUPPLIER 
 06-05-2022,Adults,Home Support Services (Havering & Essex) Ltd,Home Care - Private Contractors Payment,525.13,0.00,COMMERCIAL SUPPLIER 
 09-05-2022,Adults,Lodge Group Care UK Ltd,Home Care - Private Contractors Payment,525.13,0.00,COMMERCIAL SUPPLIER 
 06-05-2022,Adults,John Stanleys Care Agency Ltd,Home Care - Private Contractors Payment,525.46,0.00,COMMERCIAL SUPPLIER 
 09-05-2022,Adults,Lodge Group Care UK Ltd,Home Care - Private Contractors Payment,525.78,0.00,COMMERCIAL SUPPLIER 
 03-05-2022,Adults,Quality Healthcare Solutions Ltd t/a Kare Plus Romford,Home Care - Private Contractors Payment,526.44,0.00,COMMERCIAL SUPPLIER 
 09-05-2022,Adults,Care-Away Ltd T/A Care Support,Home Care - Private Contractors Payment,527.73,0.00,COMMERCIAL SUPPLIER 
 09-05-2022,Adults,Home Sweet Home Care Ltd,Home Care - Private Contractors Payment,528.41,0.00,COMMERCIAL SUPPLIER 
 06-05-2022,Adults,Home Support Services (Havering & Essex) Ltd,Home Care - Private Contractors Payment,528.74,0.00,COMMERCIAL SUPPLIER 
 03-05-2022,Adults,Quality Healthcare Solutions Ltd t/a Kare Plus Romford,Home Care - Private Contractors Payment,529.39,0.00,COMMERCIAL SUPPLIER 
 09-05-2022,Adults,Home Sweet Home Care Ltd,Home Care - Private Contractors Payment,529.72,0.00,COMMERCIAL SUPPLIER 
 11-05-2022,Adults,Matrix SCM Ltd,Agency Staff,529.84,0.00,COMMERCIAL SUPPLIER 
 04-05-2022,Adults,Matrix SCM Ltd,Agency Staff,529.96,0.00,COMMERCIAL SUPPLIER 
 11-05-2022,Adults,Matrix SCM Ltd,Agency Staff,529.96,0.00,COMMERCIAL SUPPLIER 
 25-05-2022,Adults,Matrix SCM Ltd,Agency Staff,529.96,0.00,COMMERCIAL SUPPLIER 
 25-05-2022,Adults,Matrix SCM Ltd,Agency Staff,529.96,0.00,COMMERCIAL SUPPLIER 
 06-05-2022,Adults,Home Support Services (Havering & Essex) Ltd,Home Care - Private Contractors Payment,530.05,0.00,COMMERCIAL SUPPLIER 
 06-05-2022,Adults,Home Support Services (Havering & Essex) Ltd,Home Care - Private Contractors Payment,530.05,0.00,COMMERCIAL SUPPLIER 
 09-05-2022,Adults,Home Sweet Home Care Ltd,Home Care - Private Contractors Payment,531.03,0.00,COMMERCIAL SUPPLIER 
 11-05-2022,Adults,Prior Care Ltd_a,Home Care - Private Contractors Payment,531.03,0.00,COMMERCIAL SUPPLIER 
 24-05-2022,Adults,Outreach Support Services Ltd,Home Care - Private Contractors Payment,531.36,0.00,COMMERCIAL SUPPLIER 
 03-05-2022,Adults,Quality Healthcare Solutions Ltd t/a Kare Plus Romford,Home Care - Private Contractors Payment,532.34,0.00,COMMERCIAL SUPPLIER 
 20-05-2022,Adults,Morepower Ltd t/a Aqs Homecare,Home Care - Private Contractors Payment,532.34,0.00,COMMERCIAL SUPPLIER 
 27-05-2022,Adults,Care-Away Ltd T/A Care Support,Home Care - Private Contractors Payment,532.48,0.00,COMMERCIAL SUPPLIER 
 09-05-2022,Adults,Lodge Group Care UK Ltd,Home Care - Private Contractors Payment,532.67,0.00,COMMERCIAL SUPPLIER 
 06-05-2022,Adults,Home Support Services (Havering & Essex) Ltd,Home Care - Private Contractors Payment,533.00,0.00,COMMERCIAL SUPPLIER 
 09-05-2022,Adults,Lodge Group Care UK Ltd,Home Care - Private Contractors Payment,533.98,0.00,COMMERCIAL SUPPLIER 
 11-05-2022,Adults,Prior Care Ltd_a,Home Care - Private Contractors Payment,533.98,0.00,COMMERCIAL SUPPLIER 
 11-05-2022,Adults,Prior Care Ltd_a,Home Care - Private Contractors Payment,533.98,0.00,COMMERCIAL SUPPLIER 
 06-05-2022,Adults,Home Support Services (Havering & Essex) Ltd,Home Care - Private Contractors Payment,535.30,0.00,COMMERCIAL SUPPLIER 
 11-05-2022,Adults,Prior Care Ltd_a,Home Care - Private Contractors Payment,535.30,0.00,COMMERCIAL SUPPLIER 
 13-05-2022,Adults,Cera Care Operations Ltd,Home Care - Private Contractors Payment,535.62,0.00,COMMERCIAL SUPPLIER 
 31-05-2022,Adults,Ranc Care Homes Ltd - Romford Care Centre,Respite Care - Private Contractors Payment,535.71,0.00,COMMERCIAL SUPPLIER 
 09-05-2022,Adults,Home Sweet Home Care Ltd,Home Care - Private Contractors Payment,536.28,0.00,COMMERCIAL SUPPLIER 
 06-05-2022,Adults,Home Support Services (Havering & Essex) Ltd,Home Care - Private Contractors Payment,536.49,0.00,COMMERCIAL SUPPLIER 
 09-05-2022,Adults,Lodge Group Care UK Ltd,Home Care - Private Contractors Payment,537.59,0.00,COMMERCIAL SUPPLIER 
 09-05-2022,Adults,Lodge Group Care UK Ltd,Home Care - Private Contractors Payment,538.25,0.00,COMMERCIAL SUPPLIER 
 11-05-2022,Adults,Prior Care Ltd_a,Home Care - Private Contractors Payment,538.25,0.00,COMMERCIAL SUPPLIER 
 09-05-2022,Adults,Lodge Group Care UK Ltd,Home Care - Private Contractors Payment,538.90,0.00,COMMERCIAL SUPPLIER 
 13-05-2022,Adults,Anytime Care 2020_a,Home Care - Private Contractors Payment,538.90,0.00,COMMERCIAL SUPPLIER 
 09-05-2022,Adults,Lodge Group Care UK Ltd,Home Care - Private Contractors Payment,539.56,0.00,COMMERCIAL SUPPLIER 
 31-05-2022,Adults,One Tree Estates Ltd t/a Ashbrook Nursing Home,Nursing Care Income,540.36,0.00,COMMERCIAL SUPPLIER 
 09-05-2022,Adults,Care-Away Ltd T/A Care Support,Home Care - Private Contractors Payment,540.80,0.00,COMMERCIAL SUPPLIER 
 27-05-2022,Adults,Care-Away Ltd T/A Care Support,Home Care - Private Contractors Payment,540.80,0.00,COMMERCIAL SUPPLIER 
 04-05-2022,Adults,Westminster Homecare Ltd_a,Home Care - Private Contractors Payment,541.20,0.00,COMMERCIAL SUPPLIER 
 09-05-2022,Adults,Home Sweet Home Care Ltd,Home Care - Private Contractors Payment,542.18,0.00,COMMERCIAL SUPPLIER 
 06-05-2022,Adults,Affinia Healthcare Ltd_a,Supported Other Accommodation - Private Contractors Payment,543.20,0.00,COMMERCIAL SUPPLIER 
 31-05-2022,Adults,Affinia Healthcare Ltd_a,Supported Other Accommodation - Private Contractors Payment,543.20,0.00,COMMERCIAL SUPPLIER 
 31-05-2022,Adults,Infinite Healthcare Services Ltd.,Supported Other Accommodation - Private Contractors Payment,544.00,0.00,COMMERCIAL SUPPLIER 
 06-05-2022,Adults,Home Support Services (Havering & Essex) Ltd,Home Care - Private Contractors Payment,544.15,0.00,COMMERCIAL SUPPLIER 
 09-05-2022,Adults,Home Sweet Home Care Ltd,Home Care - Private Contractors Payment,544.15,0.00,COMMERCIAL SUPPLIER 
 06-05-2022,Adults,Home Support Services (Havering & Essex) Ltd,Home Care - Private Contractors Payment,545.46,0.00,COMMERCIAL SUPPLIER 
 09-05-2022,Adults,Home Sweet Home Care Ltd,Home Care - Private Contractors Payment,545.46,0.00,COMMERCIAL SUPPLIER 
 09-05-2022,Adults,Lodge Group Care UK Ltd,Home Care - Private Contractors Payment,546.12,0.00,COMMERCIAL SUPPLIER 
 11-05-2022,Adults,Prior Care Ltd_a,Home Care - Private Contractors Payment,546.21,0.00,COMMERCIAL SUPPLIER 
 06-05-2022,Adults,Paradise Independent Living,Supported Other Accommodation - Private Contractors Payment,546.24,0.00,NON COMMERCIAL SUPPLIER 
 31-05-2022,Adults,Paradise Independent Living,Supported Other Accommodation - Private Contractors Payment,546.24,0.00,NON COMMERCIAL SUPPLIER 
 09-05-2022,Adults,Lodge Group Care UK Ltd,Home Care - Private Contractors Payment,546.45,0.00,COMMERCIAL SUPPLIER 
 04-05-2022,Adults,The Learning Centre (TLC Romford) Ltd,Daycare - Private Contractors Payment,547.20,0.00,COMMERCIAL SUPPLIER 
 04-05-2022,Adults,The Learning Centre (TLC Romford) Ltd,Daycare - Private Contractors Payment,547.20,0.00,COMMERCIAL SUPPLIER 
 04-05-2022,Adults,The Learning Centre (TLC Romford) Ltd,Daycare - Private Contractors Payment,547.20,0.00,COMMERCIAL SUPPLIER 
 04-05-2022,Adults,The Learning Centre (TLC Romford) Ltd,Daycare - Private Contractors Payment,547.20,0.00,COMMERCIAL SUPPLIER 
 09-05-2022,Adults,Lodge Group Care UK Ltd,Home Care - Private Contractors Payment,548.76,0.00,COMMERCIAL SUPPLIER 
 03-05-2022,Adults,Treal Care Limited,Home Care - Private Contractors Payment,549.00,0.00,COMMERCIAL SUPPLIER 
 06-05-2022,Adults,John Stanleys Care Agency Ltd,Home Care - Private Contractors Payment,549.40,0.00,COMMERCIAL SUPPLIER 
 09-05-2022,Adults,Lodge Group Care UK Ltd,Home Care - Private Contractors Payment,549.73,0.00,COMMERCIAL SUPPLIER 
 09-05-2022,Adults,Lodge Group Care UK Ltd,Home Care - Private Contractors Payment,550.06,0.00,COMMERCIAL SUPPLIER 
 09-05-2022,Adults,Lodge Group Care UK Ltd,Home Care - Private Contractors Payment,550.14,0.00,COMMERCIAL SUPPLIER 
 06-05-2022,Adults,John Stanleys Care Agency Ltd,Home Care - Private Contractors Payment,550.38,0.00,COMMERCIAL SUPPLIER 
 20-05-2022,Adults,Personal Information ? Redacted,Home Care - Private Contractors Payment,551.04,0.00,INDIVIDUALS 
 20-05-2022,Adults,Personal Information ? Redacted,Home Care - Private Contractors Payment,551.04,0.00,INDIVIDUALS 
 20-05-2022,Adults,Personal Information ? Redacted,Home Care - Private Contractors Payment,551.04,0.00,INDIVIDUALS 
 20-05-2022,Adults,Personal Information ? Redacted,Home Care - Private Contractors Payment,551.04,0.00,INDIVIDUALS 
 20-05-2022,Adults,Personal Information ? Redacted,Home Care - Private Contractors Payment,551.04,0.00,INDIVIDUALS 
 20-05-2022,Adults,Personal Information ? Redacted,Home Care - Private Contractors Payment,551.04,0.00,INDIVIDUALS 
 23-05-2022,Adults,London Homecare Ltd,Home Care - Private Contractors Payment,551.04,0.00,COMMERCIAL SUPPLIER 
 23-05-2022,Adults,London Homecare Ltd,Home Care - Private Contractors Payment,551.04,0.00,COMMERCIAL SUPPLIER 
 23-05-2022,Adults,London Homecare Ltd,Home Care - Private Contractors Payment,551.04,0.00,COMMERCIAL SUPPLIER 
 23-05-2022,Adults,London Homecare Ltd,Home Care - Private Contractors Payment,551.04,0.00,COMMERCIAL SUPPLIER 
 24-05-2022,Adults,Outreach Support Services Ltd,Home Care - Private Contractors Payment,551.04,0.00,COMMERCIAL SUPPLIER 
 24-05-2022,Adults,Outreach Support Services Ltd,Home Care - Private Contractors Payment,551.04,0.00,COMMERCIAL SUPPLIER 
 24-05-2022,Adults,Outreach Support Services Ltd,Home Care - Private Contractors Payment,551.04,0.00,COMMERCIAL SUPPLIER 
 24-05-2022,Adults,Outreach Support Services Ltd,Home Care - Private Contractors Payment,551.04,0.00,COMMERCIAL SUPPLIER 
 24-05-2022,Adults,Outreach Support Services Ltd,Home Care - Private Contractors Payment,551.04,0.00,COMMERCIAL SUPPLIER 
 24-05-2022,Adults,Outreach Support Services Ltd,Home Care - Private Contractors Payment,551.04,0.00,COMMERCIAL SUPPLIER 
 24-05-2022,Adults,Outreach Support Services Ltd,Home Care - Private Contractors Payment,551.04,0.00,COMMERCIAL SUPPLIER 
 24-05-2022,Adults,Outreach Support Services Ltd,Home Care - Private Contractors Payment,551.04,0.00,COMMERCIAL SUPPLIER 
 24-05-2022,Adults,Outreach Support Services Ltd,Home Care - Private Contractors Payment,551.04,0.00,COMMERCIAL SUPPLIER 
 24-05-2022,Adults,Outreach Support Services Ltd,Home Care - Private Contractors Payment,551.04,0.00,COMMERCIAL SUPPLIER 
 24-05-2022,Adults,Outreach Support Services Ltd,Home Care - Private Contractors Payment,551.04,0.00,COMMERCIAL SUPPLIER 
 24-05-2022,Adults,Outreach Support Services Ltd,Home Care - Private Contractors Payment,551.04,0.00,COMMERCIAL SUPPLIER 
 24-05-2022,Adults,Outreach Support Services Ltd,Home Care - Private Contractors Payment,551.04,0.00,COMMERCIAL SUPPLIER 
 26-05-2022,Adults,Inna Care Ltd,Home Care - Private Contractors Payment,551.04,0.00,COMMERCIAL SUPPLIER 
 26-05-2022,Adults,Inna Care Ltd,Home Care - Private Contractors Payment,551.04,0.00,COMMERCIAL SUPPLIER 
 26-05-2022,Adults,Inna Care Ltd,Home Care - Private Contractors Payment,551.04,0.00,COMMERCIAL SUPPLIER 
 26-05-2022,Adults,Inna Care Ltd,Home Care - Private Contractors Payment,551.04,0.00,COMMERCIAL SUPPLIER 
 26-05-2022,Adults,Inna Care Ltd,Home Care - Private Contractors Payment,551.04,0.00,COMMERCIAL SUPPLIER 
 31-05-2022,Adults,Crystalize Care Services,Home Care - Private Contractors Payment,551.04,0.00,COMMERCIAL SUPPLIER 
 31-05-2022,Adults,Crystalize Care Services,Home Care - Private Contractors Payment,551.04,0.00,COMMERCIAL SUPPLIER 
 31-05-2022,Adults,Crystalize Care Services,Home Care - Private Contractors Payment,551.04,0.00,COMMERCIAL SUPPLIER 
 31-05-2022,Adults,Crystalize Care Services,Home Care - Private Contractors Payment,551.04,0.00,COMMERCIAL SUPPLIER 
 11-05-2022,Adults,Prior Care Ltd_a,Home Care - Private Contractors Payment,551.53,0.00,COMMERCIAL SUPPLIER 
 09-05-2022,Adults,Lodge Group Care UK Ltd,Home Care - Private Contractors Payment,552.20,0.00,COMMERCIAL SUPPLIER 
 13-05-2022,Adults,Anytime Care 2020_a,Home Care - Private Contractors Payment,552.36,0.00,COMMERCIAL SUPPLIER 
 20-05-2022,Adults,London Care Plc_a,Home Care - Private Contractors Payment,552.90,0.00,COMMERCIAL SUPPLIER 
 31-05-2022,Adults,Care-Away Ltd T/A Care Support,Home Care - Private Contractors Payment,553.28,0.00,COMMERCIAL SUPPLIER 
 13-05-2022,Adults,Cera Care Operations Ltd,Home Care - Private Contractors Payment,553.99,0.00,COMMERCIAL SUPPLIER 
 06-05-2022,Adults,John Stanleys Care Agency Ltd,Home Care - Private Contractors Payment,554.65,0.00,COMMERCIAL SUPPLIER 
 09-05-2022,Adults,Lodge Group Care UK Ltd,Home Care - Private Contractors Payment,555.63,0.00,COMMERCIAL SUPPLIER 
 11-05-2022,Adults,Matrix SCM Ltd,Agency Staff,556.36,0.00,COMMERCIAL SUPPLIER 
 31-05-2022,Adults,Barchester Healthcare Homes Ltd - Ottley House ,Nursing Homes - Private Contractors Payment,556.39,0.00,COMMERCIAL SUPPLIER 
 06-05-2022,Adults,Havering Care Homes Ltd t/a Abbscross Nursing Home,Nursing Homes - Private Contractors Payment,557.14,0.00,COMMERCIAL SUPPLIER 
 06-05-2022,Adults,Havering Care Homes Ltd t/a Abbscross Nursing Home,Nursing Homes - Private Contractors Payment,557.14,0.00,COMMERCIAL SUPPLIER 
 06-05-2022,Adults,HC-One Oval Ltd - Chaseview,Nursing Homes - Private Contractors Payment,557.14,0.00,COMMERCIAL SUPPLIER 
 06-05-2022,Adults,Moreland House_a,Nursing Homes - Private Contractors Payment,557.14,0.00,COMMERCIAL SUPPLIER 
 31-05-2022,Adults,Havering Care Homes Ltd t/a Abbscross Nursing Home,Nursing Homes - Private Contractors Payment,557.14,0.00,COMMERCIAL SUPPLIER 
 09-05-2022,Adults,Lodge Group Care UK Ltd,Home Care - Private Contractors Payment,558.26,0.00,COMMERCIAL SUPPLIER 
 09-05-2022,Adults,Lodge Group Care UK Ltd,Home Care - Private Contractors Payment,559.57,0.00,COMMERCIAL SUPPLIER 
 09-05-2022,Adults,Lodge Group Care UK Ltd,Home Care - Private Contractors Payment,560.10,0.00,COMMERCIAL SUPPLIER 
 06-05-2022,Adults,Home Support Services (Havering & Essex) Ltd,Home Care - Private Contractors Payment,560.22,0.00,COMMERCIAL SUPPLIER 
 06-05-2022,Adults,Leonard Cheshire Disability_a.,Residential Placements - Private Contractors Payment,561.88,0.00,COMMERCIAL SUPPLIER 
 31-05-2022,Adults,Leonard Cheshire Disability_a.,Residential Placements - Private Contractors Payment,561.88,0.00,COMMERCIAL SUPPLIER 
 09-05-2022,Adults,Lodge Group Care UK Ltd,Home Care - Private Contractors Payment,562.52,0.00,COMMERCIAL SUPPLIER 
 09-05-2022,Adults,Home Sweet Home Care Ltd,Home Care - Private Contractors Payment,563.18,0.00,COMMERCIAL SUPPLIER 
 13-05-2022,Adults,Cera Care Operations Ltd,Home Care - Private Contractors Payment,564.16,0.00,COMMERCIAL SUPPLIER 
 09-05-2022,Adults,Lodge Group Care UK Ltd,Home Care - Private Contractors Payment,564.86,0.00,COMMERCIAL SUPPLIER 
 09-05-2022,Adults,Lodge Group Care UK Ltd,Home Care - Private Contractors Payment,565.47,0.00,COMMERCIAL SUPPLIER 
 09-05-2022,Adults,Lodge Group Care UK Ltd,Home Care - Private Contractors Payment,565.47,0.00,COMMERCIAL SUPPLIER 
 09-05-2022,Adults,Care-Away Ltd T/A Care Support,Home Care - Private Contractors Payment,565.76,0.00,COMMERCIAL SUPPLIER 
 30-05-2022,Adults,Care-Away Ltd T/A Care Support,Home Care - Private Contractors Payment,565.76,0.00,COMMERCIAL SUPPLIER 
 09-05-2022,Adults,Lodge Group Care UK Ltd,Home Care - Private Contractors Payment,565.80,0.00,COMMERCIAL SUPPLIER 
 13-05-2022,Adults,Anytime Care 2020_a,Home Care - Private Contractors Payment,567.77,0.00,COMMERCIAL SUPPLIER 
 06-05-2022,Adults,Raynet Recruitment Agency Ltd,Supported Other Accommodation - Private Contractors Payment,568.56,0.00,COMMERCIAL SUPPLIER 
 31-05-2022,Adults,Raynet Recruitment Agency Ltd,Supported Other Accommodation - Private Contractors Payment,568.56,0.00,COMMERCIAL SUPPLIER 
 09-05-2022,Adults,Lodge Group Care UK Ltd,Home Care - Private Contractors Payment,568.75,0.00,COMMERCIAL SUPPLIER 
 09-05-2022,Adults,Lodge Group Care UK Ltd,Home Care - Private Contractors Payment,568.75,0.00,COMMERCIAL SUPPLIER 
 09-05-2022,Adults,Lodge Group Care UK Ltd,Home Care - Private Contractors Payment,569.08,0.00,COMMERCIAL SUPPLIER 
 31-05-2022,Adults,Outlook Care_a,Residential Placements - Private Contractors Payment,569.64,0.00,COMMERCIAL SUPPLIER 
 06-05-2022,Adults,Home Support Services (Havering & Essex) Ltd,Home Care - Private Contractors Payment,569.74,0.00,COMMERCIAL SUPPLIER 
 06-05-2022,Adults,Axcelence Limited,Supported Other Accommodation - Private Contractors Payment,571.55,0.00,COMMERCIAL SUPPLIER 
 09-05-2022,Adults,Lodge Group Care UK Ltd,Home Care - Private Contractors Payment,571.62,0.00,COMMERCIAL SUPPLIER 
 09-05-2022,Adults,Home Sweet Home Care Ltd,Home Care - Private Contractors Payment,571.70,0.00,COMMERCIAL SUPPLIER 
 11-05-2022,Adults,Prior Care Ltd_a,Home Care - Private Contractors Payment,571.70,0.00,COMMERCIAL SUPPLIER 
 09-05-2022,Adults,Lodge Group Care UK Ltd,Home Care - Private Contractors Payment,572.03,0.00,COMMERCIAL SUPPLIER 
 06-05-2022,Adults,Home Support Services (Havering & Essex) Ltd,Home Care - Private Contractors Payment,572.36,0.00,COMMERCIAL SUPPLIER 
 09-05-2022,Adults,Lodge Group Care UK Ltd,Home Care - Private Contractors Payment,574.00,0.00,COMMERCIAL SUPPLIER 
 13-05-2022,Adults,Anytime Care 2020_a,Home Care - Private Contractors Payment,574.00,0.00,COMMERCIAL SUPPLIER 
 11-05-2022,Adults,Prior Care Ltd_a,Home Care - Private Contractors Payment,577.61,0.00,COMMERCIAL SUPPLIER 
 06-05-2022,Adults,John Stanleys Care Agency Ltd,Home Care - Private Contractors Payment,578.36,0.00,COMMERCIAL SUPPLIER 
 09-05-2022,Adults,Lodge Group Care UK Ltd,Home Care - Private Contractors Payment,578.37,0.00,COMMERCIAL SUPPLIER 
 09-05-2022,Adults,Home Sweet Home Care Ltd,Home Care - Private Contractors Payment,578.64,0.00,COMMERCIAL SUPPLIER 
 09-05-2022,Adults,Home Sweet Home Care Ltd,Home Care - Private Contractors Payment,578.92,0.00,COMMERCIAL SUPPLIER 
 18-05-2022,Adults,Cera Care Operations Ltd,Home Care - Private Contractors Payment,579.97,0.00,COMMERCIAL SUPPLIER 
 09-05-2022,Adults,Home Sweet Home Care Ltd,Home Care - Private Contractors Payment,580.56,0.00,COMMERCIAL SUPPLIER 
 31-05-2022,Adults,GCH - Hillside Nursing Home,Nursing Homes - Private Contractors Payment,581.14,0.00,COMMERCIAL SUPPLIER 
 09-05-2022,Adults,Lodge Group Care UK Ltd,Home Care - Private Contractors Payment,581.54,0.00,COMMERCIAL SUPPLIER 
 11-05-2022,Adults,Matrix SCM Ltd,Agency Staff,581.62,0.00,COMMERCIAL SUPPLIER 
 09-05-2022,Adults,Lodge Group Care UK Ltd,Home Care - Private Contractors Payment,581.87,0.00,COMMERCIAL SUPPLIER 
 03-05-2022,Adults,Quality Healthcare Solutions Ltd t/a Kare Plus Romford,Home Care - Private Contractors Payment,582.12,0.00,COMMERCIAL SUPPLIER 
 30-05-2022,Adults,Care-Away Ltd T/A Care Support,Home Care - Private Contractors Payment,582.40,0.00,COMMERCIAL SUPPLIER 
 30-05-2022,Adults,Care-Away Ltd T/A Care Support,Home Care - Private Contractors Payment,582.40,0.00,COMMERCIAL SUPPLIER 
 31-05-2022,Adults,Care-Away Ltd T/A Care Support,Home Care - Private Contractors Payment,582.40,0.00,COMMERCIAL SUPPLIER 
 06-05-2022,Adults,Home Support Services (Havering & Essex) Ltd,Home Care - Private Contractors Payment,583.51,0.00,COMMERCIAL SUPPLIER 
 23-05-2022,Adults,Tapestry_a.,Daycare - Private Contractors Payment,586.28,0.00,COMMERCIAL SUPPLIER 
 23-05-2022,Adults,Tapestry_a.,Daycare - Private Contractors Payment,586.28,0.00,COMMERCIAL SUPPLIER 
 23-05-2022,Adults,Tapestry_a.,Daycare - Private Contractors Payment,586.28,0.00,COMMERCIAL SUPPLIER 
 23-05-2022,Adults,Tapestry_a.,Daycare - Private Contractors Payment,586.28,0.00,COMMERCIAL SUPPLIER 
 24-05-2022,Adults,Tapestry_a.,Daycare - Private Contractors Payment,586.28,0.00,COMMERCIAL SUPPLIER 
 24-05-2022,Adults,Tapestry_a.,Daycare - Private Contractors Payment,586.28,0.00,COMMERCIAL SUPPLIER 
 24-05-2022,Adults,Tapestry_a.,Daycare - Private Contractors Payment,586.28,0.00,COMMERCIAL SUPPLIER 
 11-05-2022,Adults,Prior Care Ltd_a,Home Care - Private Contractors Payment,586.79,0.00,COMMERCIAL SUPPLIER 
 20-05-2022,Adults,Morepower Ltd t/a Aqs Homecare,Home Care - Private Contractors Payment,587.78,0.00,COMMERCIAL SUPPLIER 
 06-05-2022,Adults,Home Support Services (Havering & Essex) Ltd,Home Care - Private Contractors Payment,590.40,0.00,COMMERCIAL SUPPLIER 
 27-05-2022,Adults,Carers Trust East Midlands,Home Care - Private Contractors Payment,590.40,0.00,COMMERCIAL SUPPLIER 
 27-05-2022,Adults,Carers Trust East Midlands,Home Care - Private Contractors Payment,590.40,0.00,COMMERCIAL SUPPLIER 
 09-05-2022,Adults,Home Sweet Home Care Ltd,Home Care - Private Contractors Payment,591.38,0.00,COMMERCIAL SUPPLIER 
 06-05-2022,Adults,John Stanleys Care Agency Ltd,Home Care - Private Contractors Payment,591.71,0.00,COMMERCIAL SUPPLIER 
 11-05-2022,Adults,Prior Care Ltd_a,Home Care - Private Contractors Payment,592.04,0.00,COMMERCIAL SUPPLIER 
 11-05-2022,Adults,Prior Care Ltd_a,Home Care - Private Contractors Payment,592.70,0.00,COMMERCIAL SUPPLIER 
 06-05-2022,Adults,Axcelence Limited,Supported Other Accommodation - Private Contractors Payment,592.72,0.00,COMMERCIAL SUPPLIER 
 09-05-2022,Adults,Lodge Group Care UK Ltd,Home Care - Private Contractors Payment,593.35,0.00,COMMERCIAL SUPPLIER 
 13-05-2022,Adults,Cera Care Operations Ltd,Home Care - Private Contractors Payment,593.61,0.00,COMMERCIAL SUPPLIER 
 09-05-2022,Adults,Lodge Group Care UK Ltd,Home Care - Private Contractors Payment,595.32,0.00,COMMERCIAL SUPPLIER 
 09-05-2022,Adults,Home Sweet Home Care Ltd,Home Care - Private Contractors Payment,595.32,0.00,COMMERCIAL SUPPLIER 
 09-05-2022,Adults,Home Sweet Home Care Ltd,Home Care - Private Contractors Payment,595.32,0.00,COMMERCIAL SUPPLIER 
 11-05-2022,Adults,Matrix SCM Ltd,Agency Staff,595.38,0.00,COMMERCIAL SUPPLIER 
 11-05-2022,Adults,Prior Care Ltd_a,Home Care - Private Contractors Payment,595.65,0.00,COMMERCIAL SUPPLIER 
 10-05-2022,Adults,EC Romford Holdings Ltd,Residential Placements - Private Contractors Payment,595.71,0.00,COMMERCIAL SUPPLIER 
 31-05-2022,Adults,Havering Care Homes Ltd t/a Upminster Nursing Home,Respite Care - Private Contractors Payment,595.71,0.00,COMMERCIAL SUPPLIER 
 09-05-2022,Adults,Lodge Group Care UK Ltd,Home Care - Private Contractors Payment,596.30,0.00,COMMERCIAL SUPPLIER 
 11-05-2022,Adults,Prior Care Ltd_a,Home Care - Private Contractors Payment,596.30,0.00,COMMERCIAL SUPPLIER 
 06-05-2022,Adults,Care-Away Ltd T/A Care Support,Home Care - Private Contractors Payment,596.66,0.00,COMMERCIAL SUPPLIER 
 09-05-2022,Adults,Home Sweet Home Care Ltd,Home Care - Private Contractors Payment,596.96,0.00,COMMERCIAL SUPPLIER 
 20-05-2022,Adults,London Care Plc_a,Home Care - Private Contractors Payment,597.33,0.00,COMMERCIAL SUPPLIER 
 09-05-2022,Adults,Lodge Group Care UK Ltd,Home Care - Private Contractors Payment,598.35,0.00,COMMERCIAL SUPPLIER 
 06-05-2022,Adults,Home Support Services (Havering & Essex) Ltd,Home Care - Private Contractors Payment,598.36,0.00,COMMERCIAL SUPPLIER 
 23-05-2022,Adults,Tapestry_a.,Daycare - Private Contractors Payment,598.50,0.00,COMMERCIAL SUPPLIER 
 09-05-2022,Adults,Lodge Group Care UK Ltd,Home Care - Private Contractors Payment,598.60,0.00,COMMERCIAL SUPPLIER 
 06-05-2022,Adults,Care-Away Ltd T/A Care Support,Home Care - Private Contractors Payment,599.04,0.00,COMMERCIAL SUPPLIER 
 06-05-2022,Adults,Care-Away Ltd T/A Care Support,Home Care - Private Contractors Payment,599.04,0.00,COMMERCIAL SUPPLIER 
 09-05-2022,Adults,Care-Away Ltd T/A Care Support,Home Care - Private Contractors Payment,599.04,0.00,COMMERCIAL SUPPLIER 
 09-05-2022,Adults,Care-Away Ltd T/A Care Support,Home Care - Private Contractors Payment,599.04,0.00,COMMERCIAL SUPPLIER 
 09-05-2022,Adults,Care-Away Ltd T/A Care Support,Home Care - Private Contractors Payment,599.04,0.00,COMMERCIAL SUPPLIER 
 13-05-2022,Adults,Cera Care Operations Ltd,Home Care - Private Contractors Payment,599.58,0.00,COMMERCIAL SUPPLIER 
 13-05-2022,Adults,Cera Care Operations Ltd,Home Care - Private Contractors Payment,599.58,0.00,COMMERCIAL SUPPLIER 
 13-05-2022,Adults,Anytime Care 2020_a,Home Care - Private Contractors Payment,599.91,0.00,COMMERCIAL SUPPLIER 
 09-05-2022,Adults,Lodge Group Care UK Ltd,Home Care - Private Contractors Payment,601.22,0.00,COMMERCIAL SUPPLIER 
 09-05-2022,Adults,Lodge Group Care UK Ltd,Home Care - Private Contractors Payment,601.55,0.00,COMMERCIAL SUPPLIER 
 04-05-2022,Adults,Matrix SCM Ltd,Agency Staff,601.92,0.00,COMMERCIAL SUPPLIER 
 18-05-2022,Adults,Matrix SCM Ltd,Agency Staff,601.92,0.00,COMMERCIAL SUPPLIER 
 25-05-2022,Adults,Matrix SCM Ltd,Agency Staff,601.92,0.00,COMMERCIAL SUPPLIER 
 09-05-2022,Adults,Lodge Group Care UK Ltd,Home Care - Private Contractors Payment,602.54,0.00,COMMERCIAL SUPPLIER 
 06-05-2022,Adults,Home Support Services (Havering & Essex) Ltd,Home Care - Private Contractors Payment,603.14,0.00,COMMERCIAL SUPPLIER 
 11-05-2022,Adults,Prior Care Ltd_a,Home Care - Private Contractors Payment,603.76,0.00,COMMERCIAL SUPPLIER 
 06-05-2022,Adults,Masumin Ltd t/s Abbeleigh House,Residential Placements - Private Contractors Payment,604.00,0.00,COMMERCIAL SUPPLIER 
 09-05-2022,Adults,Lodge Group Care UK Ltd,Home Care - Private Contractors Payment,604.18,0.00,COMMERCIAL SUPPLIER 
 11-05-2022,Adults,Matrix SCM Ltd,Agency Staff,604.20,0.00,COMMERCIAL SUPPLIER 
 11-05-2022,Adults,Matrix SCM Ltd,Agency Staff,604.80,0.00,COMMERCIAL SUPPLIER 
 11-05-2022,Adults,Prior Care Ltd_a,Home Care - Private Contractors Payment,604.98,0.00,COMMERCIAL SUPPLIER 
 11-05-2022,Adults,Prior Care Ltd_a,Home Care - Private Contractors Payment,605.82,0.00,COMMERCIAL SUPPLIER 
 20-05-2022,Adults,Morepower Ltd t/a Aqs Homecare,Home Care - Private Contractors Payment,607.13,0.00,COMMERCIAL SUPPLIER 
 11-05-2022,Adults,Matrix SCM Ltd,Agency Staff,607.88,0.00,COMMERCIAL SUPPLIER 
 25-05-2022,Adults,Matrix SCM Ltd,Agency Staff,607.88,0.00,COMMERCIAL SUPPLIER 
 20-05-2022,Adults,Morepower Ltd t/a Aqs Homecare,Home Care - Private Contractors Payment,608.77,0.00,COMMERCIAL SUPPLIER 
 04-05-2022,Adults,Matrix SCM Ltd,Agency Staff,609.12,0.00,COMMERCIAL SUPPLIER 
 27-05-2022,Adults,Carers Trust East Midlands,Home Care - Private Contractors Payment,610.08,0.00,COMMERCIAL SUPPLIER 
 06-05-2022,Adults,Care-Away Ltd T/A Care Support,Home Care - Private Contractors Payment,613.30,0.00,COMMERCIAL SUPPLIER 
 06-05-2022,Adults,Axcelence Limited,Supported Other Accommodation - Private Contractors Payment,613.89,0.00,COMMERCIAL SUPPLIER 
 09-05-2022,Adults,Lodge Group Care UK Ltd,Home Care - Private Contractors Payment,614.34,0.00,COMMERCIAL SUPPLIER 
 09-05-2022,Adults,Home Sweet Home Care Ltd,Home Care - Private Contractors Payment,614.34,0.00,COMMERCIAL SUPPLIER 
 09-05-2022,Adults,Home Sweet Home Care Ltd,Home Care - Private Contractors Payment,615.00,0.00,COMMERCIAL SUPPLIER 
 13-05-2022,Adults,Anytime Care 2020_a,Home Care - Private Contractors Payment,615.30,0.00,COMMERCIAL SUPPLIER 
 06-05-2022,Adults,Home Support Services (Havering & Essex) Ltd,Home Care - Private Contractors Payment,615.33,0.00,COMMERCIAL SUPPLIER 
 20-05-2022,Adults,Morepower Ltd t/a Aqs Homecare,Home Care - Private Contractors Payment,616.64,0.00,COMMERCIAL SUPPLIER 
 06-05-2022,Adults,Home Support Services (Havering & Essex) Ltd,Home Care - Private Contractors Payment,616.65,0.00,COMMERCIAL SUPPLIER 
 09-05-2022,Adults,Lodge Group Care UK Ltd,Home Care - Private Contractors Payment,617.62,0.00,COMMERCIAL SUPPLIER 
 11-05-2022,Adults,Matrix SCM Ltd,Agency Staff,619.08,0.00,COMMERCIAL SUPPLIER 
 09-05-2022,Adults,Lodge Group Care UK Ltd,Home Care - Private Contractors Payment,619.26,0.00,COMMERCIAL SUPPLIER 
 09-05-2022,Adults,Home Sweet Home Care Ltd,Home Care - Private Contractors Payment,619.26,0.00,COMMERCIAL SUPPLIER 
 20-05-2022,Adults,Personal Information ? Redacted,Home Care - Private Contractors Payment,619.92,0.00,INDIVIDUALS 
 20-05-2022,Adults,Personal Information ? Redacted,Home Care - Private Contractors Payment,619.92,0.00,INDIVIDUALS 
 23-05-2022,Adults,London Homecare Ltd,Home Care - Private Contractors Payment,619.92,0.00,COMMERCIAL SUPPLIER 
 23-05-2022,Adults,London Homecare Ltd,Home Care - Private Contractors Payment,619.92,0.00,COMMERCIAL SUPPLIER 
 23-05-2022,Adults,London Homecare Ltd,Home Care - Private Contractors Payment,619.92,0.00,COMMERCIAL SUPPLIER 
 23-05-2022,Adults,London Homecare Ltd,Home Care - Private Contractors Payment,619.92,0.00,COMMERCIAL SUPPLIER 
 23-05-2022,Adults,London Homecare Ltd,Home Care - Private Contractors Payment,619.92,0.00,COMMERCIAL SUPPLIER 
 23-05-2022,Adults,London Homecare Ltd,Home Care - Private Contractors Payment,619.92,0.00,COMMERCIAL SUPPLIER 
 23-05-2022,Adults,London Homecare Ltd,Home Care - Private Contractors Payment,619.92,0.00,COMMERCIAL SUPPLIER 
 23-05-2022,Adults,London Homecare Ltd,Home Care - Private Contractors Payment,619.92,0.00,COMMERCIAL SUPPLIER 
 23-05-2022,Adults,London Homecare Ltd,Home Care - Private Contractors Payment,619.92,0.00,COMMERCIAL SUPPLIER 
 23-05-2022,Adults,London Homecare Ltd,Home Care - Private Contractors Payment,619.92,0.00,COMMERCIAL SUPPLIER 
 23-05-2022,Adults,Premier Carewaiting Ltd,Home Care - Private Contractors Payment,619.92,0.00,COMMERCIAL SUPPLIER 
 23-05-2022,Adults,Premier Carewaiting Ltd,Home Care - Private Contractors Payment,619.92,0.00,COMMERCIAL SUPPLIER 
 24-05-2022,Adults,Outreach Support Services Ltd,Home Care - Private Contractors Payment,619.92,0.00,COMMERCIAL SUPPLIER 
 24-05-2022,Adults,Outreach Support Services Ltd,Home Care - Private Contractors Payment,619.92,0.00,COMMERCIAL SUPPLIER 
 24-05-2022,Adults,Outreach Support Services Ltd,Home Care - Private Contractors Payment,619.92,0.00,COMMERCIAL SUPPLIER 
 24-05-2022,Adults,Outreach Support Services Ltd,Home Care - Private Contractors Payment,619.92,0.00,COMMERCIAL SUPPLIER 
 24-05-2022,Adults,Outreach Support Services Ltd,Home Care - Private Contractors Payment,619.92,0.00,COMMERCIAL SUPPLIER 
 24-05-2022,Adults,Outreach Support Services Ltd,Home Care - Private Contractors Payment,619.92,0.00,COMMERCIAL SUPPLIER 
 24-05-2022,Adults,Outreach Support Services Ltd,Home Care - Private Contractors Payment,619.92,0.00,COMMERCIAL SUPPLIER 
 24-05-2022,Adults,Outreach Support Services Ltd,Home Care - Private Contractors Payment,619.92,0.00,COMMERCIAL SUPPLIER 
 24-05-2022,Adults,Outreach Support Services Ltd,Home Care - Private Contractors Payment,619.92,0.00,COMMERCIAL SUPPLIER 
 06-05-2022,Adults,Home Support Services (Havering & Essex) Ltd,Home Care - Private Contractors Payment,619.93,0.00,COMMERCIAL SUPPLIER 
 04-05-2022,Adults,Action First Assessments Ltd,Private Contractors Payment - Other,620.00,0.00,COMMERCIAL SUPPLIER 
 11-05-2022,Adults,Action First Assessments Ltd,Private Contractors Payment - Other,620.00,0.00,COMMERCIAL SUPPLIER 
 11-05-2022,Adults,Action First Assessments Ltd,Private Contractors Payment - Other,620.00,0.00,COMMERCIAL SUPPLIER 
 11-05-2022,Adults,Action First Assessments Ltd,Private Contractors Payment - Other,620.00,0.00,COMMERCIAL SUPPLIER 
 06-05-2022,Adults,Fountains Care Centre - Bondcare,Residential Care Income,621.01,0.00,COMMERCIAL SUPPLIER 
 09-05-2022,Adults,Home Sweet Home Care Ltd,Home Care - Private Contractors Payment,621.53,0.00,COMMERCIAL SUPPLIER 
 18-05-2022,Adults,Matrix SCM Ltd,Agency Staff,622.08,0.00,COMMERCIAL SUPPLIER 
 25-05-2022,Adults,Matrix SCM Ltd,Agency Staff,622.08,0.00,COMMERCIAL SUPPLIER 
 06-05-2022,Adults,Axcelence Limited,Supported Other Accommodation - Private Contractors Payment,622.36,0.00,COMMERCIAL SUPPLIER 
 06-05-2022,Adults,Axcelence Limited,Supported Other Accommodation - Private Contractors Payment,622.36,0.00,COMMERCIAL SUPPLIER 
 31-05-2022,Adults,Axcelence Limited,Supported Other Accommodation - Private Contractors Payment,622.36,0.00,COMMERCIAL SUPPLIER 
 09-05-2022,Adults,Home Sweet Home Care Ltd,Home Care - Private Contractors Payment,623.86,0.00,COMMERCIAL SUPPLIER 
 09-05-2022,Adults,Home Sweet Home Care Ltd,Home Care - Private Contractors Payment,624.18,0.00,COMMERCIAL SUPPLIER 
 09-05-2022,Adults,Home Sweet Home Care Ltd,Home Care - Private Contractors Payment,624.51,0.00,COMMERCIAL SUPPLIER 
 09-05-2022,Adults,Home Sweet Home Care Ltd,Home Care - Private Contractors Payment,624.84,0.00,COMMERCIAL SUPPLIER 
 20-05-2022,Adults,Morepower Ltd t/a Aqs Homecare,Home Care - Private Contractors Payment,625.10,0.00,COMMERCIAL SUPPLIER 
 20-05-2022,Adults,London Care Plc_a,Home Care - Private Contractors Payment,625.17,0.00,COMMERCIAL SUPPLIER 
 09-05-2022,Adults,Lodge Group Care UK Ltd,Home Care - Private Contractors Payment,625.82,0.00,COMMERCIAL SUPPLIER 
 09-05-2022,Adults,Lodge Group Care UK Ltd,Home Care - Private Contractors Payment,626.48,0.00,COMMERCIAL SUPPLIER 
 09-05-2022,Adults,Home Sweet Home Care Ltd,Home Care - Private Contractors Payment,626.48,0.00,COMMERCIAL SUPPLIER 
 09-05-2022,Adults,Home Sweet Home Care Ltd,Home Care - Private Contractors Payment,626.48,0.00,COMMERCIAL SUPPLIER 
 09-05-2022,Adults,Lodge Group Care UK Ltd,Home Care - Private Contractors Payment,627.14,0.00,COMMERCIAL SUPPLIER 
 09-05-2022,Adults,Lodge Group Care UK Ltd,Home Care - Private Contractors Payment,627.46,0.00,COMMERCIAL SUPPLIER 
 09-05-2022,Adults,Home Sweet Home Care Ltd,Home Care - Private Contractors Payment,628.78,0.00,COMMERCIAL SUPPLIER 
 13-05-2022,Adults,Cera Care Operations Ltd,Home Care - Private Contractors Payment,629.30,0.00,COMMERCIAL SUPPLIER 
 11-05-2022,Adults,Matrix SCM Ltd,Agency Staff,629.59,0.00,COMMERCIAL SUPPLIER 
 23-05-2022,Adults,Premier Carewaiting Ltd,Home Care - Private Contractors Payment,629.76,0.00,COMMERCIAL SUPPLIER 
 23-05-2022,Adults,Premier Carewaiting Ltd,Home Care - Private Contractors Payment,629.76,0.00,COMMERCIAL SUPPLIER 
 24-05-2022,Adults,Outreach Support Services Ltd,Home Care - Private Contractors Payment,629.76,0.00,COMMERCIAL SUPPLIER 
 31-05-2022,Adults,Cygnet Health Care,Residential Placements - Private Contractors Payment,630.00,0.00,COMMERCIAL SUPPLIER 
 31-05-2022,Adults,Cygnet Health Care,Residential Placements - Private Contractors Payment,630.00,0.00,COMMERCIAL SUPPLIER 
 31-05-2022,Adults,Cygnet Health Care,Residential Placements - Private Contractors Payment,630.00,0.00,COMMERCIAL SUPPLIER 
 09-05-2022,Adults,Home Sweet Home Care Ltd,Home Care - Private Contractors Payment,630.09,0.00,COMMERCIAL SUPPLIER 
 11-05-2022,Adults,Prior Care Ltd_a,Home Care - Private Contractors Payment,630.42,0.00,COMMERCIAL SUPPLIER 
 06-05-2022,Adults,Fountains Care Centre - Bondcare,Residential Care Income,630.54,0.00,COMMERCIAL SUPPLIER 
 09-05-2022,Adults,Lodge Group Care UK Ltd,Home Care - Private Contractors Payment,631.95,0.00,COMMERCIAL SUPPLIER 
 06-05-2022,Adults,Alexander Court Care Centre - Bondcare,Nursing Homes - Private Contractors Payment,632.00,0.00,COMMERCIAL SUPPLIER 
 06-05-2022,Adults,Home Support Services (Havering & Essex) Ltd,Home Care - Private Contractors Payment,634.02,0.00,COMMERCIAL SUPPLIER 
 09-05-2022,Adults,Home Sweet Home Care Ltd,Home Care - Private Contractors Payment,634.35,0.00,COMMERCIAL SUPPLIER 
 06-05-2022,Adults,Beechcourt Care Centre - Bondcare,Nursing Care Income,634.64,0.00,COMMERCIAL SUPPLIER 
 09-05-2022,Adults,Home Sweet Home Care Ltd,Home Care - Private Contractors Payment,634.68,0.00,COMMERCIAL SUPPLIER 
 09-05-2022,Adults,Home Sweet Home Care Ltd,Home Care - Private Contractors Payment,635.34,0.00,COMMERCIAL SUPPLIER 
 06-05-2022,Adults,Home Support Services (Havering & Essex) Ltd,Home Care - Private Contractors Payment,636.32,0.00,COMMERCIAL SUPPLIER 
 06-05-2022,Adults,Home Support Services (Havering & Essex) Ltd,Home Care - Private Contractors Payment,636.86,0.00,COMMERCIAL SUPPLIER 
 06-05-2022,Adults,Care-Away Ltd T/A Care Support,Home Care - Private Contractors Payment,639.45,0.00,COMMERCIAL SUPPLIER 
 23-05-2022,Adults,London Homecare Ltd,Home Care - Private Contractors Payment,639.60,0.00,COMMERCIAL SUPPLIER 
 23-05-2022,Adults,London Homecare Ltd,Home Care - Private Contractors Payment,639.60,0.00,COMMERCIAL SUPPLIER 
 06-05-2022,Adults,Home Support Services (Havering & Essex) Ltd,Home Care - Private Contractors Payment,642.88,0.00,COMMERCIAL SUPPLIER 
 13-05-2022,Adults,Anytime Care 2020_a,Home Care - Private Contractors Payment,644.12,0.00,COMMERCIAL SUPPLIER 
 13-05-2022,Adults,Cera Care Operations Ltd,Home Care - Private Contractors Payment,644.38,0.00,COMMERCIAL SUPPLIER 
 23-05-2022,Adults,Eastway Care Ltd_a,Daycare - Private Contractors Payment,645.00,0.00,COMMERCIAL SUPPLIER 
 06-05-2022,Adults,Home Support Services (Havering & Essex) Ltd,Home Care - Private Contractors Payment,645.50,0.00,COMMERCIAL SUPPLIER 
 09-05-2022,Adults,Lodge Group Care UK Ltd,Home Care - Private Contractors Payment,646.82,0.00,COMMERCIAL SUPPLIER 
 20-05-2022,Adults,Morepower Ltd t/a Aqs Homecare,Home Care - Private Contractors Payment,647.14,0.00,COMMERCIAL SUPPLIER 
 03-05-2022,Adults,Quality Healthcare Solutions Ltd t/a Kare Plus Romford,Home Care - Private Contractors Payment,648.78,0.00,COMMERCIAL SUPPLIER 
 11-05-2022,Adults,Prior Care Ltd_a,Home Care - Private Contractors Payment,649.44,0.00,COMMERCIAL SUPPLIER 
 23-05-2022,Adults,Premier Carewaiting Ltd,Home Care - Private Contractors Payment,649.44,0.00,COMMERCIAL SUPPLIER 
 23-05-2022,Adults,Premier Carewaiting Ltd,Home Care - Private Contractors Payment,649.44,0.00,COMMERCIAL SUPPLIER 
 23-05-2022,Adults,Premier Carewaiting Ltd,Home Care - Private Contractors Payment,649.44,0.00,COMMERCIAL SUPPLIER 
 23-05-2022,Adults,Premier Carewaiting Ltd,Home Care - Private Contractors Payment,649.44,0.00,COMMERCIAL SUPPLIER 
 09-05-2022,Adults,Home Sweet Home Care Ltd,Home Care - Private Contractors Payment,649.77,0.00,COMMERCIAL SUPPLIER 
 31-05-2022,Adults,Ranc Care Homes Ltd - Romford Care Centre,Residential Care Income,652.11,0.00,COMMERCIAL SUPPLIER 
 13-05-2022,Adults,Cera Care Operations Ltd,Home Care - Private Contractors Payment,653.05,0.00,COMMERCIAL SUPPLIER 
 03-05-2022,Adults,Quality Healthcare Solutions Ltd t/a Kare Plus Romford,Home Care - Private Contractors Payment,653.70,0.00,COMMERCIAL SUPPLIER 
 13-05-2022,Adults,Cera Care Operations Ltd,Home Care - Private Contractors Payment,653.70,0.00,COMMERCIAL SUPPLIER 
 31-05-2022,Adults,HC-One Oval Ltd - Chaseview,Nursing Homes - Private Contractors Payment,654.00,0.00,COMMERCIAL SUPPLIER 
 09-05-2022,Adults,Home Sweet Home Care Ltd,Home Care - Private Contractors Payment,654.69,0.00,COMMERCIAL SUPPLIER 
 04-05-2022,Adults,Matrix SCM Ltd,Agency Staff,657.73,0.00,COMMERCIAL SUPPLIER 
 18-05-2022,Adults,Matrix SCM Ltd,Agency Staff,657.73,0.00,COMMERCIAL SUPPLIER 
 25-05-2022,Adults,Matrix SCM Ltd,Agency Staff,657.73,0.00,COMMERCIAL SUPPLIER 
 20-05-2022,Adults,Morepower Ltd t/a Aqs Homecare,Home Care - Private Contractors Payment,659.94,0.00,COMMERCIAL SUPPLIER 
 09-05-2022,Adults,Pristine Care London Ltd ,Daycare - Private Contractors Payment,660.00,0.00,COMMERCIAL SUPPLIER 
 20-05-2022,Adults,Morepower Ltd t/a Aqs Homecare,Home Care - Private Contractors Payment,661.58,0.00,COMMERCIAL SUPPLIER 
 13-05-2022,Adults,Cera Care Operations Ltd,Home Care - Private Contractors Payment,661.90,0.00,COMMERCIAL SUPPLIER 
 06-05-2022,Adults,Home Support Services (Havering & Essex) Ltd,Home Care - Private Contractors Payment,663.87,0.00,COMMERCIAL SUPPLIER 
 09-05-2022,Adults,Home Sweet Home Care Ltd,Home Care - Private Contractors Payment,663.87,0.00,COMMERCIAL SUPPLIER 
 31-05-2022,Adults,Ranc Care Homes Ltd - Romford Care Centre,Residential Care Income,664.56,0.00,COMMERCIAL SUPPLIER 
 09-05-2022,Adults,Home Sweet Home Care Ltd,Home Care - Private Contractors Payment,666.17,0.00,COMMERCIAL SUPPLIER 
 20-05-2022,Adults,Personal Information ? Redacted,Home Care - Private Contractors Payment,668.88,0.00,INDIVIDUALS 
 09-05-2022,Adults,Home Sweet Home Care Ltd,Home Care - Private Contractors Payment,669.12,0.00,COMMERCIAL SUPPLIER 
 09-05-2022,Adults,Home Sweet Home Care Ltd,Home Care - Private Contractors Payment,669.45,0.00,COMMERCIAL SUPPLIER 
 06-05-2022,Adults,John Stanleys Care Agency Ltd,Home Care - Private Contractors Payment,670.10,0.00,COMMERCIAL SUPPLIER 
 09-05-2022,Adults,Lodge Group Care UK Ltd,Home Care - Private Contractors Payment,671.94,0.00,COMMERCIAL SUPPLIER 
 03-05-2022,Adults,Quality Healthcare Solutions Ltd t/a Kare Plus Romford,Home Care - Private Contractors Payment,673.71,0.00,COMMERCIAL SUPPLIER 
 27-05-2022,Adults,Care-Away Ltd T/A Care Support,Home Care - Private Contractors Payment,673.92,0.00,COMMERCIAL SUPPLIER 
 09-05-2022,Adults,Lodge Group Care UK Ltd,Home Care - Private Contractors Payment,674.04,0.00,COMMERCIAL SUPPLIER 
 06-05-2022,Adults,Home Support Services (Havering & Essex) Ltd,Home Care - Private Contractors Payment,674.05,0.00,COMMERCIAL SUPPLIER 
 04-05-2022,Adults,Matrix SCM Ltd,Agency Staff,674.77,0.00,COMMERCIAL SUPPLIER 
 09-05-2022,Adults,Lodge Group Care UK Ltd,Home Care - Private Contractors Payment,675.02,0.00,COMMERCIAL SUPPLIER 
 05-05-2022,Adults,Independent People Homecare Services,Home Care - Private Contractors Payment,677.54,0.00,NON COMMERCIAL SUPPLIER 
 06-05-2022,Adults,John Stanleys Care Agency Ltd,Home Care - Private Contractors Payment,677.65,0.00,COMMERCIAL SUPPLIER 
 06-05-2022,Adults,Affinia Healthcare Ltd_a,Supported Other Accommodation - Private Contractors Payment,678.96,0.00,COMMERCIAL SUPPLIER 
 20-05-2022,Adults,Morepower Ltd t/a Aqs Homecare,Home Care - Private Contractors Payment,678.96,0.00,COMMERCIAL SUPPLIER 
 24-05-2022,Adults,Outreach Support Services Ltd,Home Care - Private Contractors Payment,678.96,0.00,COMMERCIAL SUPPLIER 
 24-05-2022,Adults,Outreach Support Services Ltd,Home Care - Private Contractors Payment,678.96,0.00,COMMERCIAL SUPPLIER 
 31-05-2022,Adults,Affinia Healthcare Ltd_a,Supported Other Accommodation - Private Contractors Payment,678.96,0.00,COMMERCIAL SUPPLIER 
 09-05-2022,Adults,Home Sweet Home Care Ltd,Home Care - Private Contractors Payment,679.62,0.00,COMMERCIAL SUPPLIER 
 03-05-2022,Adults,Quality Healthcare Solutions Ltd t/a Kare Plus Romford,Home Care - Private Contractors Payment,679.94,0.00,COMMERCIAL SUPPLIER 
 09-05-2022,Adults,Lodge Group Care UK Ltd,Home Care - Private Contractors Payment,679.94,0.00,COMMERCIAL SUPPLIER 
 06-05-2022,Adults,Home Support Services (Havering & Essex) Ltd,Home Care - Private Contractors Payment,680.31,0.00,COMMERCIAL SUPPLIER 
 20-05-2022,Adults,Morepower Ltd t/a Aqs Homecare,Home Care - Private Contractors Payment,680.93,0.00,COMMERCIAL SUPPLIER 
 04-05-2022,Adults,Matrix SCM Ltd,Agency Staff,680.96,0.00,COMMERCIAL SUPPLIER 
 09-05-2022,Adults,Home Sweet Home Care Ltd,Home Care - Private Contractors Payment,682.90,0.00,COMMERCIAL SUPPLIER 
 23-05-2022,Adults,Tapestry_a.,Daycare - Private Contractors Payment,684.00,0.00,COMMERCIAL SUPPLIER 
 23-05-2022,Adults,Tapestry_a.,Daycare - Private Contractors Payment,684.00,0.00,COMMERCIAL SUPPLIER 
 23-05-2022,Adults,Tapestry_a.,Daycare - Private Contractors Payment,684.00,0.00,COMMERCIAL SUPPLIER 
 23-05-2022,Adults,Tapestry_a.,Daycare - Private Contractors Payment,684.00,0.00,COMMERCIAL SUPPLIER 
 23-05-2022,Adults,Tapestry_a.,Daycare - Private Contractors Payment,684.00,0.00,COMMERCIAL SUPPLIER 
 24-05-2022,Adults,Tapestry_a.,Daycare - Private Contractors Payment,684.00,0.00,COMMERCIAL SUPPLIER 
 24-05-2022,Adults,Tapestry_a.,Daycare - Private Contractors Payment,684.00,0.00,COMMERCIAL SUPPLIER 
 24-05-2022,Adults,Tapestry_a.,Daycare - Private Contractors Payment,684.00,0.00,COMMERCIAL SUPPLIER 
 04-05-2022,Adults,Matrix SCM Ltd,Agency Staff,684.09,0.00,COMMERCIAL SUPPLIER 
 11-05-2022,Adults,Matrix SCM Ltd,Agency Staff,685.21,0.00,COMMERCIAL SUPPLIER 
 10-05-2022,Adults,R G Care Ltd ,Daycare - Private Contractors Payment,685.71,0.00,COMMERCIAL SUPPLIER 
 06-05-2022,Adults,Gemini Assisted Living Ltd,Supported Other Accommodation - Private Contractors Payment,686.40,0.00,COMMERCIAL SUPPLIER 
 31-05-2022,Adults,Gemini Assisted Living Ltd,Supported Other Accommodation - Private Contractors Payment,686.40,0.00,COMMERCIAL SUPPLIER 
 04-05-2022,Adults,Mayflower Travel,Client Transport,688.00,0.00,COMMERCIAL SUPPLIER 
 06-05-2022,Adults,Home Support Services (Havering & Essex) Ltd,Home Care - Private Contractors Payment,688.14,0.00,COMMERCIAL SUPPLIER 
 09-05-2022,Adults,Home Sweet Home Care Ltd,Home Care - Private Contractors Payment,688.80,0.00,COMMERCIAL SUPPLIER 
 09-05-2022,Adults,Home Sweet Home Care Ltd,Home Care - Private Contractors Payment,688.80,0.00,COMMERCIAL SUPPLIER 
 13-05-2022,Adults,Cera Care Operations Ltd,Home Care - Private Contractors Payment,688.80,0.00,COMMERCIAL SUPPLIER 
 23-05-2022,Adults,Premier Carewaiting Ltd,Home Care - Private Contractors Payment,688.80,0.00,COMMERCIAL SUPPLIER 
 23-05-2022,Adults,Premier Carewaiting Ltd,Home Care - Private Contractors Payment,688.80,0.00,COMMERCIAL SUPPLIER 
 31-05-2022,Adults,Crystalize Care Services,Home Care - Private Contractors Payment,688.80,0.00,COMMERCIAL SUPPLIER 
 31-05-2022,Adults,Crystalize Care Services,Home Care - Private Contractors Payment,688.80,0.00,COMMERCIAL SUPPLIER 
 09-05-2022,Adults,Care-Away Ltd T/A Care Support,Home Care - Private Contractors Payment,690.56,0.00,COMMERCIAL SUPPLIER 
 31-05-2022,Adults,Care-Away Ltd T/A Care Support,Home Care - Private Contractors Payment,690.56,0.00,COMMERCIAL SUPPLIER 
 20-05-2022,Adults,Morepower Ltd t/a Aqs Homecare,Home Care - Private Contractors Payment,690.77,0.00,COMMERCIAL SUPPLIER 
 13-05-2022,Adults,Anytime Care 2020_a,Home Care - Private Contractors Payment,691.42,0.00,COMMERCIAL SUPPLIER 
 09-05-2022,Adults,Lodge Group Care UK Ltd,Home Care - Private Contractors Payment,691.67,0.00,COMMERCIAL SUPPLIER 
 11-05-2022,Adults,Matrix SCM Ltd,Agency Staff,692.52,0.00,COMMERCIAL SUPPLIER 
 09-05-2022,Adults,Lodge Group Care UK Ltd,Home Care - Private Contractors Payment,694.70,0.00,COMMERCIAL SUPPLIER 
 06-05-2022,Adults,Barleycroft Care Home Ltd,Residential Placements - Private Contractors Payment,695.00,0.00,COMMERCIAL SUPPLIER 
 06-05-2022,Adults,Barleycroft Care Home Ltd,Residential Placements - Private Contractors Payment,695.00,0.00,COMMERCIAL SUPPLIER 
 31-05-2022,Adults,Masumin Ltd t/s Abbeleigh House,Residential Placements - Private Contractors Payment,695.00,0.00,COMMERCIAL SUPPLIER 
 31-05-2022,Adults,Lodge Lane Care Home Limited,Residential Placements - Private Contractors Payment,695.00,0.00,COMMERCIAL SUPPLIER 
 31-05-2022,Adults,Barleycroft Care Home Ltd,Residential Placements - Private Contractors Payment,695.00,0.00,COMMERCIAL SUPPLIER 
 13-05-2022,Adults,Anytime Care 2020_a,Home Care - Private Contractors Payment,696.66,0.00,COMMERCIAL SUPPLIER 
 03-05-2022,Adults,Inclusive Care Support Limited,Supported Other Accommodation - Private Contractors Payment,698.40,0.00,COMMERCIAL SUPPLIER 
 03-05-2022,Adults,Inclusive Care Support Limited,Supported Other Accommodation - Private Contractors Payment,698.40,0.00,COMMERCIAL SUPPLIER 
 03-05-2022,Adults,Inclusive Care Support Limited,Supported Other Accommodation - Private Contractors Payment,698.40,0.00,COMMERCIAL SUPPLIER 
 03-05-2022,Adults,Inclusive Care Support Limited,Long Term Support - Community: Supported Living,698.40,0.00,COMMERCIAL SUPPLIER 
 03-05-2022,Adults,Inclusive Care Support Limited,Supported Other Accommodation - Private Contractors Payment,698.40,0.00,COMMERCIAL SUPPLIER 
 23-05-2022,Adults,London Homecare Ltd,Home Care - Private Contractors Payment,698.64,0.00,COMMERCIAL SUPPLIER 
 23-05-2022,Adults,London Homecare Ltd,Home Care - Private Contractors Payment,698.64,0.00,COMMERCIAL SUPPLIER 
 06-05-2022,Adults,Care-Away Ltd T/A Care Support,Home Care - Private Contractors Payment,698.88,0.00,COMMERCIAL SUPPLIER 
 09-05-2022,Adults,Care-Away Ltd T/A Care Support,Home Care - Private Contractors Payment,698.88,0.00,COMMERCIAL SUPPLIER 
 27-05-2022,Adults,Care-Away Ltd T/A Care Support,Home Care - Private Contractors Payment,698.88,0.00,COMMERCIAL SUPPLIER 
 27-05-2022,Adults,Care-Away Ltd T/A Care Support,Home Care - Private Contractors Payment,698.88,0.00,COMMERCIAL SUPPLIER 
 30-05-2022,Adults,Care-Away Ltd T/A Care Support,Home Care - Private Contractors Payment,698.88,0.00,COMMERCIAL SUPPLIER 
 30-05-2022,Adults,Care-Away Ltd T/A Care Support,Home Care - Private Contractors Payment,698.88,0.00,COMMERCIAL SUPPLIER 
 30-05-2022,Adults,Care-Away Ltd T/A Care Support,Home Care - Private Contractors Payment,698.88,0.00,COMMERCIAL SUPPLIER 
 31-05-2022,Adults,Care-Away Ltd T/A Care Support,Home Care - Private Contractors Payment,698.88,0.00,COMMERCIAL SUPPLIER 
 06-05-2022,Adults,Home Support Services (Havering & Essex) Ltd,Home Care - Private Contractors Payment,698.97,0.00,COMMERCIAL SUPPLIER 
 09-05-2022,Adults,Lodge Group Care UK Ltd,Home Care - Private Contractors Payment,700.28,0.00,COMMERCIAL SUPPLIER 
 09-05-2022,Adults,Home Sweet Home Care Ltd,Home Care - Private Contractors Payment,701.26,0.00,COMMERCIAL SUPPLIER 
 09-05-2022,Adults,Lodge Group Care UK Ltd,Home Care - Private Contractors Payment,703.23,0.00,COMMERCIAL SUPPLIER 
 09-05-2022,Adults,Care-Away Ltd T/A Care Support,Home Care - Private Contractors Payment,707.20,0.00,COMMERCIAL SUPPLIER 
 11-05-2022,Adults,Matrix SCM Ltd,Agency Staff,708.18,0.00,COMMERCIAL SUPPLIER 
 10-05-2022,Adults,Rosemont Care Limited,Home Care - Private Contractors Payment,708.48,0.00,COMMERCIAL SUPPLIER 
 10-05-2022,Adults,Rosemont Care Limited,Home Care - Private Contractors Payment,708.48,0.00,COMMERCIAL SUPPLIER 
 10-05-2022,Adults,Rosemont Care Limited,Home Care - Private Contractors Payment,708.48,0.00,COMMERCIAL SUPPLIER 
 23-05-2022,Adults,IJB Healthcare Ltd,Home Care - Private Contractors Payment,708.48,0.00,COMMERCIAL SUPPLIER 
 23-05-2022,Adults,IJB Healthcare Ltd,Home Care - Private Contractors Payment,708.48,0.00,COMMERCIAL SUPPLIER 
 06-05-2022,Adults,John Stanleys Care Agency Ltd,Home Care - Private Contractors Payment,709.14,0.00,COMMERCIAL SUPPLIER 
 06-05-2022,Adults,Ash Grove Residential Care Home,Residential Care Income,712.81,0.00,COMMERCIAL SUPPLIER 
 09-05-2022,Adults,Bluebird Care Havering,Home Care - Private Contractors Payment,713.16,0.00,COMMERCIAL SUPPLIER 
 11-05-2022,Adults,Matrix SCM Ltd,Agency Staff,714.35,0.00,COMMERCIAL SUPPLIER 
 13-05-2022,Adults,Cera Care Operations Ltd,Home Care - Private Contractors Payment,714.38,0.00,COMMERCIAL SUPPLIER 
 30-05-2022,Adults,Care-Away Ltd T/A Care Support,Home Care - Private Contractors Payment,715.52,0.00,COMMERCIAL SUPPLIER 
 20-05-2022,Adults,Morepower Ltd t/a Aqs Homecare,Home Care - Private Contractors Payment,716.68,0.00,COMMERCIAL SUPPLIER 
 09-05-2022,Adults,Lodge Group Care UK Ltd,Home Care - Private Contractors Payment,717.01,0.00,COMMERCIAL SUPPLIER 
 11-05-2022,Adults,Matrix SCM Ltd,Agency Staff,718.10,0.00,COMMERCIAL SUPPLIER 
 09-05-2022,Adults,Lodge Group Care UK Ltd,Home Care - Private Contractors Payment,718.32,0.00,COMMERCIAL SUPPLIER 
 13-05-2022,Adults,Anytime Care 2020_a,Home Care - Private Contractors Payment,718.53,0.00,COMMERCIAL SUPPLIER 
 09-05-2022,Adults,Home Sweet Home Care Ltd,Home Care - Private Contractors Payment,719.63,0.00,COMMERCIAL SUPPLIER 
 03-05-2022,Adults,Quality Healthcare Solutions Ltd t/a Kare Plus Romford,Home Care - Private Contractors Payment,720.94,0.00,COMMERCIAL SUPPLIER 
 31-05-2022,Adults,Barleycroft Care Home Ltd,Nursing Homes - Private Contractors Payment,722.29,0.00,COMMERCIAL SUPPLIER 
 06-05-2022,Adults,Home Support Services (Havering & Essex) Ltd,Home Care - Private Contractors Payment,722.58,0.00,COMMERCIAL SUPPLIER 
 06-05-2022,Adults,John Stanleys Care Agency Ltd,Home Care - Private Contractors Payment,722.91,0.00,COMMERCIAL SUPPLIER 
 30-05-2022,Adults,Care-Away Ltd T/A Care Support,Home Care - Private Contractors Payment,723.84,0.00,COMMERCIAL SUPPLIER 
 13-05-2022,Adults,Cera Care Operations Ltd,Home Care - Private Contractors Payment,723.90,0.00,COMMERCIAL SUPPLIER 
 13-05-2022,Adults,Cera Care Operations Ltd,Home Care - Private Contractors Payment,724.55,0.00,COMMERCIAL SUPPLIER 
 11-05-2022,Adults,Matrix SCM Ltd,Agency Staff,724.98,0.00,COMMERCIAL SUPPLIER 
 18-05-2022,Adults,Cera Care Operations Ltd,Home Care - Private Contractors Payment,725.01,0.00,COMMERCIAL SUPPLIER 
 04-05-2022,Adults,Matrix SCM Ltd,Agency Staff,725.06,0.00,COMMERCIAL SUPPLIER 
 18-05-2022,Adults,Matrix SCM Ltd,Agency Staff,725.06,0.00,COMMERCIAL SUPPLIER 
 09-05-2022,Adults,Home Sweet Home Care Ltd,Home Care - Private Contractors Payment,726.52,0.00,COMMERCIAL SUPPLIER 
 03-05-2022,Adults,Quality Healthcare Solutions Ltd t/a Kare Plus Romford,Home Care - Private Contractors Payment,727.83,0.00,COMMERCIAL SUPPLIER 
 04-05-2022,Adults,Matrix SCM Ltd,Agency Staff,728.29,0.00,COMMERCIAL SUPPLIER 
 18-05-2022,Adults,Matrix SCM Ltd,Agency Staff,728.29,0.00,COMMERCIAL SUPPLIER 
 06-05-2022,Adults,Home Support Services (Havering & Essex) Ltd,Home Care - Private Contractors Payment,730.46,0.00,COMMERCIAL SUPPLIER 
 09-05-2022,Adults,Home Sweet Home Care Ltd,Home Care - Private Contractors Payment,730.46,0.00,COMMERCIAL SUPPLIER 
 13-05-2022,Adults,Anytime Care 2020_a,Home Care - Private Contractors Payment,731.85,0.00,COMMERCIAL SUPPLIER 
 09-05-2022,Adults,Home Sweet Home Care Ltd,Home Care - Private Contractors Payment,733.41,0.00,COMMERCIAL SUPPLIER 
 09-05-2022,Adults,Home Sweet Home Care Ltd,Home Care - Private Contractors Payment,734.99,0.00,COMMERCIAL SUPPLIER 
 06-05-2022,Adults,Home Support Services (Havering & Essex) Ltd,Home Care - Private Contractors Payment,735.05,0.00,COMMERCIAL SUPPLIER 
 06-05-2022,Adults,John Stanleys Care Agency Ltd,Home Care - Private Contractors Payment,735.38,0.00,COMMERCIAL SUPPLIER 
 20-05-2022,Adults,London Care Plc_a,Home Care - Private Contractors Payment,736.03,0.00,COMMERCIAL SUPPLIER 
 09-05-2022,Adults,Lodge Group Care UK Ltd,Home Care - Private Contractors Payment,737.67,0.00,COMMERCIAL SUPPLIER 
 20-05-2022,Adults,London Care Plc_a,Home Care - Private Contractors Payment,737.67,0.00,COMMERCIAL SUPPLIER 
 06-05-2022,Adults,Sahara Care Ltd,Residential Placements - Private Contractors Payment,740.00,0.00,COMMERCIAL SUPPLIER 
 25-05-2022,Adults,Matrix SCM Ltd,Agency Staff,740.86,0.00,COMMERCIAL SUPPLIER 
 13-05-2022,Adults,Cera Care Operations Ltd,Home Care - Private Contractors Payment,740.95,0.00,COMMERCIAL SUPPLIER 
 18-05-2022,Adults,Matrix SCM Ltd,Agency Staff,741.25,0.00,COMMERCIAL SUPPLIER 
 25-05-2022,Adults,Matrix SCM Ltd,Agency Staff,741.25,0.00,COMMERCIAL SUPPLIER 
 31-05-2022,Adults,Ranc Care Homes Ltd - Romford Care Centre,Nursing Care Income,742.86,0.00,COMMERCIAL SUPPLIER 
 09-05-2022,Adults,Home Sweet Home Care Ltd,Home Care - Private Contractors Payment,744.23,0.00,COMMERCIAL SUPPLIER 
 06-05-2022,Adults,Ashgate House Ltd_a,Residential Placements - Private Contractors Payment,746.16,0.00,COMMERCIAL SUPPLIER 
 31-05-2022,Adults,Ashgate House Ltd_a,Residential Placements - Private Contractors Payment,746.16,0.00,COMMERCIAL SUPPLIER 
 11-05-2022,Adults,Prior Care Ltd_a,Home Care - Private Contractors Payment,747.18,0.00,COMMERCIAL SUPPLIER 
 30-05-2022,Adults,Care-Away Ltd T/A Care Support,Home Care - Private Contractors Payment,748.80,0.00,COMMERCIAL SUPPLIER 
 09-05-2022,Adults,Lodge Group Care UK Ltd,Home Care - Private Contractors Payment,748.82,0.00,COMMERCIAL SUPPLIER 
 18-05-2022,Adults,Matrix SCM Ltd,Agency Staff,749.94,0.00,COMMERCIAL SUPPLIER 
 09-05-2022,Adults,Care-Away Ltd T/A Care Support,Home Care - Private Contractors Payment,749.99,0.00,COMMERCIAL SUPPLIER 
 06-05-2022,Adults,Fountains Care Centre - Bondcare,Nursing Homes - Private Contractors Payment,750.00,0.00,COMMERCIAL SUPPLIER 
 06-05-2022,Adults,Ebury Court_a,Residential Placements - Private Contractors Payment,750.00,0.00,COMMERCIAL SUPPLIER 
 06-05-2022,Adults,Home Support Services (Havering & Essex) Ltd,Home Care - Private Contractors Payment,751.78,0.00,COMMERCIAL SUPPLIER 
 18-05-2022,Adults,Matrix SCM Ltd,Agency Staff,752.06,0.00,COMMERCIAL SUPPLIER 
 25-05-2022,Adults,Matrix SCM Ltd,Agency Staff,752.06,0.00,COMMERCIAL SUPPLIER 
 09-05-2022,Adults,Lodge Group Care UK Ltd,Home Care - Private Contractors Payment,753.09,0.00,COMMERCIAL SUPPLIER 
 20-05-2022,Adults,Morepower Ltd t/a Aqs Homecare,Home Care - Private Contractors Payment,753.42,0.00,COMMERCIAL SUPPLIER 
 09-05-2022,Adults,Home Sweet Home Care Ltd,Home Care - Private Contractors Payment,754.73,0.00,COMMERCIAL SUPPLIER 
 09-05-2022,Adults,Home Sweet Home Care Ltd,Home Care - Private Contractors Payment,754.73,0.00,COMMERCIAL SUPPLIER 
 18-05-2022,Adults,Matrix SCM Ltd,Agency Staff,756.00,0.00,COMMERCIAL SUPPLIER 
 04-05-2022,Adults,Matrix SCM Ltd,Agency Staff,756.36,0.00,COMMERCIAL SUPPLIER 
 11-05-2022,Adults,Matrix SCM Ltd,Agency Staff,757.11,0.00,COMMERCIAL SUPPLIER 
 04-05-2022,Adults,Matrix SCM Ltd,Agency Staff,759.85,0.00,COMMERCIAL SUPPLIER 
 04-05-2022,Adults,Matrix SCM Ltd,Agency Staff,759.85,0.00,COMMERCIAL SUPPLIER 
 25-05-2022,Adults,Matrix SCM Ltd,Agency Staff,759.85,0.00,COMMERCIAL SUPPLIER 
 18-05-2022,Adults,Matrix SCM Ltd,Agency Staff,759.86,0.00,COMMERCIAL SUPPLIER 
 13-05-2022,Adults,Cera Care Operations Ltd,Home Care - Private Contractors Payment,761.62,0.00,COMMERCIAL SUPPLIER 
 04-05-2022,Adults,Matrix SCM Ltd,Agency Staff,762.65,0.00,COMMERCIAL SUPPLIER 
 09-05-2022,Adults,Home Sweet Home Care Ltd,Home Care - Private Contractors Payment,765.88,0.00,COMMERCIAL SUPPLIER 
 20-05-2022,Adults,Morepower Ltd t/a Aqs Homecare,Home Care - Private Contractors Payment,767.52,0.00,COMMERCIAL SUPPLIER 
 06-05-2022,Adults,Ashgate House Ltd_a,Residential Placements - Private Contractors Payment,767.79,0.00,COMMERCIAL SUPPLIER 
 13-05-2022,Adults,Anytime Care 2020_a,Home Care - Private Contractors Payment,768.50,0.00,COMMERCIAL SUPPLIER 
 09-05-2022,Adults,Lodge Group Care UK Ltd,Home Care - Private Contractors Payment,768.83,0.00,COMMERCIAL SUPPLIER 
 09-05-2022,Adults,Lodge Group Care UK Ltd,Home Care - Private Contractors Payment,769.49,0.00,COMMERCIAL SUPPLIER 
 06-05-2022,Adults,John Stanleys Care Agency Ltd,Home Care - Private Contractors Payment,770.28,0.00,COMMERCIAL SUPPLIER 
 18-05-2022,Adults,Matrix SCM Ltd,Agency Staff,770.71,0.00,COMMERCIAL SUPPLIER 
 06-05-2022,Adults,Chosen Care Group Ltd,Supported Other Accommodation - Private Contractors Payment,772.60,0.00,COMMERCIAL SUPPLIER 
 31-05-2022,Adults,Chosen Care Group Ltd,Supported Other Accommodation - Private Contractors Payment,772.60,0.00,COMMERCIAL SUPPLIER 
 11-05-2022,Adults,Prior Care Ltd_a,Home Care - Private Contractors Payment,772.77,0.00,COMMERCIAL SUPPLIER 
 04-05-2022,Adults,Matrix SCM Ltd,Agency Staff,773.85,0.00,COMMERCIAL SUPPLIER 
 31-05-2022,Adults,Westminster Health Care Ltd Derham House,Respite Care - Private Contractors Payment,774.86,0.00,COMMERCIAL SUPPLIER 
 06-05-2022,Adults,Acorn Village_a,Residential Placements - Private Contractors Payment,774.92,0.00,COMMERCIAL SUPPLIER 
 31-05-2022,Adults,Acorn Village_a,Residential Placements - Private Contractors Payment,774.92,0.00,COMMERCIAL SUPPLIER 
 09-05-2022,Adults,Home Sweet Home Care Ltd,Home Care - Private Contractors Payment,775.39,0.00,COMMERCIAL SUPPLIER 
 09-05-2022,Adults,Home Sweet Home Care Ltd,Home Care - Private Contractors Payment,775.39,0.00,COMMERCIAL SUPPLIER 
 04-05-2022,Adults,Matrix SCM Ltd,Agency Staff,777.60,0.00,COMMERCIAL SUPPLIER 
 20-05-2022,Adults,Morepower Ltd t/a Aqs Homecare,Home Care - Private Contractors Payment,778.34,0.00,COMMERCIAL SUPPLIER 
 11-05-2022,Adults,Matrix SCM Ltd,Agency Staff,778.44,0.00,COMMERCIAL SUPPLIER 
 06-05-2022,Adults,Home Support Services (Havering & Essex) Ltd,Home Care - Private Contractors Payment,778.67,0.00,COMMERCIAL SUPPLIER 
 06-05-2022,Adults,Brandon House,Residential Placements - Private Contractors Payment,779.04,0.00,COMMERCIAL SUPPLIER 
 31-05-2022,Adults,Brandon House,Residential Placements - Private Contractors Payment,779.04,0.00,COMMERCIAL SUPPLIER 
 13-05-2022,Adults,Anytime Care 2020_a,Home Care - Private Contractors Payment,779.98,0.00,COMMERCIAL SUPPLIER 
 13-05-2022,Adults,Cera Care Operations Ltd,Home Care - Private Contractors Payment,780.64,0.00,COMMERCIAL SUPPLIER 
 31-05-2022,Adults,Willows Care Home - Churchgate Healthcare (Willows) Ltd,Residential Care Income,781.12,0.00,COMMERCIAL SUPPLIER 
 09-05-2022,Adults,Home Sweet Home Care Ltd,Home Care - Private Contractors Payment,781.30,0.00,COMMERCIAL SUPPLIER 
 23-05-2022,Adults,Tapestry_a.,Daycare - Private Contractors Payment,781.72,0.00,COMMERCIAL SUPPLIER 
 24-05-2022,Adults,Tapestry_a.,Daycare - Private Contractors Payment,781.72,0.00,COMMERCIAL SUPPLIER 
 06-05-2022,Adults,John Stanleys Care Agency Ltd,Home Care - Private Contractors Payment,783.26,0.00,COMMERCIAL SUPPLIER 
 20-05-2022,Adults,Morepower Ltd t/a Aqs Homecare,Home Care - Private Contractors Payment,783.26,0.00,COMMERCIAL SUPPLIER 
 20-05-2022,Adults,Morepower Ltd t/a Aqs Homecare,Home Care - Private Contractors Payment,783.26,0.00,COMMERCIAL SUPPLIER 
 03-05-2022,Adults,Quality Healthcare Solutions Ltd t/a Kare Plus Romford,Home Care - Private Contractors Payment,783.59,0.00,COMMERCIAL SUPPLIER 
 04-05-2022,Adults,Matrix SCM Ltd,Agency Staff,784.44,0.00,COMMERCIAL SUPPLIER 
 25-05-2022,Adults,Matrix SCM Ltd,Agency Staff,784.44,0.00,COMMERCIAL SUPPLIER 
 10-05-2022,Adults,EC Romford Holdings Ltd,Residential Care Income,785.20,0.00,COMMERCIAL SUPPLIER 
 20-05-2022,Adults,Personal Information ? Redacted,Home Care - Private Contractors Payment,787.20,0.00,INDIVIDUALS 
 09-05-2022,Adults,Home Sweet Home Care Ltd,Home Care - Private Contractors Payment,787.53,0.00,COMMERCIAL SUPPLIER 
 04-05-2022,Adults,Matrix SCM Ltd,Agency Staff,790.86,0.00,COMMERCIAL SUPPLIER 
 11-05-2022,Adults,Matrix SCM Ltd,Agency Staff,790.86,0.00,COMMERCIAL SUPPLIER 
 18-05-2022,Adults,Matrix SCM Ltd,Agency Staff,790.86,0.00,COMMERCIAL SUPPLIER 
 25-05-2022,Adults,Matrix SCM Ltd,Agency Staff,790.86,0.00,COMMERCIAL SUPPLIER 
 09-05-2022,Adults,Home Sweet Home Care Ltd,Home Care - Private Contractors Payment,792.45,0.00,COMMERCIAL SUPPLIER 
 09-05-2022,Adults,Home Sweet Home Care Ltd,Home Care - Private Contractors Payment,794.09,0.00,COMMERCIAL SUPPLIER 
 09-05-2022,Adults,Home Sweet Home Care Ltd,Home Care - Private Contractors Payment,794.09,0.00,COMMERCIAL SUPPLIER 
 24-05-2022,Adults,Bloomscare Ltd,Home Care - Private Contractors Payment,794.09,0.00,COMMERCIAL SUPPLIER 
 06-05-2022,Adults,Lodge Lane Care Home Limited,Respite Care - Private Contractors Payment,794.29,0.00,COMMERCIAL SUPPLIER 
 09-05-2022,Adults,Lodge Group Care UK Ltd,Home Care - Private Contractors Payment,794.74,0.00,COMMERCIAL SUPPLIER 
 04-05-2022,Adults,Matrix SCM Ltd,Agency Staff,795.96,0.00,COMMERCIAL SUPPLIER 
 24-05-2022,Adults,Bloomscare Ltd,Home Care - Private Contractors Payment,796.38,0.00,COMMERCIAL SUPPLIER 
 06-05-2022,Adults,Outlook Care - 76 Neave Crescent,Supported Other Accommodation - Private Contractors Payment,796.96,0.00,COMMERCIAL SUPPLIER 
 31-05-2022,Adults,Outlook Care - 76 Neave Crescent,Supported Other Accommodation - Private Contractors Payment,796.96,0.00,COMMERCIAL SUPPLIER 
 09-05-2022,Adults,Lodge Group Care UK Ltd,Home Care - Private Contractors Payment,797.04,0.00,COMMERCIAL SUPPLIER 
 31-05-2022,Adults,Outlook Care_a,Residential Placements - Private Contractors Payment,797.49,0.00,COMMERCIAL SUPPLIER 
 06-05-2022,Adults,Care-Away Ltd T/A Care Support,Home Care - Private Contractors Payment,798.72,0.00,COMMERCIAL SUPPLIER 
 06-05-2022,Adults,Care-Away Ltd T/A Care Support,Home Care - Private Contractors Payment,798.72,0.00,COMMERCIAL SUPPLIER 
 09-05-2022,Adults,Care-Away Ltd T/A Care Support,Home Care - Private Contractors Payment,798.72,0.00,COMMERCIAL SUPPLIER 
 09-05-2022,Adults,Care-Away Ltd T/A Care Support,Home Care - Private Contractors Payment,798.72,0.00,COMMERCIAL SUPPLIER 
 09-05-2022,Adults,Care-Away Ltd T/A Care Support,Home Care - Private Contractors Payment,798.72,0.00,COMMERCIAL SUPPLIER 
 09-05-2022,Adults,Care-Away Ltd T/A Care Support,Home Care - Private Contractors Payment,798.72,0.00,COMMERCIAL SUPPLIER 
 03-05-2022,Adults,Quality Healthcare Solutions Ltd t/a Kare Plus Romford,Home Care - Private Contractors Payment,799.66,0.00,COMMERCIAL SUPPLIER 
 09-05-2022,Adults,Home Sweet Home Care Ltd,Home Care - Private Contractors Payment,801.30,0.00,COMMERCIAL SUPPLIER 
 11-05-2022,Adults,Matrix SCM Ltd,Agency Staff,803.22,0.00,COMMERCIAL SUPPLIER 
 11-05-2022,Adults,Matrix SCM Ltd,Agency Staff,805.34,0.00,COMMERCIAL SUPPLIER 
 10-05-2022,Adults,Harrich Builders Ltd,"Maintenance - Equipment, Furniture And Materials",808.00,0.00,CIS 
 06-05-2022,Adults,John Stanleys Care Agency Ltd,Home Care - Private Contractors Payment,808.85,0.00,COMMERCIAL SUPPLIER 
 09-05-2022,Adults,Lodge Group Care UK Ltd,Home Care - Private Contractors Payment,810.16,0.00,COMMERCIAL SUPPLIER 
 09-05-2022,Adults,Home Sweet Home Care Ltd,Home Care - Private Contractors Payment,813.44,0.00,COMMERCIAL SUPPLIER 
 13-05-2022,Adults,Cera Care Operations Ltd,Home Care - Private Contractors Payment,814.42,0.00,COMMERCIAL SUPPLIER 
 30-05-2022,Adults,Care-Away Ltd T/A Care Support,Home Care - Private Contractors Payment,815.36,0.00,COMMERCIAL SUPPLIER 
 06-05-2022,Adults,Home Support Services (Havering & Essex) Ltd,Home Care - Private Contractors Payment,816.68,0.00,COMMERCIAL SUPPLIER 
 10-05-2022,Adults,Rosemont Care Limited,Home Care - Private Contractors Payment,816.72,0.00,COMMERCIAL SUPPLIER 
 10-05-2022,Adults,Rosemont Care Limited,Home Care - Private Contractors Payment,816.72,0.00,COMMERCIAL SUPPLIER 
 24-05-2022,Adults,Outreach Support Services Ltd,Home Care - Private Contractors Payment,816.72,0.00,COMMERCIAL SUPPLIER 
 24-05-2022,Adults,Outreach Support Services Ltd,Home Care - Private Contractors Payment,816.72,0.00,COMMERCIAL SUPPLIER 
 06-05-2022,Adults,John Stanleys Care Agency Ltd,Home Care - Private Contractors Payment,818.03,0.00,COMMERCIAL SUPPLIER 
 18-05-2022,Adults,Matrix SCM Ltd,Agency Staff,818.07,0.00,COMMERCIAL SUPPLIER 
 25-05-2022,Adults,Matrix SCM Ltd,Agency Staff,818.07,0.00,COMMERCIAL SUPPLIER 
 04-05-2022,Adults,The Learning Centre (TLC Romford) Ltd,Daycare - Private Contractors Payment,820.80,0.00,COMMERCIAL SUPPLIER 
 09-05-2022,Adults,Home Sweet Home Care Ltd,Home Care - Private Contractors Payment,820.98,0.00,COMMERCIAL SUPPLIER 
 20-05-2022,Adults,Morepower Ltd t/a Aqs Homecare,Home Care - Private Contractors Payment,821.97,0.00,COMMERCIAL SUPPLIER 
 09-05-2022,Adults,Home Sweet Home Care Ltd,Home Care - Private Contractors Payment,822.95,0.00,COMMERCIAL SUPPLIER 
 09-05-2022,Adults,Home Sweet Home Care Ltd,Home Care - Private Contractors Payment,822.95,0.00,COMMERCIAL SUPPLIER 
 09-05-2022,Adults,Lodge Group Care UK Ltd,Home Care - Private Contractors Payment,823.28,0.00,COMMERCIAL SUPPLIER 
 31-05-2022,Adults,Access UK Ltd,Private Contractors Payment - Other,824.50,0.00,COMMERCIAL SUPPLIER 
 09-05-2022,Adults,Lodge Group Care UK Ltd,Home Care - Private Contractors Payment,825.13,0.00,COMMERCIAL SUPPLIER 
 09-05-2022,Adults,Home Sweet Home Care Ltd,Home Care - Private Contractors Payment,825.90,0.00,COMMERCIAL SUPPLIER 
 23-05-2022,Adults,Premier Carewaiting Ltd,Home Care - Private Contractors Payment,826.56,0.00,COMMERCIAL SUPPLIER 
 23-05-2022,Adults,Premier Carewaiting Ltd,Home Care - Private Contractors Payment,826.56,0.00,COMMERCIAL SUPPLIER 
 23-05-2022,Adults,Premier Carewaiting Ltd,Home Care - Private Contractors Payment,826.56,0.00,COMMERCIAL SUPPLIER 
 23-05-2022,Adults,Premier Carewaiting Ltd,Home Care - Private Contractors Payment,826.56,0.00,COMMERCIAL SUPPLIER 
 24-05-2022,Adults,Outreach Support Services Ltd,Home Care - Private Contractors Payment,826.56,0.00,COMMERCIAL SUPPLIER 
 24-05-2022,Adults,Outreach Support Services Ltd,Home Care - Private Contractors Payment,826.56,0.00,COMMERCIAL SUPPLIER 
 06-05-2022,Adults,Care-Away Ltd T/A Care Support,Home Care - Private Contractors Payment,827.25,0.00,COMMERCIAL SUPPLIER 
 06-05-2022,Adults,Care-Away Ltd T/A Care Support,Home Care - Private Contractors Payment,827.25,0.00,COMMERCIAL SUPPLIER 
 06-05-2022,Adults,Care-Away Ltd T/A Care Support,Home Care - Private Contractors Payment,827.25,0.00,COMMERCIAL SUPPLIER 
 06-05-2022,Adults,Lukka Care Homes Ltd - Ravenscourt,Nursing Care Income,829.40,0.00,COMMERCIAL SUPPLIER 
 09-05-2022,Adults,Home Sweet Home Care Ltd,Home Care - Private Contractors Payment,830.50,0.00,COMMERCIAL SUPPLIER 
 09-05-2022,Adults,Home Sweet Home Care Ltd,Home Care - Private Contractors Payment,830.82,0.00,COMMERCIAL SUPPLIER 
 13-05-2022,Adults,Anytime Care 2020_a,Home Care - Private Contractors Payment,831.15,0.00,COMMERCIAL SUPPLIER 
 06-05-2022,Adults,Home Support Services (Havering & Essex) Ltd,Home Care - Private Contractors Payment,831.96,0.00,COMMERCIAL SUPPLIER 
 06-05-2022,Adults,Care-Away Ltd T/A Care Support,Home Care - Private Contractors Payment,832.00,0.00,COMMERCIAL SUPPLIER 
 18-05-2022,Adults,Matrix SCM Ltd,Agency Staff,834.54,0.00,COMMERCIAL SUPPLIER 
 06-05-2022,Adults,One Tree Estates Ltd t/a Ashbrook Nursing Home,Nursing Homes - Private Contractors Payment,835.71,0.00,COMMERCIAL SUPPLIER 
 31-05-2022,Adults,One Tree Estates Ltd t/a Ashbrook Nursing Home,Nursing Homes - Private Contractors Payment,835.71,0.00,COMMERCIAL SUPPLIER 
 09-05-2022,Adults,Home Sweet Home Care Ltd,Home Care - Private Contractors Payment,835.74,0.00,COMMERCIAL SUPPLIER 
 09-05-2022,Adults,Lodge Group Care UK Ltd,Home Care - Private Contractors Payment,838.37,0.00,COMMERCIAL SUPPLIER 
 04-05-2022,Adults,Matrix SCM Ltd,Agency Staff,839.89,0.00,COMMERCIAL SUPPLIER 
 09-05-2022,Adults,Lodge Group Care UK Ltd,Home Care - Private Contractors Payment,840.99,0.00,COMMERCIAL SUPPLIER 
 09-05-2022,Adults,Lodge Group Care UK Ltd,Home Care - Private Contractors Payment,843.29,0.00,COMMERCIAL SUPPLIER 
 04-05-2022,Adults,Matrix SCM Ltd,Agency Staff,844.93,0.00,COMMERCIAL SUPPLIER 
 09-05-2022,Adults,Home Sweet Home Care Ltd,Home Care - Private Contractors Payment,845.26,0.00,COMMERCIAL SUPPLIER 
 09-05-2022,Adults,Home Sweet Home Care Ltd,Home Care - Private Contractors Payment,845.58,0.00,COMMERCIAL SUPPLIER 
 09-05-2022,Adults,Lodge Group Care UK Ltd,Home Care - Private Contractors Payment,846.24,0.00,COMMERCIAL SUPPLIER 
 23-05-2022,Adults,IJB Healthcare Ltd,Home Care - Private Contractors Payment,846.24,0.00,COMMERCIAL SUPPLIER 
 23-05-2022,Adults,IJB Healthcare Ltd,Home Care - Private Contractors Payment,846.24,0.00,COMMERCIAL SUPPLIER 
 04-05-2022,Adults,Matrix SCM Ltd,Agency Staff,847.36,0.00,COMMERCIAL SUPPLIER 
 04-05-2022,Adults,Matrix SCM Ltd,Agency Staff,847.36,0.00,COMMERCIAL SUPPLIER 
 18-05-2022,Adults,Matrix SCM Ltd,Agency Staff,847.36,0.00,COMMERCIAL SUPPLIER 
 25-05-2022,Adults,Matrix SCM Ltd,Agency Staff,847.36,0.00,COMMERCIAL SUPPLIER 
 31-05-2022,Adults,Care-Away Ltd T/A Care Support,Private Contractors Payment - Other,848.64,0.00,COMMERCIAL SUPPLIER 
 09-05-2022,Adults,Home Sweet Home Care Ltd,Home Care - Private Contractors Payment,849.19,0.00,COMMERCIAL SUPPLIER 
 09-05-2022,Adults,Home Sweet Home Care Ltd,Home Care - Private Contractors Payment,849.19,0.00,COMMERCIAL SUPPLIER 
 09-05-2022,Adults,Home Sweet Home Care Ltd,Home Care - Private Contractors Payment,850.83,0.00,COMMERCIAL SUPPLIER 
 09-05-2022,Adults,Home Sweet Home Care Ltd,Home Care - Private Contractors Payment,850.83,0.00,COMMERCIAL SUPPLIER 
 13-05-2022,Adults,Cera Care Operations Ltd,Home Care - Private Contractors Payment,851.82,0.00,COMMERCIAL SUPPLIER 
 11-05-2022,Adults,Matrix SCM Ltd,Agency Staff,853.00,0.00,COMMERCIAL SUPPLIER 
 06-05-2022,Adults,Topaz Care and Support Co Ltd,Supported Other Accommodation - Private Contractors Payment,854.20,0.00,COMMERCIAL SUPPLIER 
 31-05-2022,Adults,Topaz Care and Support Co Ltd,Supported Other Accommodation - Private Contractors Payment,854.20,0.00,COMMERCIAL SUPPLIER 
 11-05-2022,Adults,Matrix SCM Ltd,Agency Staff,854.24,0.00,COMMERCIAL SUPPLIER 
 09-05-2022,Adults,Home Sweet Home Care Ltd,Home Care - Private Contractors Payment,857.06,0.00,COMMERCIAL SUPPLIER 
 09-05-2022,Adults,Home Sweet Home Care Ltd,Home Care - Private Contractors Payment,857.72,0.00,COMMERCIAL SUPPLIER 
 04-05-2022,Adults,Matrix SCM Ltd,Agency Staff,859.68,0.00,COMMERCIAL SUPPLIER 
 18-05-2022,Adults,Matrix SCM Ltd,Agency Staff,859.68,0.00,COMMERCIAL SUPPLIER 
 25-05-2022,Adults,Matrix SCM Ltd,Agency Staff,859.68,0.00,COMMERCIAL SUPPLIER 
 23-05-2022,Adults,Eastway Care Ltd_a,Daycare - Private Contractors Payment,860.00,0.00,COMMERCIAL SUPPLIER 
 06-05-2022,Adults,John Stanleys Care Agency Ltd,Home Care - Private Contractors Payment,860.02,0.00,COMMERCIAL SUPPLIER 
 09-05-2022,Adults,Lodge Group Care UK Ltd,Home Care - Private Contractors Payment,861.13,0.00,COMMERCIAL SUPPLIER 
 09-05-2022,Adults,Home Sweet Home Care Ltd,Home Care - Private Contractors Payment,862.31,0.00,COMMERCIAL SUPPLIER 
 09-05-2022,Adults,Lodge Group Care UK Ltd,Home Care - Private Contractors Payment,863.30,0.00,COMMERCIAL SUPPLIER 
 09-05-2022,Adults,Lodge Group Care UK Ltd,Home Care - Private Contractors Payment,863.95,0.00,COMMERCIAL SUPPLIER 
 27-05-2022,Adults,Care-Away Ltd T/A Care Support,Home Care - Private Contractors Payment,865.28,0.00,COMMERCIAL SUPPLIER 
 06-05-2022,Adults,John Stanleys Care Agency Ltd,Home Care - Private Contractors Payment,865.92,0.00,COMMERCIAL SUPPLIER 
 13-05-2022,Adults,Cera Care Operations Ltd,Home Care - Private Contractors Payment,865.92,0.00,COMMERCIAL SUPPLIER 
 09-05-2022,Adults,Home Sweet Home Care Ltd,Home Care - Private Contractors Payment,866.25,0.00,COMMERCIAL SUPPLIER 
 13-05-2022,Adults,Cera Care Operations Ltd,Home Care - Private Contractors Payment,866.90,0.00,COMMERCIAL SUPPLIER 
 04-05-2022,Adults,Matrix SCM Ltd,Agency Staff,869.73,0.00,COMMERCIAL SUPPLIER 
 06-05-2022,Adults,Care-Away Ltd T/A Care Support,Home Care - Private Contractors Payment,870.03,0.00,COMMERCIAL SUPPLIER 
 09-05-2022,Adults,Care-Away Ltd T/A Care Support,Home Care - Private Contractors Payment,870.03,0.00,COMMERCIAL SUPPLIER 
 09-05-2022,Adults,Home Sweet Home Care Ltd,Home Care - Private Contractors Payment,872.48,0.00,COMMERCIAL SUPPLIER 
 20-05-2022,Adults,Morepower Ltd t/a Aqs Homecare,Home Care - Private Contractors Payment,873.79,0.00,COMMERCIAL SUPPLIER 
 20-05-2022,Adults,Morepower Ltd t/a Aqs Homecare,Home Care - Private Contractors Payment,873.79,0.00,COMMERCIAL SUPPLIER 
 09-05-2022,Adults,Home Sweet Home Care Ltd,Home Care - Private Contractors Payment,874.78,0.00,COMMERCIAL SUPPLIER 
 20-05-2022,Adults,Morepower Ltd t/a Aqs Homecare,Home Care - Private Contractors Payment,875.43,0.00,COMMERCIAL SUPPLIER 
 20-05-2022,Adults,Morepower Ltd t/a Aqs Homecare,Home Care - Private Contractors Payment,875.43,0.00,COMMERCIAL SUPPLIER 
 09-05-2022,Adults,Home Sweet Home Care Ltd,Home Care - Private Contractors Payment,876.74,0.00,COMMERCIAL SUPPLIER 
 09-05-2022,Adults,Lodge Group Care UK Ltd,Home Care - Private Contractors Payment,877.69,0.00,COMMERCIAL SUPPLIER 
 09-05-2022,Adults,Home Sweet Home Care Ltd,Home Care - Private Contractors Payment,878.71,0.00,COMMERCIAL SUPPLIER 
 11-05-2022,Adults,Prior Care Ltd_a,Home Care - Private Contractors Payment,880.29,0.00,COMMERCIAL SUPPLIER 
 06-05-2022,Adults,Ebony Health Care Services Limited,Supported Other Accommodation - Private Contractors Payment,881.48,0.00,COMMERCIAL SUPPLIER 
 31-05-2022,Adults,Ebony Health Care Services Limited,Supported Other Accommodation - Private Contractors Payment,881.48,0.00,COMMERCIAL SUPPLIER 
 18-05-2022,Adults,Matrix SCM Ltd,Agency Staff,882.42,0.00,COMMERCIAL SUPPLIER 
 25-05-2022,Adults,Matrix SCM Ltd,Agency Staff,882.42,0.00,COMMERCIAL SUPPLIER 
 09-05-2022,Adults,Home Sweet Home Care Ltd,Home Care - Private Contractors Payment,883.96,0.00,COMMERCIAL SUPPLIER 
 25-05-2022,Adults,Matrix SCM Ltd,Agency Staff,885.60,0.00,COMMERCIAL SUPPLIER 
 09-05-2022,Adults,Lodge Group Care UK Ltd,Home Care - Private Contractors Payment,888.81,0.00,COMMERCIAL SUPPLIER 
 11-05-2022,Adults,Prior Care Ltd_a,Home Care - Private Contractors Payment,888.83,0.00,COMMERCIAL SUPPLIER 
 06-05-2022,Adults,Chosen Care Group Ltd,Supported Other Accommodation - Private Contractors Payment,891.60,0.00,COMMERCIAL SUPPLIER 
 31-05-2022,Adults,Chosen Care Group Ltd,Supported Other Accommodation - Private Contractors Payment,891.60,0.00,COMMERCIAL SUPPLIER 
 13-05-2022,Adults,Cera Care Operations Ltd,Home Care - Private Contractors Payment,892.16,0.00,COMMERCIAL SUPPLIER 
 18-05-2022,Adults,Matrix SCM Ltd,Agency Staff,892.36,0.00,COMMERCIAL SUPPLIER 
 25-05-2022,Adults,Matrix SCM Ltd,Agency Staff,892.36,0.00,COMMERCIAL SUPPLIER 
 18-05-2022,Adults,Matrix SCM Ltd,Agency Staff,893.32,0.00,COMMERCIAL SUPPLIER 
 06-05-2022,Adults,Barleycroft Care Home Ltd,Residential Placements - Private Contractors Payment,893.57,0.00,COMMERCIAL SUPPLIER 
 31-05-2022,Adults,Barleycroft Care Home Ltd,Residential Placements - Private Contractors Payment,893.57,0.00,COMMERCIAL SUPPLIER 
 11-05-2022,Adults,Prior Care Ltd_a,Home Care - Private Contractors Payment,896.10,0.00,COMMERCIAL SUPPLIER 
 09-05-2022,Adults,Care-Away Ltd T/A Care Support,Home Care - Private Contractors Payment,898.56,0.00,COMMERCIAL SUPPLIER 
 09-05-2022,Adults,Care-Away Ltd T/A Care Support,Home Care - Private Contractors Payment,898.56,0.00,COMMERCIAL SUPPLIER 
 06-05-2022,Adults,John Stanleys Care Agency Ltd,Home Care - Private Contractors Payment,898.72,0.00,COMMERCIAL SUPPLIER 
 20-05-2022,Adults,Morepower Ltd t/a Aqs Homecare,Home Care - Private Contractors Payment,899.05,0.00,COMMERCIAL SUPPLIER 
 04-05-2022,Adults,Matrix SCM Ltd,Agency Staff,900.45,0.00,COMMERCIAL SUPPLIER 
 06-05-2022,Adults,Home Support Services (Havering & Essex) Ltd,Home Care - Private Contractors Payment,900.90,0.00,COMMERCIAL SUPPLIER 
 09-05-2022,Adults,Lodge Group Care UK Ltd,Home Care - Private Contractors Payment,901.05,0.00,COMMERCIAL SUPPLIER 
 13-05-2022,Adults,Anytime Care 2020_a,Home Care - Private Contractors Payment,901.34,0.00,COMMERCIAL SUPPLIER 
 18-05-2022,Adults,Matrix SCM Ltd,Agency Staff,901.35,0.00,COMMERCIAL SUPPLIER 
 09-05-2022,Adults,Home Sweet Home Care Ltd,Home Care - Private Contractors Payment,902.66,0.00,COMMERCIAL SUPPLIER 
 06-05-2022,Adults,Pathways Care Group Ltd,Residential Placements - Private Contractors Payment,904.04,0.00,COMMERCIAL SUPPLIER 
 31-05-2022,Adults,Pathways Care Group Ltd,Residential Placements - Private Contractors Payment,904.04,0.00,COMMERCIAL SUPPLIER 
 18-05-2022,Adults,Matrix SCM Ltd,Agency Staff,904.29,0.00,COMMERCIAL SUPPLIER 
 09-05-2022,Adults,Home Sweet Home Care Ltd,Home Care - Private Contractors Payment,904.95,0.00,COMMERCIAL SUPPLIER 
 09-05-2022,Adults,Lodge Group Care UK Ltd,Home Care - Private Contractors Payment,906.59,0.00,COMMERCIAL SUPPLIER 
 11-05-2022,Adults,Matrix SCM Ltd,Agency Staff,909.44,0.00,COMMERCIAL SUPPLIER 
 06-05-2022,Adults,Ash Grove Residential Care Home,Residential Placements - Private Contractors Payment,910.00,0.00,COMMERCIAL SUPPLIER 
 23-05-2022,Adults,Tapestry_a.,Daycare - Private Contractors Payment,912.00,0.00,COMMERCIAL SUPPLIER 
 23-05-2022,Adults,Tapestry_a.,Daycare - Private Contractors Payment,912.00,0.00,COMMERCIAL SUPPLIER 
 24-05-2022,Adults,Tapestry_a.,Daycare - Private Contractors Payment,912.00,0.00,COMMERCIAL SUPPLIER 
 03-05-2022,Adults,Treal Care Limited,Home Care - Private Contractors Payment,915.00,0.00,COMMERCIAL SUPPLIER 
 10-05-2022,Adults,Rosemont Care Limited,Home Care - Private Contractors Payment,915.12,0.00,COMMERCIAL SUPPLIER 
 10-05-2022,Adults,Rosemont Care Limited,Home Care - Private Contractors Payment,915.12,0.00,COMMERCIAL SUPPLIER 
 06-05-2022,Adults,Outlook Care - 4 Peel Way,Supported Other Accommodation - Private Contractors Payment,917.60,0.00,COMMERCIAL SUPPLIER 
 31-05-2022,Adults,Outlook Care - 4 Peel Way,Supported Other Accommodation - Private Contractors Payment,917.60,0.00,COMMERCIAL SUPPLIER 
 06-05-2022,Adults,Omega Elifar Ltd,Residential Placements - Private Contractors Payment,918.40,0.00,COMMERCIAL SUPPLIER 
 31-05-2022,Adults,Omega Elifar Ltd,Residential Placements - Private Contractors Payment,918.40,0.00,COMMERCIAL SUPPLIER 
 11-05-2022,Adults,Matrix SCM Ltd,Agency Staff,920.00,0.00,COMMERCIAL SUPPLIER 
 25-05-2022,Adults,Matrix SCM Ltd,Agency Staff,921.84,0.00,COMMERCIAL SUPPLIER 
 20-05-2022,Adults,Morepower Ltd t/a Aqs Homecare,Home Care - Private Contractors Payment,923.32,0.00,COMMERCIAL SUPPLIER 
 31-05-2022,Adults,DMP Healthcare (Heatherbrook) Ltd,Nursing Homes - Private Contractors Payment,924.00,0.00,NON COMMERCIAL SUPPLIER 
 06-05-2022,Adults,Home Support Services (Havering & Essex) Ltd,Home Care - Private Contractors Payment,924.60,0.00,COMMERCIAL SUPPLIER 
 20-05-2022,Adults,London Care Plc_a,Home Care - Private Contractors Payment,925.62,0.00,COMMERCIAL SUPPLIER 
 11-05-2022,Adults,Matrix SCM Ltd,Agency Staff,928.00,0.00,COMMERCIAL SUPPLIER 
 09-05-2022,Adults,Lodge Group Care UK Ltd,Home Care - Private Contractors Payment,928.26,0.00,COMMERCIAL SUPPLIER 
 04-05-2022,Adults,Action First Assessments Ltd,Private Contractors Payment - Other,930.00,0.00,COMMERCIAL SUPPLIER 
 11-05-2022,Adults,Action First Assessments Ltd,Private Contractors Payment - Other,930.00,0.00,COMMERCIAL SUPPLIER 
 11-05-2022,Adults,Action First Assessments Ltd,Private Contractors Payment - Other,930.00,0.00,COMMERCIAL SUPPLIER 
 31-05-2022,Adults,DMP Healthcare (Heatherbrook) Ltd,Nursing Homes - Private Contractors Payment,930.00,0.00,NON COMMERCIAL SUPPLIER 
 31-05-2022,Adults,DMP Healthcare (Heatherbrook) Ltd,Nursing Homes - Private Contractors Payment,930.00,0.00,NON COMMERCIAL SUPPLIER 
 31-05-2022,Adults,DMP Healthcare (Heatherbrook) Ltd,Nursing Homes - Private Contractors Payment,930.00,0.00,NON COMMERCIAL SUPPLIER 
 30-05-2022,Adults,Care-Away Ltd T/A Care Support,Home Care - Private Contractors Payment,931.84,0.00,COMMERCIAL SUPPLIER 
 30-05-2022,Adults,Care-Away Ltd T/A Care Support,Home Care - Private Contractors Payment,931.84,0.00,COMMERCIAL SUPPLIER 
 31-05-2022,Adults,Care-Away Ltd T/A Care Support,Home Care - Private Contractors Payment,931.84,0.00,COMMERCIAL SUPPLIER 
 31-05-2022,Adults,Care-Away Ltd T/A Care Support,Home Care - Private Contractors Payment,931.84,0.00,COMMERCIAL SUPPLIER 
 31-05-2022,Adults,Care-Away Ltd T/A Care Support,Home Care - Private Contractors Payment,931.84,0.00,COMMERCIAL SUPPLIER 
 31-05-2022,Adults,Care-Away Ltd T/A Care Support,Home Care - Private Contractors Payment,931.84,0.00,COMMERCIAL SUPPLIER 
 24-05-2022,Adults,Outreach Support Services Ltd,Home Care - Private Contractors Payment,934.80,0.00,COMMERCIAL SUPPLIER 
 10-05-2022,Adults,EC Romford Holdings Ltd,Residential Placements - Private Contractors Payment,937.14,0.00,COMMERCIAL SUPPLIER 
 10-05-2022,Adults,EC Romford Holdings Ltd,Residential Placements - Private Contractors Payment,937.14,0.00,COMMERCIAL SUPPLIER 
 10-05-2022,Adults,EC Romford Holdings Ltd,Residential Placements - Private Contractors Payment,937.14,0.00,COMMERCIAL SUPPLIER 
 09-05-2022,Adults,Home Sweet Home Care Ltd,Home Care - Private Contractors Payment,940.05,0.00,COMMERCIAL SUPPLIER 
 09-05-2022,Adults,Home Sweet Home Care Ltd,Home Care - Private Contractors Payment,943.33,0.00,COMMERCIAL SUPPLIER 
 11-05-2022,Adults,Matrix SCM Ltd,Agency Staff,943.59,0.00,COMMERCIAL SUPPLIER 
 09-05-2022,Adults,Home Sweet Home Care Ltd,Home Care - Private Contractors Payment,944.64,0.00,COMMERCIAL SUPPLIER 
 09-05-2022,Adults,Home Sweet Home Care Ltd,Home Care - Private Contractors Payment,944.64,0.00,COMMERCIAL SUPPLIER 
 10-05-2022,Adults,Rosemont Care Limited,Home Care - Private Contractors Payment,944.64,0.00,COMMERCIAL SUPPLIER 
 10-05-2022,Adults,Rosemont Care Limited,Home Care - Private Contractors Payment,944.64,0.00,COMMERCIAL SUPPLIER 
 10-05-2022,Adults,Rosemont Care Limited,Home Care - Private Contractors Payment,944.64,0.00,COMMERCIAL SUPPLIER 
 10-05-2022,Adults,Rosemont Care Limited,Home Care - Private Contractors Payment,944.64,0.00,COMMERCIAL SUPPLIER 
 10-05-2022,Adults,Rosemont Care Limited,Home Care - Private Contractors Payment,944.64,0.00,COMMERCIAL SUPPLIER 
 10-05-2022,Adults,Rosemont Care Limited,Home Care - Private Contractors Payment,944.64,0.00,COMMERCIAL SUPPLIER 
 10-05-2022,Adults,Rosemont Care Limited,Home Care - Private Contractors Payment,944.64,0.00,COMMERCIAL SUPPLIER 
 10-05-2022,Adults,Rosemont Care Limited,Home Care - Private Contractors Payment,944.64,0.00,COMMERCIAL SUPPLIER 
 11-05-2022,Adults,Crystalize Care Services,Home Care - Private Contractors Payment,944.64,0.00,COMMERCIAL SUPPLIER 
 11-05-2022,Adults,Crystalize Care Services,Home Care - Private Contractors Payment,944.64,0.00,COMMERCIAL SUPPLIER 
 13-05-2022,Adults,North London Community Care Agency,Home Care - Private Contractors Payment,944.64,0.00,COMMERCIAL SUPPLIER 
 13-05-2022,Adults,North London Community Care Agency,Home Care - Private Contractors Payment,944.64,0.00,COMMERCIAL SUPPLIER 
 31-05-2022,Adults,R M Complete Services Ltd,Cleaning Services,950.00,0.00,CIS 
 11-05-2022,Adults,Prior Care Ltd_a,Home Care - Private Contractors Payment,950.68,0.00,COMMERCIAL SUPPLIER 
 18-05-2022,Adults,Matrix SCM Ltd,Agency Staff,951.33,0.00,COMMERCIAL SUPPLIER 
 24-05-2022,Adults,Outreach Support Services Ltd,Home Care - Private Contractors Payment,954.48,0.00,COMMERCIAL SUPPLIER 
 03-05-2022,Adults,Telsolutions Ltd,Internet Costs,956.76,0.00,COMMERCIAL SUPPLIER 
 04-05-2022,Adults,Matrix SCM Ltd,Agency Staff,960.25,0.00,COMMERCIAL SUPPLIER 
 18-05-2022,Adults,Matrix SCM Ltd,Agency Staff,960.25,0.00,COMMERCIAL SUPPLIER 
 06-05-2022,Adults,2 Peel Way - Outlook Care,Supported Other Accommodation - Private Contractors Payment,963.92,0.00,NON COMMERCIAL SUPPLIER 
 31-05-2022,Adults,2 Peel Way - Outlook Care,Supported Other Accommodation - Private Contractors Payment,963.92,0.00,NON COMMERCIAL SUPPLIER 
 11-05-2022,Adults,Matrix SCM Ltd,Agency Staff,964.29,0.00,COMMERCIAL SUPPLIER 
 06-05-2022,Adults,IECC Care,Supported Other Accommodation - Private Contractors Payment,964.32,0.00,COMMERCIAL SUPPLIER 
 31-05-2022,Adults,IECC Care,Supported Other Accommodation - Private Contractors Payment,964.32,0.00,COMMERCIAL SUPPLIER 
 11-05-2022,Adults,Matrix SCM Ltd,Agency Staff,964.84,0.00,COMMERCIAL SUPPLIER 
 18-05-2022,Adults,Matrix SCM Ltd,Agency Staff,964.84,0.00,COMMERCIAL SUPPLIER 
 30-05-2022,Adults,Care-Away Ltd T/A Care Support,Home Care - Private Contractors Payment,965.12,0.00,COMMERCIAL SUPPLIER 
 11-05-2022,Adults,Matrix SCM Ltd,Agency Staff,968.02,0.00,COMMERCIAL SUPPLIER 
 11-05-2022,Adults,Matrix SCM Ltd,Agency Staff,968.04,0.00,COMMERCIAL SUPPLIER 
 11-05-2022,Adults,Matrix SCM Ltd,Agency Staff,968.04,0.00,COMMERCIAL SUPPLIER 
 31-05-2022,Adults,Rosewood Care Home,Respite Care - Private Contractors Payment,968.57,0.00,COMMERCIAL SUPPLIER 
 06-05-2022,Adults,Ashgate House Ltd_a,Residential Placements - Private Contractors Payment,969.84,0.00,COMMERCIAL SUPPLIER 
 31-05-2022,Adults,Ebury Court_a,Residential Placements - Private Contractors Payment,972.00,0.00,COMMERCIAL SUPPLIER 
 04-05-2022,Adults,Matrix SCM Ltd,Agency Staff,973.60,0.00,COMMERCIAL SUPPLIER 
 18-05-2022,Adults,Matrix SCM Ltd,Agency Staff,973.60,0.00,COMMERCIAL SUPPLIER 
 25-05-2022,Adults,Matrix SCM Ltd,Agency Staff,973.60,0.00,COMMERCIAL SUPPLIER 
 06-05-2022,Adults,Fountains Care Centre - Bondcare,Residential Placements - Private Contractors Payment,974.29,0.00,COMMERCIAL SUPPLIER 
 06-05-2022,Adults,GCH - Hillside Nursing Home,Nursing Homes - Private Contractors Payment,975.00,0.00,COMMERCIAL SUPPLIER 
 09-05-2022,Adults,Lodge Group Care UK Ltd,Home Care - Private Contractors Payment,975.56,0.00,COMMERCIAL SUPPLIER 
 09-05-2022,Adults,Home Sweet Home Care Ltd,Home Care - Private Contractors Payment,975.80,0.00,COMMERCIAL SUPPLIER 
 24-05-2022,Adults,Tapestry_a.,Daycare - Private Contractors Payment,977.15,0.00,COMMERCIAL SUPPLIER 
 24-05-2022,Adults,Tapestry_a.,Daycare - Private Contractors Payment,977.15,0.00,COMMERCIAL SUPPLIER 
 24-05-2022,Adults,Tapestry_a.,Daycare - Private Contractors Payment,977.15,0.00,COMMERCIAL SUPPLIER 
 11-05-2022,Adults,Prior Care Ltd_a,Home Care - Private Contractors Payment,979.30,0.00,COMMERCIAL SUPPLIER 
 09-05-2022,Adults,Home Sweet Home Care Ltd,Home Care - Private Contractors Payment,980.06,0.00,COMMERCIAL SUPPLIER 
 06-05-2022,Adults,Home Support Services (Havering & Essex) Ltd,Home Care - Private Contractors Payment,983.40,0.00,COMMERCIAL SUPPLIER 
 09-05-2022,Adults,Lodge Group Care UK Ltd,Home Care - Private Contractors Payment,984.32,0.00,COMMERCIAL SUPPLIER 
 11-05-2022,Adults,Matrix SCM Ltd,Agency Staff,984.60,0.00,COMMERCIAL SUPPLIER 
 20-05-2022,Adults,Morepower Ltd t/a Aqs Homecare,Home Care - Private Contractors Payment,987.94,0.00,COMMERCIAL SUPPLIER 
 20-05-2022,Adults,Morepower Ltd t/a Aqs Homecare,Home Care - Private Contractors Payment,987.94,0.00,COMMERCIAL SUPPLIER 
 06-05-2022,Adults,John Stanleys Care Agency Ltd,Home Care - Private Contractors Payment,990.89,0.00,COMMERCIAL SUPPLIER 
 11-05-2022,Adults,Matrix SCM Ltd,Agency Staff,991.30,0.00,COMMERCIAL SUPPLIER 
 25-05-2022,Adults,Matrix SCM Ltd,Agency Staff,991.30,0.00,COMMERCIAL SUPPLIER 
 09-05-2022,Adults,Lodge Group Care UK Ltd,Home Care - Private Contractors Payment,991.55,0.00,COMMERCIAL SUPPLIER 
 06-05-2022,Adults,Ebony Health Care Services Limited,Supported Other Accommodation - Private Contractors Payment,992.24,0.00,COMMERCIAL SUPPLIER 
 31-05-2022,Adults,Ebony Health Care Services Limited,Supported Other Accommodation - Private Contractors Payment,992.24,0.00,COMMERCIAL SUPPLIER 
 06-05-2022,Adults,Little Gaynes,Respite Care - Private Contractors Payment,992.86,0.00,COMMERCIAL SUPPLIER 
 31-05-2022,Adults,Barleycroft Care Home Ltd,Respite Care - Private Contractors Payment,992.86,0.00,COMMERCIAL SUPPLIER 
 04-05-2022,Adults,Westminster Homecare Ltd_a,Home Care - Private Contractors Payment,993.18,0.00,COMMERCIAL SUPPLIER 
 06-05-2022,Adults,Care-Away Ltd T/A Care Support,Home Care - Private Contractors Payment,998.40,0.00,COMMERCIAL SUPPLIER 
 06-05-2022,Adults,Care-Away Ltd T/A Care Support,Home Care - Private Contractors Payment,998.40,0.00,COMMERCIAL SUPPLIER 
 09-05-2022,Adults,Care-Away Ltd T/A Care Support,Home Care - Private Contractors Payment,998.40,0.00,COMMERCIAL SUPPLIER 
 30-05-2022,Adults,Care-Away Ltd T/A Care Support,Home Care - Private Contractors Payment,998.40,0.00,COMMERCIAL SUPPLIER 
 11-05-2022,Adults,Matrix SCM Ltd,Agency Staff,999.92,0.00,COMMERCIAL SUPPLIER 
 06-05-2022,Adults,Fountains Care Centre - Bondcare,Nursing Homes - Private Contractors Payment,1000.00,0.00,COMMERCIAL SUPPLIER 
 20-05-2022,Adults,Morepower Ltd t/a Aqs Homecare,Home Care - Private Contractors Payment,1000.07,0.00,COMMERCIAL SUPPLIER 
 11-05-2022,Adults,Matrix SCM Ltd,Agency Staff,1000.79,0.00,COMMERCIAL SUPPLIER 
 06-05-2022,Adults,Home Support Services (Havering & Essex) Ltd,Home Care - Private Contractors Payment,1001.16,0.00,COMMERCIAL SUPPLIER 
 10-05-2022,Adults,EC Romford Holdings Ltd,Residential Care Income,1001.80,0.00,COMMERCIAL SUPPLIER 
 06-05-2022,Adults,Coastal Supported Living CIC,Supported Other Accommodation - Private Contractors Payment,1002.56,0.00,COMMERCIAL SUPPLIER 
 31-05-2022,Adults,Coastal Supported Living CIC,Supported Other Accommodation - Private Contractors Payment,1002.56,0.00,COMMERCIAL SUPPLIER 
 06-05-2022,Adults,John Stanleys Care Agency Ltd,Home Care - Private Contractors Payment,1003.68,0.00,COMMERCIAL SUPPLIER 
 03-05-2022,Adults,Treal Care Limited,Home Care - Private Contractors Payment,1006.50,0.00,COMMERCIAL SUPPLIER 
 06-05-2022,Adults,Personal Information ? Redacted,Supported Other Accommodation - Private Contractors Payment,1008.00,0.00,INDIVIDUALS 
 31-05-2022,Adults,Personal Information ? Redacted,Supported Other Accommodation - Private Contractors Payment,1008.00,0.00,INDIVIDUALS 
 03-05-2022,Adults,Ace Outreach Ltd,Home Care - Private Contractors Payment,1008.63,0.00,COMMERCIAL SUPPLIER 
 11-05-2022,Adults,Matrix SCM Ltd,Agency Staff,1011.13,0.00,COMMERCIAL SUPPLIER 
 30-05-2022,Adults,Care-Away Ltd T/A Care Support,Home Care - Private Contractors Payment,1015.04,0.00,COMMERCIAL SUPPLIER 
 31-05-2022,Adults,Care-Away Ltd T/A Care Support,Home Care - Private Contractors Payment,1015.04,0.00,COMMERCIAL SUPPLIER 
 06-05-2022,Adults,Home Support Services (Havering & Essex) Ltd,Home Care - Private Contractors Payment,1015.55,0.00,COMMERCIAL SUPPLIER 
 11-05-2022,Adults,Prior Care Ltd_a,Home Care - Private Contractors Payment,1019.10,0.00,COMMERCIAL SUPPLIER 
 09-05-2022,Adults,Lodge Group Care UK Ltd,Home Care - Private Contractors Payment,1021.06,0.00,COMMERCIAL SUPPLIER 
 24-05-2022,Adults,Outreach Support Services Ltd,Home Care - Private Contractors Payment,1023.36,0.00,COMMERCIAL SUPPLIER 
 24-05-2022,Adults,Outreach Support Services Ltd,Home Care - Private Contractors Payment,1023.36,0.00,COMMERCIAL SUPPLIER 
 24-05-2022,Adults,Outreach Support Services Ltd,Home Care - Private Contractors Payment,1023.36,0.00,COMMERCIAL SUPPLIER 
 24-05-2022,Adults,Outreach Support Services Ltd,Home Care - Private Contractors Payment,1023.36,0.00,COMMERCIAL SUPPLIER 
 24-05-2022,Adults,Outreach Support Services Ltd,Home Care - Private Contractors Payment,1023.36,0.00,COMMERCIAL SUPPLIER 
 24-05-2022,Adults,Outreach Support Services Ltd,Home Care - Private Contractors Payment,1023.36,0.00,COMMERCIAL SUPPLIER 
 24-05-2022,Adults,Outreach Support Services Ltd,Home Care - Private Contractors Payment,1023.36,0.00,COMMERCIAL SUPPLIER 
 24-05-2022,Adults,Outreach Support Services Ltd,Home Care - Private Contractors Payment,1023.36,0.00,COMMERCIAL SUPPLIER 
 16-05-2022,Adults,Trinity London Care Ltd,Daycare - Private Contractors Payment,1025.20,0.00,COMMERCIAL SUPPLIER 
 16-05-2022,Adults,Trinity London Care Ltd,Daycare - Private Contractors Payment,1025.20,0.00,COMMERCIAL SUPPLIER 
 16-05-2022,Adults,Trinity London Care Ltd,Daycare - Private Contractors Payment,1025.20,0.00,COMMERCIAL SUPPLIER 
 11-05-2022,Adults,Matrix SCM Ltd,Agency Staff,1028.36,0.00,COMMERCIAL SUPPLIER 
 11-05-2022,Adults,Matrix SCM Ltd,Agency Staff,1028.36,0.00,COMMERCIAL SUPPLIER 
 11-05-2022,Adults,Prior Care Ltd_a,Home Care - Private Contractors Payment,1029.26,0.00,COMMERCIAL SUPPLIER 
 31-05-2022,Adults,Care-Away Ltd T/A Care Support,Home Care - Private Contractors Payment,1031.68,0.00,COMMERCIAL SUPPLIER 
 09-05-2022,Adults,Lodge Group Care UK Ltd,Home Care - Private Contractors Payment,1034.18,0.00,COMMERCIAL SUPPLIER 
 06-05-2022,Adults,Outlook Care - 4 Peel Way,Supported Other Accommodation - Private Contractors Payment,1035.08,0.00,COMMERCIAL SUPPLIER 
 31-05-2022,Adults,Outlook Care - 4 Peel Way,Supported Other Accommodation - Private Contractors Payment,1035.08,0.00,COMMERCIAL SUPPLIER 
 03-05-2022,Adults,Spring Consult UK Ltd,Home Care - Private Contractors Payment,1040.26,0.00,COMMERCIAL SUPPLIER 
 13-05-2022,Adults,North London Community Care Agency,Home Care - Private Contractors Payment,1040.26,0.00,COMMERCIAL SUPPLIER 
 13-05-2022,Adults,North London Community Care Agency,Home Care - Private Contractors Payment,1040.26,0.00,COMMERCIAL SUPPLIER 
 06-05-2022,Adults,The Cottage Residential Care Home,Residential Placements - Private Contractors Payment,1040.28,0.00,COMMERCIAL SUPPLIER 
 31-05-2022,Adults,The Cottage Residential Care Home,Residential Placements - Private Contractors Payment,1040.28,0.00,COMMERCIAL SUPPLIER 
 11-05-2022,Adults,Matrix SCM Ltd,Agency Staff,1041.90,0.00,COMMERCIAL SUPPLIER 
 04-05-2022,Adults,Westminster Homecare Ltd_a,Home Care - Private Contractors Payment,1043.70,0.00,COMMERCIAL SUPPLIER 
 11-05-2022,Adults,Prior Care Ltd_a,Home Care - Private Contractors Payment,1046.95,0.00,COMMERCIAL SUPPLIER 
 06-05-2022,Adults,Care Management Group Ltd - The Ridgeway,Supported Other Accommodation - Private Contractors Payment,1047.76,0.00,COMMERCIAL SUPPLIER 
 31-05-2022,Adults,Care Management Group Ltd - The Ridgeway,Supported Other Accommodation - Private Contractors Payment,1047.76,0.00,COMMERCIAL SUPPLIER 
 04-05-2022,Adults,Matrix SCM Ltd,Agency Staff,1048.24,0.00,COMMERCIAL SUPPLIER 
 11-05-2022,Adults,Matrix SCM Ltd,Agency Staff,1048.24,0.00,COMMERCIAL SUPPLIER 
 31-05-2022,Adults,Care-Away Ltd T/A Care Support,Home Care - Private Contractors Payment,1048.32,0.00,COMMERCIAL SUPPLIER 
 31-05-2022,Adults,Care-Away Ltd T/A Care Support,Home Care - Private Contractors Payment,1048.32,0.00,COMMERCIAL SUPPLIER 
 06-05-2022,Adults,Ebony Health Care Services Limited,Supported Other Accommodation - Private Contractors Payment,1050.00,0.00,COMMERCIAL SUPPLIER 
 11-05-2022,Adults,Matrix SCM Ltd,Agency Staff,1050.96,0.00,COMMERCIAL SUPPLIER 
 18-05-2022,Adults,Matrix SCM Ltd,Agency Staff,1052.40,0.00,COMMERCIAL SUPPLIER 
 09-05-2022,Adults,Lodge Group Care UK Ltd,Home Care - Private Contractors Payment,1057.76,0.00,COMMERCIAL SUPPLIER 
 06-05-2022,Adults,Outreach Support Services Ltd,Supported Other Accommodation - Private Contractors Payment,1058.40,0.00,COMMERCIAL SUPPLIER 
 31-05-2022,Adults,Outreach Support Services Ltd,Supported Other Accommodation - Private Contractors Payment,1058.40,0.00,COMMERCIAL SUPPLIER 
 09-05-2022,Adults,Lodge Group Care UK Ltd,Home Care - Private Contractors Payment,1058.72,0.00,COMMERCIAL SUPPLIER 
 25-05-2022,Adults,Care & Independence Ltd,"Purchase - Equipment, Furniture And Materials",1060.00,0.00,COMMERCIAL SUPPLIER 
 09-05-2022,Adults,Home Sweet Home Care Ltd,Home Care - Private Contractors Payment,1060.42,0.00,COMMERCIAL SUPPLIER 
 31-05-2022,Adults,Havering Care Homes Ltd t/a Upminster Nursing Home,Respite Care - Private Contractors Payment,1061.74,0.00,COMMERCIAL SUPPLIER 
 18-05-2022,Adults,Matrix SCM Ltd,Agency Staff,1062.18,0.00,COMMERCIAL SUPPLIER 
 02-05-2022,Adults,Gims Care Solution Ltd_a,Home Care - Private Contractors Payment,1062.80,0.00,NON COMMERCIAL SUPPLIER 
 31-05-2022,Adults,Outlook Care_a,Residential Placements - Private Contractors Payment,1063.32,0.00,COMMERCIAL SUPPLIER 
 13-05-2022,Adults,Cera Care Operations Ltd,Home Care - Private Contractors Payment,1067.31,0.00,COMMERCIAL SUPPLIER 
 20-05-2022,Adults,London Care Plc_a,Home Care - Private Contractors Payment,1067.31,0.00,COMMERCIAL SUPPLIER 
 09-05-2022,Adults,Care-Away Ltd T/A Care Support,Home Care - Private Contractors Payment,1069.71,0.00,COMMERCIAL SUPPLIER 
 04-05-2022,Adults,Westminster Homecare Ltd_a,Home Care - Private Contractors Payment,1070.59,0.00,COMMERCIAL SUPPLIER 
 09-05-2022,Adults,Lodge Group Care UK Ltd,Home Care - Private Contractors Payment,1074.02,0.00,COMMERCIAL SUPPLIER 
 20-05-2022,Adults,London Care Plc_a,Home Care - Private Contractors Payment,1074.86,0.00,COMMERCIAL SUPPLIER 
 17-05-2022,Adults,All Therapy Solutions Ltd,Occupational Health,1080.00,0.00,COMMERCIAL SUPPLIER 
 09-05-2022,Adults,Home Sweet Home Care Ltd,Home Care - Private Contractors Payment,1080.05,0.00,COMMERCIAL SUPPLIER 
 31-05-2022,Adults,Ash Grove Residential Care Home,Residential Care Income,1082.76,0.00,COMMERCIAL SUPPLIER 
 04-05-2022,Adults,Matrix SCM Ltd,Agency Staff,1082.80,0.00,COMMERCIAL SUPPLIER 
 25-05-2022,Adults,Matrix SCM Ltd,Agency Staff,1082.80,0.00,COMMERCIAL SUPPLIER 
 06-05-2022,Adults,DMP Healthcare (Heatherbrook) Ltd,Respite Care - Private Contractors Payment,1083.43,0.00,NON COMMERCIAL SUPPLIER 
 09-05-2022,Adults,Lodge Group Care UK Ltd,Home Care - Private Contractors Payment,1091.26,0.00,COMMERCIAL SUPPLIER 
 04-05-2022,Adults,Matrix SCM Ltd,Agency Staff,1096.20,0.00,COMMERCIAL SUPPLIER 
 09-05-2022,Adults,Lodge Group Care UK Ltd,Home Care - Private Contractors Payment,1096.99,0.00,COMMERCIAL SUPPLIER 
 06-05-2022,Adults,The Riverside Group,Supported Other Accommodation - Private Contractors Payment,1100.00,0.00, 
 06-05-2022,Adults,The Riverside Group,Supported Other Accommodation - Private Contractors Payment,1100.00,0.00, 
 06-05-2022,Adults,The Riverside Group,Supported Other Accommodation - Private Contractors Payment,1100.00,0.00, 
 06-05-2022,Adults,The Riverside Group,Supported Other Accommodation - Private Contractors Payment,1100.00,0.00, 
 06-05-2022,Adults,The Riverside Group,Supported Other Accommodation - Private Contractors Payment,1100.00,0.00, 
 06-05-2022,Adults,The Riverside Group,Supported Other Accommodation - Private Contractors Payment,1100.00,0.00, 
 06-05-2022,Adults,The Riverside Group,Supported Other Accommodation - Private Contractors Payment,1100.00,0.00, 
 06-05-2022,Adults,The Riverside Group,Supported Other Accommodation - Private Contractors Payment,1100.00,0.00, 
 31-05-2022,Adults,The Riverside Group,Supported Other Accommodation - Private Contractors Payment,1100.00,0.00, 
 31-05-2022,Adults,The Riverside Group,Supported Other Accommodation - Private Contractors Payment,1100.00,0.00, 
 31-05-2022,Adults,The Riverside Group,Supported Other Accommodation - Private Contractors Payment,1100.00,0.00, 
 31-05-2022,Adults,The Riverside Group,Supported Other Accommodation - Private Contractors Payment,1100.00,0.00, 
 31-05-2022,Adults,The Riverside Group,Supported Other Accommodation - Private Contractors Payment,1100.00,0.00, 
 31-05-2022,Adults,The Riverside Group,Supported Other Accommodation - Private Contractors Payment,1100.00,0.00, 
 31-05-2022,Adults,The Riverside Group,Supported Other Accommodation - Private Contractors Payment,1100.00,0.00, 
 31-05-2022,Adults,The Riverside Group,Supported Other Accommodation - Private Contractors Payment,1100.00,0.00, 
 20-05-2022,Adults,London Care Plc_a,Home Care - Private Contractors Payment,1100.44,0.00,COMMERCIAL SUPPLIER 
 20-05-2022,Adults,Personal Information ? Redacted,Home Care - Private Contractors Payment,1102.08,0.00,INDIVIDUALS 
 20-05-2022,Adults,Personal Information ? Redacted,Home Care - Private Contractors Payment,1102.08,0.00,INDIVIDUALS 
 09-05-2022,Adults,Bluebird Care Havering,Home Care - Private Contractors Payment,1108.28,0.00,COMMERCIAL SUPPLIER 
 09-05-2022,Adults,Lodge Group Care UK Ltd,Home Care - Private Contractors Payment,1108.29,0.00,COMMERCIAL SUPPLIER 
 11-05-2022,Adults,Matrix SCM Ltd,Agency Staff,1108.90,0.00,COMMERCIAL SUPPLIER 
 09-05-2022,Adults,Lodge Group Care UK Ltd,Home Care - Private Contractors Payment,1113.90,0.00,COMMERCIAL SUPPLIER 
 06-05-2022,Adults,HC-One Oval Ltd - Admirals Reach Residential & Nursing Centre,Nursing Homes - Private Contractors Payment,1114.20,0.00,COMMERCIAL SUPPLIER 
 31-05-2022,Adults,HC-One Oval Ltd - Admirals Reach Residential & Nursing Centre,Nursing Homes - Private Contractors Payment,1114.20,0.00,COMMERCIAL SUPPLIER 
 06-05-2022,Adults,Home Support Services (Havering & Essex) Ltd,Home Care - Private Contractors Payment,1114.98,0.00,COMMERCIAL SUPPLIER 
 25-05-2022,Adults,Matrix SCM Ltd,Agency Staff,1115.88,0.00,COMMERCIAL SUPPLIER 
 31-05-2022,Adults,DMP Healthcare (Heatherbrook) Ltd,Nursing Homes - Private Contractors Payment,1116.00,0.00,NON COMMERCIAL SUPPLIER 
 06-05-2022,Adults,Home Support Services (Havering & Essex) Ltd,Home Care - Private Contractors Payment,1116.67,0.00,COMMERCIAL SUPPLIER 
 09-05-2022,Adults,Lodge Group Care UK Ltd,Home Care - Private Contractors Payment,1119.79,0.00,COMMERCIAL SUPPLIER 
 02-05-2022,Adults,Gims Care Solution Ltd_a,Home Care - Private Contractors Payment,1121.76,0.00,NON COMMERCIAL SUPPLIER 
 06-05-2022,Adults,Home Support Services (Havering & Essex) Ltd,Home Care - Private Contractors Payment,1126.46,0.00,COMMERCIAL SUPPLIER 
 20-05-2022,Adults,London Care Plc_a,Home Care - Private Contractors Payment,1127.34,0.00,COMMERCIAL SUPPLIER 
 04-05-2022,Adults,Matrix SCM Ltd,Agency Staff,1127.87,0.00,COMMERCIAL SUPPLIER 
 04-05-2022,Adults,Matrix SCM Ltd,Agency Staff,1127.89,0.00,COMMERCIAL SUPPLIER 
 20-05-2022,Adults,Morepower Ltd t/a Aqs Homecare,Home Care - Private Contractors Payment,1129.63,0.00,COMMERCIAL SUPPLIER 
 20-05-2022,Adults,Morepower Ltd t/a Aqs Homecare,Home Care - Private Contractors Payment,1129.63,0.00,COMMERCIAL SUPPLIER 
 31-05-2022,Adults,Ashgate House Ltd_a,Residential Placements - Private Contractors Payment,1131.48,0.00,COMMERCIAL SUPPLIER 
 11-05-2022,Adults,Prior Care Ltd_a,Home Care - Private Contractors Payment,1135.06,0.00,COMMERCIAL SUPPLIER 
 04-05-2022,Adults,Matrix SCM Ltd,Agency Staff,1138.22,0.00,COMMERCIAL SUPPLIER 
 11-05-2022,Adults,Matrix SCM Ltd,Agency Staff,1138.22,0.00,COMMERCIAL SUPPLIER 
 17-05-2022,Adults,All Therapy Solutions Ltd,Occupational Health,1140.00,0.00,COMMERCIAL SUPPLIER 
 24-05-2022,Adults,Tapestry_a.,Daycare - Private Contractors Payment,1140.00,0.00,COMMERCIAL SUPPLIER 
 24-05-2022,Adults,Tapestry_a.,Daycare - Private Contractors Payment,1140.00,0.00,COMMERCIAL SUPPLIER 
 24-05-2022,Adults,Tapestry_a.,Daycare - Private Contractors Payment,1140.00,0.00,COMMERCIAL SUPPLIER 
 24-05-2022,Adults,Tapestry_a.,Daycare - Private Contractors Payment,1140.00,0.00,COMMERCIAL SUPPLIER 
 23-05-2022,Adults,London Homecare Ltd,Home Care - Private Contractors Payment,1141.44,0.00,COMMERCIAL SUPPLIER 
 23-05-2022,Adults,London Homecare Ltd,Home Care - Private Contractors Payment,1141.44,0.00,COMMERCIAL SUPPLIER 
 11-05-2022,Adults,Matrix SCM Ltd,Agency Staff,1142.70,0.00,COMMERCIAL SUPPLIER 
 06-05-2022,Adults,Ash Grove Residential Care Home,Residential Placements - Private Contractors Payment,1142.86,0.00,COMMERCIAL SUPPLIER 
 31-05-2022,Adults,Lukka Care Homes Ltd - Ravenscourt,Nursing Homes - Private Contractors Payment,1142.86,0.00,COMMERCIAL SUPPLIER 
 09-05-2022,Adults,Lodge Group Care UK Ltd,Home Care - Private Contractors Payment,1143.20,0.00,COMMERCIAL SUPPLIER 
 18-05-2022,Adults,Matrix SCM Ltd,Agency Staff,1143.20,0.00,COMMERCIAL SUPPLIER 
 04-05-2022,Adults,Matrix SCM Ltd,Agency Staff,1147.33,0.00,COMMERCIAL SUPPLIER 
 04-05-2022,Adults,Matrix SCM Ltd,Agency Staff,1148.03,0.00,COMMERCIAL SUPPLIER 
 27-05-2022,Adults,Care-Away Ltd T/A Care Support,Home Care - Private Contractors Payment,1148.16,0.00,COMMERCIAL SUPPLIER 
 11-05-2022,Adults,Matrix SCM Ltd,Agency Staff,1148.70,0.00,COMMERCIAL SUPPLIER 
 04-05-2022,Adults,Matrix SCM Ltd,Agency Staff,1152.00,0.00,COMMERCIAL SUPPLIER 
 04-05-2022,Adults,Matrix SCM Ltd,Agency Staff,1152.00,0.00,COMMERCIAL SUPPLIER 
 18-05-2022,Adults,Matrix SCM Ltd,Agency Staff,1152.00,0.00,COMMERCIAL SUPPLIER 
 25-05-2022,Adults,Matrix SCM Ltd,Agency Staff,1152.00,0.00,COMMERCIAL SUPPLIER 
 18-05-2022,Adults,Cera Care Operations Ltd,Home Care - Private Contractors Payment,1160.04,0.00,COMMERCIAL SUPPLIER 
 09-05-2022,Adults,Lodge Group Care UK Ltd,Home Care - Private Contractors Payment,1161.40,0.00,COMMERCIAL SUPPLIER 
 30-05-2022,Adults,Care-Away Ltd T/A Care Support,Home Care - Private Contractors Payment,1164.80,0.00,COMMERCIAL SUPPLIER 
 30-05-2022,Adults,Care-Away Ltd T/A Care Support,Home Care - Private Contractors Payment,1164.80,0.00,COMMERCIAL SUPPLIER 
 31-05-2022,Adults,Care-Away Ltd T/A Care Support,Home Care - Private Contractors Payment,1164.80,0.00,COMMERCIAL SUPPLIER 
 31-05-2022,Adults,Care-Away Ltd T/A Care Support,Home Care - Private Contractors Payment,1164.80,0.00,COMMERCIAL SUPPLIER 
 25-05-2022,Adults,Matrix SCM Ltd,Agency Staff,1169.28,0.00,COMMERCIAL SUPPLIER 
 09-05-2022,Adults,Lodge Group Care UK Ltd,Home Care - Private Contractors Payment,1172.41,0.00,COMMERCIAL SUPPLIER 
 06-05-2022,Adults,Footsteps Support Ltd_a,Supported Other Accommodation - Private Contractors Payment,1176.00,0.00,COMMERCIAL SUPPLIER 
 31-05-2022,Adults,Footsteps Support Ltd_a,Supported Other Accommodation - Private Contractors Payment,1176.00,0.00,COMMERCIAL SUPPLIER 
 11-05-2022,Adults,Matrix SCM Ltd,Agency Staff,1176.45,0.00,COMMERCIAL SUPPLIER 
 25-05-2022,Adults,Matrix SCM Ltd,Agency Staff,1176.45,0.00,COMMERCIAL SUPPLIER 
 30-05-2022,Adults,Ace Outreach Ltd,Home Care - Private Contractors Payment,1176.72,0.00,COMMERCIAL SUPPLIER 
 05-05-2022,Adults,Crystalize Care Services,Home Care - Private Contractors Payment,1180.80,0.00,COMMERCIAL SUPPLIER 
 23-05-2022,Adults,Crystalize Care Services,Home Care - Private Contractors Payment,1180.80,0.00,COMMERCIAL SUPPLIER 
 06-05-2022,Adults,Home Support Services (Havering & Essex) Ltd,Home Care - Private Contractors Payment,1180.96,0.00,COMMERCIAL SUPPLIER 
 04-05-2022,Adults,Matrix SCM Ltd,Agency Staff,1181.52,0.00,COMMERCIAL SUPPLIER 
 18-05-2022,Adults,Matrix SCM Ltd,Agency Staff,1181.52,0.00,COMMERCIAL SUPPLIER 
 25-05-2022,Adults,Matrix SCM Ltd,Agency Staff,1181.52,0.00,COMMERCIAL SUPPLIER 
 06-05-2022,Adults,Home Support Services (Havering & Essex) Ltd,Home Care - Private Contractors Payment,1183.07,0.00,COMMERCIAL SUPPLIER 
 30-05-2022,Adults,Care-Away Ltd T/A Care Support,Home Care - Private Contractors Payment,1189.76,0.00,COMMERCIAL SUPPLIER 
 06-05-2022,Adults,Lodge Lane Care Home Limited,Respite Care - Private Contractors Payment,1191.43,0.00,COMMERCIAL SUPPLIER 
 06-05-2022,Adults,Lodge Lane Care Home Limited,Respite Care - Private Contractors Payment,1191.43,0.00,COMMERCIAL SUPPLIER 
 04-05-2022,Adults,Matrix SCM Ltd,Agency Staff,1197.73,0.00,COMMERCIAL SUPPLIER 
 25-05-2022,Adults,Matrix SCM Ltd,Agency Staff,1197.73,0.00,COMMERCIAL SUPPLIER 
 06-05-2022,Adults,Care-Away Ltd T/A Care Support,Home Care - Private Contractors Payment,1198.08,0.00,COMMERCIAL SUPPLIER 
 30-05-2022,Adults,Care-Away Ltd T/A Care Support,Home Care - Private Contractors Payment,1198.08,0.00,COMMERCIAL SUPPLIER 
 20-05-2022,Adults,Personal Information ? Redacted,Home Care - Private Contractors Payment,1200.48,0.00,INDIVIDUALS 
 04-05-2022,Adults,Matrix SCM Ltd,Agency Staff,1201.68,0.00,COMMERCIAL SUPPLIER 
 25-05-2022,Adults,Matrix SCM Ltd,Agency Staff,1201.68,0.00,COMMERCIAL SUPPLIER 
 04-05-2022,Adults,Matrix SCM Ltd,Agency Staff,1201.70,0.00,COMMERCIAL SUPPLIER 
 04-05-2022,Adults,Matrix SCM Ltd,Agency Staff,1201.70,0.00,COMMERCIAL SUPPLIER 
 18-05-2022,Adults,Matrix SCM Ltd,Agency Staff,1201.70,0.00,COMMERCIAL SUPPLIER 
 25-05-2022,Adults,Matrix SCM Ltd,Agency Staff,1201.70,0.00,COMMERCIAL SUPPLIER 
 11-05-2022,Adults,Matrix SCM Ltd,Agency Staff,1202.40,0.00,COMMERCIAL SUPPLIER 
 11-05-2022,Adults,Matrix SCM Ltd,Agency Staff,1202.40,0.00,COMMERCIAL SUPPLIER 
 18-05-2022,Adults,Matrix SCM Ltd,Agency Staff,1202.40,0.00,COMMERCIAL SUPPLIER 
 31-05-2022,Adults,Havering Care Homes Ltd t/a Upminster Nursing Home,Residential Placements - Private Contractors Payment,1205.40,0.00,COMMERCIAL SUPPLIER 
 11-05-2022,Adults,Matrix SCM Ltd,Agency Staff,1205.64,0.00,COMMERCIAL SUPPLIER 
 04-05-2022,Adults,Matrix SCM Ltd,Agency Staff,1207.46,0.00,COMMERCIAL SUPPLIER 
 18-05-2022,Adults,Matrix SCM Ltd,Agency Staff,1207.46,0.00,COMMERCIAL SUPPLIER 
 25-05-2022,Adults,Matrix SCM Ltd,Agency Staff,1207.46,0.00,COMMERCIAL SUPPLIER 
 06-05-2022,Adults,Independent Community Support Ltd t/a Wingletye Lodge ,Supported Other Accommodation - Private Contractors Payment,1209.60,0.00,COMMERCIAL SUPPLIER 
 31-05-2022,Adults,Independent Community Support Ltd t/a Wingletye Lodge ,Supported Other Accommodation - Private Contractors Payment,1209.60,0.00,COMMERCIAL SUPPLIER 
 09-05-2022,Adults,Lodge Group Care UK Ltd,Home Care - Private Contractors Payment,1218.10,0.00,COMMERCIAL SUPPLIER 
 09-05-2022,Adults,Lodge Group Care UK Ltd,Home Care - Private Contractors Payment,1220.18,0.00,COMMERCIAL SUPPLIER 
 31-05-2022,Adults,Ash Grove Residential Care Home,Residential Placements - Private Contractors Payment,1221.43,0.00,COMMERCIAL SUPPLIER 
 06-05-2022,Adults,Home Support Services (Havering & Essex) Ltd,Home Care - Private Contractors Payment,1225.57,0.00,COMMERCIAL SUPPLIER 
 18-05-2022,Adults,Matrix SCM Ltd,Agency Staff,1228.32,0.00,COMMERCIAL SUPPLIER 
 18-05-2022,Adults,Matrix SCM Ltd,Agency Staff,1228.32,0.00,COMMERCIAL SUPPLIER 
 25-05-2022,Adults,Matrix SCM Ltd,Agency Staff,1228.32,0.00,COMMERCIAL SUPPLIER 
 25-05-2022,Adults,Matrix SCM Ltd,Agency Staff,1228.32,0.00,COMMERCIAL SUPPLIER 
 09-05-2022,Adults,Lodge Group Care UK Ltd,Home Care - Private Contractors Payment,1232.34,0.00,COMMERCIAL SUPPLIER 
 20-05-2022,Adults,Morepower Ltd t/a Aqs Homecare,Home Care - Private Contractors Payment,1236.56,0.00,COMMERCIAL SUPPLIER 
 11-05-2022,Adults,Matrix SCM Ltd,Agency Staff,1239.49,0.00,COMMERCIAL SUPPLIER 
 24-05-2022,Adults,Outreach Support Services Ltd,Home Care - Private Contractors Payment,1239.84,0.00,COMMERCIAL SUPPLIER 
 06-05-2022,Adults,Fountains Care Centre - Bondcare,Residential Placements - Private Contractors Payment,1240.00,0.00,COMMERCIAL SUPPLIER 
 11-05-2022,Adults,Action First Assessments Ltd,Private Contractors Payment - Other,1240.00,0.00,COMMERCIAL SUPPLIER 
 18-05-2022,Adults,Matrix SCM Ltd,Agency Staff,1241.28,0.00,COMMERCIAL SUPPLIER 
 18-05-2022,Adults,Matrix SCM Ltd,Agency Staff,1241.28,0.00,COMMERCIAL SUPPLIER 
 18-05-2022,Adults,Matrix SCM Ltd,Agency Staff,1241.28,0.00,COMMERCIAL SUPPLIER 
 25-05-2022,Adults,Matrix SCM Ltd,Agency Staff,1241.28,0.00,COMMERCIAL SUPPLIER 
 25-05-2022,Adults,Matrix SCM Ltd,Agency Staff,1241.28,0.00,COMMERCIAL SUPPLIER 
 25-05-2022,Adults,Matrix SCM Ltd,Agency Staff,1241.28,0.00,COMMERCIAL SUPPLIER 
 25-05-2022,Adults,Matrix SCM Ltd,Agency Staff,1241.28,0.00,COMMERCIAL SUPPLIER 
 31-05-2022,Adults,Care-Away Ltd T/A Care Support,Home Care - Private Contractors Payment,1248.00,0.00,COMMERCIAL SUPPLIER 
 04-05-2022,Adults,Matrix SCM Ltd,Agency Staff,1253.15,0.00,COMMERCIAL SUPPLIER 
 04-05-2022,Adults,Matrix SCM Ltd,Agency Staff,1253.15,0.00,COMMERCIAL SUPPLIER 
 18-05-2022,Adults,Matrix SCM Ltd,Agency Staff,1253.15,0.00,COMMERCIAL SUPPLIER 
 25-05-2022,Adults,Matrix SCM Ltd,Agency Staff,1253.15,0.00,COMMERCIAL SUPPLIER 
 25-05-2022,Adults,Matrix SCM Ltd,Agency Staff,1253.15,0.00,COMMERCIAL SUPPLIER 
 06-05-2022,Adults,Home Support Services (Havering & Essex) Ltd,Home Care - Private Contractors Payment,1253.27,0.00,COMMERCIAL SUPPLIER 
 06-05-2022,Adults,Havering Care Homes Ltd t/a Upminster Nursing Home,Nursing Homes - Private Contractors Payment,1253.57,0.00,COMMERCIAL SUPPLIER 
 31-05-2022,Adults,Willows Care Home - Churchgate Healthcare (Willows) Ltd,Nursing Homes - Private Contractors Payment,1253.57,0.00,COMMERCIAL SUPPLIER 
 31-05-2022,Adults,Havering Care Homes Ltd t/a Upminster Nursing Home,Nursing Homes - Private Contractors Payment,1253.57,0.00,COMMERCIAL SUPPLIER 
 03-05-2022,Adults,London Borough of Barking & Dagenham_a,Daycare - Private Contractors Payment,1260.00,0.00,LOCAL AUTHORITY SERVICES 
 06-05-2022,Adults,Home Support Services (Havering & Essex) Ltd,Home Care - Private Contractors Payment,1265.16,0.00,COMMERCIAL SUPPLIER 
 06-05-2022,Adults,Care-Away Ltd T/A Care Support,Home Care - Private Contractors Payment,1265.83,0.00,COMMERCIAL SUPPLIER 
 04-05-2022,Adults,Matrix SCM Ltd,Agency Staff,1266.11,0.00,COMMERCIAL SUPPLIER 
 18-05-2022,Adults,Matrix SCM Ltd,Agency Staff,1266.11,0.00,COMMERCIAL SUPPLIER 
 25-05-2022,Adults,Matrix SCM Ltd,Agency Staff,1266.11,0.00,COMMERCIAL SUPPLIER 
 10-05-2022,Adults,EC Romford Holdings Ltd,Residential Placements - Private Contractors Payment,1271.34,0.00,COMMERCIAL SUPPLIER 
 04-05-2022,Adults,Matrix SCM Ltd,Agency Staff,1276.56,0.00,COMMERCIAL SUPPLIER 
 18-05-2022,Adults,Matrix SCM Ltd,Agency Staff,1276.56,0.00,COMMERCIAL SUPPLIER 
 25-05-2022,Adults,Matrix SCM Ltd,Agency Staff,1276.56,0.00,COMMERCIAL SUPPLIER 
 04-05-2022,Adults,Matrix SCM Ltd,Agency Staff,1276.58,0.00,COMMERCIAL SUPPLIER 
 11-05-2022,Adults,Matrix SCM Ltd,Agency Staff,1276.58,0.00,COMMERCIAL SUPPLIER 
 18-05-2022,Adults,Matrix SCM Ltd,Agency Staff,1276.58,0.00,COMMERCIAL SUPPLIER 
 18-05-2022,Adults,Matrix SCM Ltd,Agency Staff,1276.58,0.00,COMMERCIAL SUPPLIER 
 06-05-2022,Adults,Lodge Lane Care Home Limited,Respite Care - Private Contractors Payment,1290.71,0.00,COMMERCIAL SUPPLIER 
 31-05-2022,Adults,Lodge Lane Care Home Limited,Residential Placements - Private Contractors Payment,1290.71,0.00,COMMERCIAL SUPPLIER 
 09-05-2022,Adults,Home Sweet Home Care Ltd,Home Care - Private Contractors Payment,1292.98,0.00,COMMERCIAL SUPPLIER 
 09-05-2022,Adults,Home Sweet Home Care Ltd,Home Care - Private Contractors Payment,1293.30,0.00,COMMERCIAL SUPPLIER 
 06-05-2022,Adults,St Georges Supported Living Ltd,Supported Other Accommodation - Private Contractors Payment,1295.20,0.00,COMMERCIAL SUPPLIER 
 31-05-2022,Adults,St Georges Supported Living Ltd,Supported Other Accommodation - Private Contractors Payment,1295.20,0.00,COMMERCIAL SUPPLIER 
 09-05-2022,Adults,Care-Away Ltd T/A Care Support,Home Care - Private Contractors Payment,1297.92,0.00,COMMERCIAL SUPPLIER 
 06-05-2022,Adults,Ashgate House Ltd_a,Residential Placements - Private Contractors Payment,1303.80,0.00,COMMERCIAL SUPPLIER 
 31-05-2022,Adults,Ashgate House Ltd_a,Residential Placements - Private Contractors Payment,1303.80,0.00,COMMERCIAL SUPPLIER 
 04-05-2022,Adults,Matrix SCM Ltd,Agency Staff,1304.64,0.00,COMMERCIAL SUPPLIER 
 18-05-2022,Adults,Matrix SCM Ltd,Agency Staff,1304.64,0.00,COMMERCIAL SUPPLIER 
 18-05-2022,Adults,Matrix SCM Ltd,Agency Staff,1304.64,0.00,COMMERCIAL SUPPLIER 
 25-05-2022,Adults,Matrix SCM Ltd,Agency Staff,1304.64,0.00,COMMERCIAL SUPPLIER 
 25-05-2022,Adults,Matrix SCM Ltd,Agency Staff,1304.64,0.00,COMMERCIAL SUPPLIER 
 25-05-2022,Adults,Matrix SCM Ltd,Agency Staff,1304.64,0.00,COMMERCIAL SUPPLIER 
 11-05-2022,Adults,Matrix SCM Ltd,Agency Staff,1306.43,0.00,COMMERCIAL SUPPLIER 
 25-05-2022,Adults,Matrix SCM Ltd,Agency Staff,1306.43,0.00,COMMERCIAL SUPPLIER 
 04-05-2022,Adults,Matrix SCM Ltd,Agency Staff,1312.58,0.00,COMMERCIAL SUPPLIER 
 18-05-2022,Adults,Matrix SCM Ltd,Agency Staff,1312.58,0.00,COMMERCIAL SUPPLIER 
 25-05-2022,Adults,Matrix SCM Ltd,Agency Staff,1312.58,0.00,COMMERCIAL SUPPLIER 
 18-05-2022,Adults,Matrix SCM Ltd,Agency Staff,1318.10,0.00,COMMERCIAL SUPPLIER 
 25-05-2022,Adults,Matrix SCM Ltd,Agency Staff,1318.10,0.00,COMMERCIAL SUPPLIER 
 06-05-2022,Adults,L & Q Living (SWIFT Payments),Supported Other Accommodation - Private Contractors Payment,1318.72,0.00,COMMERCIAL SUPPLIER 
 31-05-2022,Adults,L & Q Living (SWIFT Payments),Supported Other Accommodation - Private Contractors Payment,1318.72,0.00,COMMERCIAL SUPPLIER 
 06-05-2022,Adults,Havering Care Homes Ltd t/a Upminster Nursing Home,Nursing Homes - Private Contractors Payment,1320.72,0.00,COMMERCIAL SUPPLIER 
 09-05-2022,Adults,Lodge Group Care UK Ltd,Home Care - Private Contractors Payment,1322.29,0.00,COMMERCIAL SUPPLIER 
 06-05-2022,Adults,Home Support Services (Havering & Essex) Ltd,Home Care - Private Contractors Payment,1325.65,0.00,COMMERCIAL SUPPLIER 
 10-05-2022,Adults,EC Romford Holdings Ltd,Residential Placements - Private Contractors Payment,1325.71,0.00,COMMERCIAL SUPPLIER 
 09-05-2022,Adults,Lodge Group Care UK Ltd,Home Care - Private Contractors Payment,1332.32,0.00,COMMERCIAL SUPPLIER 
 09-05-2022,Adults,Care-Away Ltd T/A Care Support,Home Care - Private Contractors Payment,1347.84,0.00,COMMERCIAL SUPPLIER 
 06-05-2022,Adults,2 Peel Way - Outlook Care,Supported Other Accommodation - Private Contractors Payment,1349.88,0.00,NON COMMERCIAL SUPPLIER 
 31-05-2022,Adults,2 Peel Way - Outlook Care,Supported Other Accommodation - Private Contractors Payment,1349.88,0.00,NON COMMERCIAL SUPPLIER 
 09-05-2022,Adults,Lodge Group Care UK Ltd,Home Care - Private Contractors Payment,1351.70,0.00,COMMERCIAL SUPPLIER 
 04-05-2022,Adults,Matrix SCM Ltd,Agency Staff,1355.76,0.00,COMMERCIAL SUPPLIER 
 06-05-2022,Adults,Fountains Care Centre - Bondcare,Nursing Homes - Private Contractors Payment,1356.00,0.00,COMMERCIAL SUPPLIER 
 06-05-2022,Adults,Home Support Services (Havering & Essex) Ltd,Home Care - Private Contractors Payment,1372.68,0.00,COMMERCIAL SUPPLIER 
 23-05-2022,Adults,Eastway Care Ltd_a,Daycare - Private Contractors Payment,1380.00,0.00,COMMERCIAL SUPPLIER 
 04-05-2022,Adults,Matrix SCM Ltd,Agency Staff,1381.31,0.00,COMMERCIAL SUPPLIER 
 25-05-2022,Adults,Matrix SCM Ltd,Agency Staff,1381.31,0.00,COMMERCIAL SUPPLIER 
 06-05-2022,Adults,Home Support Services (Havering & Essex) Ltd,Home Care - Private Contractors Payment,1381.56,0.00,COMMERCIAL SUPPLIER 
 06-05-2022,Adults,Lodge Lane Care Home Limited,Residential Placements - Private Contractors Payment,1390.00,0.00,COMMERCIAL SUPPLIER 
 31-05-2022,Adults,HC-One Oval Ltd - Chaseview,Residential Placements - Private Contractors Payment,1390.00,0.00,COMMERCIAL SUPPLIER 
 31-05-2022,Adults,Lodge Lane Care Home Limited,Respite Care - Private Contractors Payment,1390.00,0.00,COMMERCIAL SUPPLIER 
 31-05-2022,Adults,Barleycroft Care Home Ltd,Residential Placements - Private Contractors Payment,1390.00,0.00,COMMERCIAL SUPPLIER 
 06-05-2022,Adults,Havering Care Homes Ltd t/a Abbscross Nursing Home,Nursing Homes - Private Contractors Payment,1392.86,0.00,COMMERCIAL SUPPLIER 
 06-05-2022,Adults,Beechcourt Care Centre - Bondcare,Nursing Homes - Private Contractors Payment,1392.86,0.00,COMMERCIAL SUPPLIER 
 06-05-2022,Adults,Barleycroft Care Home Ltd,Nursing Homes - Private Contractors Payment,1392.86,0.00,COMMERCIAL SUPPLIER 
 06-05-2022,Adults,Willows Care Home - Churchgate Healthcare (Willows) Ltd,Nursing Homes - Private Contractors Payment,1392.86,0.00,COMMERCIAL SUPPLIER 
 30-05-2022,Adults,Care-Away Ltd T/A Care Support,Home Care - Private Contractors Payment,1397.76,0.00,COMMERCIAL SUPPLIER 
 23-05-2022,Adults,Crystalize Care Services,Home Care - Private Contractors Payment,1416.96,0.00,COMMERCIAL SUPPLIER 
 18-05-2022,Adults,Matrix SCM Ltd,Agency Staff,1419.14,0.00,COMMERCIAL SUPPLIER 
 18-05-2022,Adults,Matrix SCM Ltd,Agency Staff,1419.14,0.00,COMMERCIAL SUPPLIER 
 30-05-2022,Adults,Home Support Services (Havering & Essex) Ltd,Home Care - Private Contractors Payment,1425.00,0.00,COMMERCIAL SUPPLIER 
 30-05-2022,Adults,Home Support Services (Havering & Essex) Ltd,Home Care - Private Contractors Payment,1425.00,0.00,COMMERCIAL SUPPLIER 
 30-05-2022,Adults,Home Support Services (Havering & Essex) Ltd,Home Care - Private Contractors Payment,1425.00,0.00,COMMERCIAL SUPPLIER 
 30-05-2022,Adults,Home Support Services (Havering & Essex) Ltd,Home Care - Private Contractors Payment,1425.00,0.00,COMMERCIAL SUPPLIER 
 18-05-2022,Adults,Matrix SCM Ltd,Agency Staff,1425.24,0.00,COMMERCIAL SUPPLIER 
 18-05-2022,Adults,Matrix SCM Ltd,Agency Staff,1425.24,0.00,COMMERCIAL SUPPLIER 
 25-05-2022,Adults,Matrix SCM Ltd,Agency Staff,1425.24,0.00,COMMERCIAL SUPPLIER 
 20-05-2022,Adults,Morepower Ltd t/a Aqs Homecare,Home Care - Private Contractors Payment,1427.13,0.00,COMMERCIAL SUPPLIER 
 06-05-2022,Adults,Ash Grove Residential Care Home,Residential Placements - Private Contractors Payment,1430.00,0.00,COMMERCIAL SUPPLIER 
 27-05-2022,Adults,Care-Away Ltd T/A Care Support,Home Care - Private Contractors Payment,1439.36,0.00,COMMERCIAL SUPPLIER 
 06-05-2022,Adults,Bettertogether Limited,Supported Other Accommodation - Private Contractors Payment,1440.00,0.00,NON COMMERCIAL SUPPLIER 
 31-05-2022,Adults,Bettertogether Limited,Supported Other Accommodation - Private Contractors Payment,1440.00,0.00,NON COMMERCIAL SUPPLIER 
 06-05-2022,Adults,HC-One Oval Ltd - The Hornchurch Nursing Centre,Nursing Homes - Private Contractors Payment,1452.86,0.00,COMMERCIAL SUPPLIER 
 04-05-2022,Adults,Matrix SCM Ltd,Agency Staff,1469.18,0.00,COMMERCIAL SUPPLIER 
 18-05-2022,Adults,Matrix SCM Ltd,Agency Staff,1469.18,0.00,COMMERCIAL SUPPLIER 
 25-05-2022,Adults,Matrix SCM Ltd,Agency Staff,1469.18,0.00,COMMERCIAL SUPPLIER 
 11-05-2022,Adults,Matrix SCM Ltd,Agency Staff,1473.12,0.00,COMMERCIAL SUPPLIER 
 18-05-2022,Adults,Matrix SCM Ltd,Agency Staff,1473.12,0.00,COMMERCIAL SUPPLIER 
 06-05-2022,Adults,Blueboard Care Services Ltd,Supported Other Accommodation - Private Contractors Payment,1478.40,0.00,COMMERCIAL SUPPLIER 
 06-05-2022,Adults,Blueboard Care Services Ltd,Supported Other Accommodation - Private Contractors Payment,1478.40,0.00,COMMERCIAL SUPPLIER 
 31-05-2022,Adults,Blueboard Care Services Ltd,Supported Other Accommodation - Private Contractors Payment,1478.40,0.00,COMMERCIAL SUPPLIER 
 31-05-2022,Adults,Blueboard Care Services Ltd,Supported Other Accommodation - Private Contractors Payment,1478.40,0.00,COMMERCIAL SUPPLIER 
 06-05-2022,Adults,The Cedars,Supported Other Accommodation - Private Contractors Payment,1479.24,0.00,COMMERCIAL SUPPLIER 
 31-05-2022,Adults,The Cedars,Supported Other Accommodation - Private Contractors Payment,1479.24,0.00,COMMERCIAL SUPPLIER 
 06-05-2022,Adults,Lodge Lane Care Home Limited,Respite Care - Private Contractors Payment,1489.29,0.00,COMMERCIAL SUPPLIER 
 31-05-2022,Adults,Havering Care Homes Ltd t/a Upminster Nursing Home,Respite Care - Private Contractors Payment,1489.29,0.00,COMMERCIAL SUPPLIER 
 06-05-2022,Adults,GCH - Hillside Nursing Home,Nursing Homes - Private Contractors Payment,1492.86,0.00,COMMERCIAL SUPPLIER 
 31-05-2022,Adults,Priory Supporting Care Ltd,Respite Care - Private Contractors Payment,1492.86,0.00,COMMERCIAL SUPPLIER 
 04-05-2022,Adults,Opus Energy Ltd(Electricity),Electricity,1495.03,0.00,COMMERCIAL SUPPLIER 
 06-05-2022,Adults,John Stanleys Care Agency Ltd,Home Care - Private Contractors Payment,1495.68,0.00,COMMERCIAL SUPPLIER 
 06-05-2022,Adults,Outlook Care - 4 Peel Way,Supported Other Accommodation - Private Contractors Payment,1496.00,0.00,COMMERCIAL SUPPLIER 
 06-05-2022,Adults,Outlook Care - 4 Peel Way,Supported Other Accommodation - Private Contractors Payment,1496.00,0.00,COMMERCIAL SUPPLIER 
 31-05-2022,Adults,Outlook Care - 4 Peel Way,Supported Other Accommodation - Private Contractors Payment,1496.00,0.00,COMMERCIAL SUPPLIER 
 31-05-2022,Adults,Infinite Healthcare Services Ltd.,Supported Other Accommodation - Private Contractors Payment,1496.00,0.00,COMMERCIAL SUPPLIER 
 06-05-2022,Adults,Ebony Health Care Services Limited,Supported Other Accommodation - Private Contractors Payment,1496.24,0.00,COMMERCIAL SUPPLIER 
 31-05-2022,Adults,Ebony Health Care Services Limited,Supported Other Accommodation - Private Contractors Payment,1496.24,0.00,COMMERCIAL SUPPLIER 
 03-05-2022,Adults,Home Support Services (Havering & Essex) Ltd,Home Care - Private Contractors Payment,1500.00,0.00,COMMERCIAL SUPPLIER 
 03-05-2022,Adults,Home Support Services (Havering & Essex) Ltd,Home Care - Private Contractors Payment,1500.00,0.00,COMMERCIAL SUPPLIER 
 03-05-2022,Adults,Home Support Services (Havering & Essex) Ltd,Home Care - Private Contractors Payment,1500.00,0.00,COMMERCIAL SUPPLIER 
 03-05-2022,Adults,Home Support Services (Havering & Essex) Ltd,Home Care - Private Contractors Payment,1500.00,0.00,COMMERCIAL SUPPLIER 
 31-05-2022,Adults,Manor Lodge Care Home,Residential Placements - Private Contractors Payment,1500.00,0.00,COMMERCIAL SUPPLIER 
 31-05-2022,Adults,Fountains Care Centre - Bondcare,Residential Placements - Private Contractors Payment,1505.71,0.00,COMMERCIAL SUPPLIER 
 06-05-2022,Adults,Havering Care Homes Ltd t/a Upminster Nursing Home,Nursing Homes - Private Contractors Payment,1509.39,0.00,COMMERCIAL SUPPLIER 
 27-05-2022,Adults,Care-Away Ltd T/A Care Support,Home Care - Private Contractors Payment,1514.24,0.00,COMMERCIAL SUPPLIER 
 04-05-2022,Adults,Matrix SCM Ltd,Agency Staff,1515.98,0.00,COMMERCIAL SUPPLIER 
 18-05-2022,Adults,Matrix SCM Ltd,Agency Staff,1515.98,0.00,COMMERCIAL SUPPLIER 
 18-05-2022,Adults,Matrix SCM Ltd,Agency Staff,1515.98,0.00,COMMERCIAL SUPPLIER 
 25-05-2022,Adults,Matrix SCM Ltd,Agency Staff,1515.98,0.00,COMMERCIAL SUPPLIER 
 06-05-2022,Adults,The Cedars,Supported Other Accommodation - Private Contractors Payment,1531.00,0.00,COMMERCIAL SUPPLIER 
 31-05-2022,Adults,The Cedars,Supported Other Accommodation - Private Contractors Payment,1531.00,0.00,COMMERCIAL SUPPLIER 
 06-05-2022,Adults,Affinia Healthcare Ltd_a,Supported Other Accommodation - Private Contractors Payment,1538.48,0.00,COMMERCIAL SUPPLIER 
 31-05-2022,Adults,Affinia Healthcare Ltd_a,Supported Other Accommodation - Private Contractors Payment,1538.48,0.00,COMMERCIAL SUPPLIER 
 06-05-2022,Adults,The Riverside Group,Supported Other Accommodation - Private Contractors Payment,1544.24,0.00, 
 31-05-2022,Adults,The Riverside Group,Supported Other Accommodation - Private Contractors Payment,1544.24,0.00, 
 30-05-2022,Adults,Care-Away Ltd T/A Care Support,Home Care - Private Contractors Payment,1547.52,0.00,COMMERCIAL SUPPLIER 
 06-05-2022,Adults,Outlook Care - 4 Peel Way,Supported Other Accommodation - Private Contractors Payment,1549.43,0.00,COMMERCIAL SUPPLIER 
 06-05-2022,Adults,Fountains Care Centre - Bondcare,Respite Care - Private Contractors Payment,1549.71,0.00,COMMERCIAL SUPPLIER 
 06-05-2022,Adults,Westminster Health Care Ltd Derham House,Respite Care - Private Contractors Payment,1549.71,0.00,COMMERCIAL SUPPLIER 
 31-05-2022,Adults,Barleycroft Care Home Ltd,Nursing Homes - Private Contractors Payment,1549.71,0.00,COMMERCIAL SUPPLIER 
 11-05-2022,Adults,Action First Assessments Ltd,Private Contractors Payment - Other,1550.00,0.00,COMMERCIAL SUPPLIER 
 11-05-2022,Adults,Matrix SCM Ltd,Agency Staff,1560.46,0.00,COMMERCIAL SUPPLIER 
 06-05-2022,Adults,Outlook Care - 76 Neave Crescent,Supported Other Accommodation - Private Contractors Payment,1562.00,0.00,COMMERCIAL SUPPLIER 
 06-05-2022,Adults,Outlook Care - 76 Neave Crescent,Supported Other Accommodation - Private Contractors Payment,1562.00,0.00,COMMERCIAL SUPPLIER 
 06-05-2022,Adults,Outlook Care - 76 Neave Crescent,Supported Other Accommodation - Private Contractors Payment,1562.00,0.00,COMMERCIAL SUPPLIER 
 06-05-2022,Adults,Outlook Care - 76 Neave Crescent,Supported Other Accommodation - Private Contractors Payment,1562.00,0.00,COMMERCIAL SUPPLIER 
 06-05-2022,Adults,Outlook Care - 76 Neave Crescent,Supported Other Accommodation - Private Contractors Payment,1562.00,0.00,COMMERCIAL SUPPLIER 
 06-05-2022,Adults,Outlook Care - 76 Neave Crescent,Supported Other Accommodation - Private Contractors Payment,1562.00,0.00,COMMERCIAL SUPPLIER 
 06-05-2022,Adults,Outlook Care - 76 Neave Crescent,Supported Other Accommodation - Private Contractors Payment,1562.00,0.00,COMMERCIAL SUPPLIER 
 06-05-2022,Adults,Outlook Care - 76 Neave Crescent,Supported Other Accommodation - Private Contractors Payment,1562.00,0.00,COMMERCIAL SUPPLIER 
 06-05-2022,Adults,Outlook Care - 76 Neave Crescent,Supported Other Accommodation - Private Contractors Payment,1562.00,0.00,COMMERCIAL SUPPLIER 
 31-05-2022,Adults,Outlook Care - 76 Neave Crescent,Supported Other Accommodation - Private Contractors Payment,1562.00,0.00,COMMERCIAL SUPPLIER 
 31-05-2022,Adults,Outlook Care - 76 Neave Crescent,Supported Other Accommodation - Private Contractors Payment,1562.00,0.00,COMMERCIAL SUPPLIER 
 31-05-2022,Adults,Outlook Care - 76 Neave Crescent,Supported Other Accommodation - Private Contractors Payment,1562.00,0.00,COMMERCIAL SUPPLIER 
 31-05-2022,Adults,Outlook Care - 76 Neave Crescent,Supported Other Accommodation - Private Contractors Payment,1562.00,0.00,COMMERCIAL SUPPLIER 
 31-05-2022,Adults,Outlook Care - 76 Neave Crescent,Supported Other Accommodation - Private Contractors Payment,1562.00,0.00,COMMERCIAL SUPPLIER 
 31-05-2022,Adults,Outlook Care - 76 Neave Crescent,Supported Other Accommodation - Private Contractors Payment,1562.00,0.00,COMMERCIAL SUPPLIER 
 31-05-2022,Adults,Outlook Care - 76 Neave Crescent,Supported Other Accommodation - Private Contractors Payment,1562.00,0.00,COMMERCIAL SUPPLIER 
 31-05-2022,Adults,Outlook Care - 76 Neave Crescent,Supported Other Accommodation - Private Contractors Payment,1562.00,0.00,COMMERCIAL SUPPLIER 
 31-05-2022,Adults,Outlook Care - 76 Neave Crescent,Supported Other Accommodation - Private Contractors Payment,1562.00,0.00,COMMERCIAL SUPPLIER 
 06-05-2022,Adults,Outlook Care - 86 Veronica Close,Residential Placements - Private Contractors Payment,1565.56,0.00,COMMERCIAL SUPPLIER 
 31-05-2022,Adults,Outlook Care - 86 Veronica Close,Residential Placements - Private Contractors Payment,1565.56,0.00,COMMERCIAL SUPPLIER 
 06-05-2022,Adults,Outlook Care - 76 Neave Crescent,Supported Other Accommodation - Private Contractors Payment,1566.60,0.00,COMMERCIAL SUPPLIER 
 06-05-2022,Adults,Outlook Care - 76 Neave Crescent,Supported Other Accommodation - Private Contractors Payment,1566.60,0.00,COMMERCIAL SUPPLIER 
 31-05-2022,Adults,Outlook Care - 76 Neave Crescent,Supported Other Accommodation - Private Contractors Payment,1566.60,0.00,COMMERCIAL SUPPLIER 
 31-05-2022,Adults,Outlook Care - 76 Neave Crescent,Supported Other Accommodation - Private Contractors Payment,1566.60,0.00,COMMERCIAL SUPPLIER 
 09-05-2022,Adults,Care-Away Ltd T/A Care Support,Home Care - Private Contractors Payment,1568.91,0.00,COMMERCIAL SUPPLIER 
 06-05-2022,Adults,One Tree Estates Ltd t/a Ashbrook Nursing Home,Nursing Homes - Private Contractors Payment,1578.57,0.00,COMMERCIAL SUPPLIER 
 31-05-2022,Adults,Lodge Lane Care Home Limited,Residential Placements - Private Contractors Payment,1588.57,0.00,COMMERCIAL SUPPLIER 
 13-05-2022,Adults,Cera Care Operations Ltd,Home Care - Private Contractors Payment,1592.11,0.00,COMMERCIAL SUPPLIER 
 18-05-2022,Adults,Cera Care Operations Ltd,Home Care - Private Contractors Payment,1594.97,0.00,COMMERCIAL SUPPLIER 
 06-05-2022,Adults,Outlook Care - 76 Neave Crescent,Supported Other Accommodation - Private Contractors Payment,1597.92,0.00,COMMERCIAL SUPPLIER 
 06-05-2022,Adults,Outlook Care - 76 Neave Crescent,Supported Other Accommodation - Private Contractors Payment,1597.92,0.00,COMMERCIAL SUPPLIER 
 06-05-2022,Adults,Outlook Care - 76 Neave Crescent,Supported Other Accommodation - Private Contractors Payment,1597.92,0.00,COMMERCIAL SUPPLIER 
 06-05-2022,Adults,Outlook Care - 76 Neave Crescent,Supported Other Accommodation - Private Contractors Payment,1597.92,0.00,COMMERCIAL SUPPLIER 
 31-05-2022,Adults,Outlook Care - 76 Neave Crescent,Supported Other Accommodation - Private Contractors Payment,1597.92,0.00,COMMERCIAL SUPPLIER 
 31-05-2022,Adults,Outlook Care - 76 Neave Crescent,Supported Other Accommodation - Private Contractors Payment,1597.92,0.00,COMMERCIAL SUPPLIER 
 31-05-2022,Adults,Outlook Care - 76 Neave Crescent,Supported Other Accommodation - Private Contractors Payment,1597.92,0.00,COMMERCIAL SUPPLIER 
 31-05-2022,Adults,Outlook Care - 76 Neave Crescent,Supported Other Accommodation - Private Contractors Payment,1597.92,0.00,COMMERCIAL SUPPLIER 
 31-05-2022,Adults,Barchester Healthcare Ltd - Park View Care Home,Nursing Homes - Private Contractors Payment,1601.14,0.00,COMMERCIAL SUPPLIER 
 06-05-2022,Adults,Bettertogether Limited,Supported Other Accommodation - Private Contractors Payment,1612.00,0.00,NON COMMERCIAL SUPPLIER 
 06-05-2022,Adults,Bettertogether Limited,Supported Other Accommodation - Private Contractors Payment,1612.00,0.00,NON COMMERCIAL SUPPLIER 
 31-05-2022,Adults,Bettertogether Limited,Supported Other Accommodation - Private Contractors Payment,1612.00,0.00,NON COMMERCIAL SUPPLIER 
 31-05-2022,Adults,Bettertogether Limited,Supported Other Accommodation - Private Contractors Payment,1612.00,0.00,NON COMMERCIAL SUPPLIER 
 20-05-2022,Adults,Personal Information ? Redacted,Home Care - Private Contractors Payment,1613.76,0.00,INDIVIDUALS 
 06-05-2022,Adults,Ashking House Ltd,Residential Placements - Private Contractors Payment,1616.84,0.00,COMMERCIAL SUPPLIER 
 31-05-2022,Adults,Ashking House Ltd,Residential Placements - Private Contractors Payment,1616.84,0.00,COMMERCIAL SUPPLIER 
 31-05-2022,Adults,DMP Healthcare (Heatherbrook) Ltd,Nursing Homes - Private Contractors Payment,1627.50,0.00,NON COMMERCIAL SUPPLIER 
 31-05-2022,Adults,Ash Grove Residential Care Home,Residential Placements - Private Contractors Payment,1639.43,0.00,COMMERCIAL SUPPLIER 
 06-05-2022,Adults,MNS Care Plc_a,Nursing Homes - Private Contractors Payment,1645.71,0.00,COMMERCIAL SUPPLIER 
 31-05-2022,Adults,HC-One Oval Ltd - The Hornchurch Nursing Centre,Nursing Homes - Private Contractors Payment,1646.57,0.00,COMMERCIAL SUPPLIER 
 06-05-2022,Adults,Affinia Healthcare Ltd_a,Supported Other Accommodation - Private Contractors Payment,1650.76,0.00,COMMERCIAL SUPPLIER 
 31-05-2022,Adults,Affinia Healthcare Ltd_a,Supported Other Accommodation - Private Contractors Payment,1650.76,0.00,COMMERCIAL SUPPLIER 
 31-05-2022,Adults,Masumin Ltd t/s Abbeleigh House,Residential Placements - Private Contractors Payment,1652.00,0.00,COMMERCIAL SUPPLIER 
 04-05-2022,Adults,Matrix SCM Ltd,Agency Staff,1666.62,0.00,COMMERCIAL SUPPLIER 
 06-05-2022,Adults,Fountains Care Centre - Bondcare,Nursing Homes - Private Contractors Payment,1671.43,0.00,COMMERCIAL SUPPLIER 
 06-05-2022,Adults,One Tree Estates Ltd t/a Ashbrook Nursing Home,Nursing Homes - Private Contractors Payment,1671.43,0.00,COMMERCIAL SUPPLIER 
 31-05-2022,Adults,Barleycroft Care Home Ltd,Nursing Homes - Private Contractors Payment,1671.43,0.00,COMMERCIAL SUPPLIER 
 06-05-2022,Adults,Outlook Care - 76 Neave Crescent,Supported Other Accommodation - Private Contractors Payment,1677.92,0.00,COMMERCIAL SUPPLIER 
 31-05-2022,Adults,Outlook Care - 76 Neave Crescent,Supported Other Accommodation - Private Contractors Payment,1677.92,0.00,COMMERCIAL SUPPLIER 
 06-05-2022,Adults,Care-Away Ltd T/A Care Support,Home Care - Private Contractors Payment,1683.02,0.00,COMMERCIAL SUPPLIER 
 06-05-2022,Adults,2 Peel Way - Outlook Care,Supported Other Accommodation - Private Contractors Payment,1687.28,0.00,NON COMMERCIAL SUPPLIER 
 31-05-2022,Adults,2 Peel Way - Outlook Care,Supported Other Accommodation - Private Contractors Payment,1687.28,0.00,NON COMMERCIAL SUPPLIER 
 06-05-2022,Adults,Lodge Lane Care Home Limited,Residential Placements - Private Contractors Payment,1687.86,0.00,COMMERCIAL SUPPLIER 
 31-05-2022,Adults,Barleycroft Care Home Ltd,Residential Placements - Private Contractors Payment,1687.86,0.00,COMMERCIAL SUPPLIER 
 06-05-2022,Adults,Sanctuary Home Care Ltd - Shaftesbury Court,Supported Other Accommodation - Private Contractors Payment,1688.24,0.00,COMMERCIAL SUPPLIER 
 09-05-2022,Adults,Home Sweet Home Care Ltd,Home Care - Private Contractors Payment,1688.87,0.00,COMMERCIAL SUPPLIER 
 09-05-2022,Adults,Care-Away Ltd T/A Care Support,Home Care - Private Contractors Payment,1690.15,0.00,COMMERCIAL SUPPLIER 
 06-05-2022,Adults,One Tree Estates Ltd t/a Ashbrook Nursing Home,Respite Care - Private Contractors Payment,1700.00,0.00,COMMERCIAL SUPPLIER 
 09-05-2022,Adults,Home Sweet Home Care Ltd,Home Care - Private Contractors Payment,1703.63,0.00,COMMERCIAL SUPPLIER 
 06-05-2022,Adults,Affinia Healthcare Ltd_a,Supported Other Accommodation - Private Contractors Payment,1704.20,0.00,COMMERCIAL SUPPLIER 
 31-05-2022,Adults,Affinia Healthcare Ltd_a,Supported Other Accommodation - Private Contractors Payment,1704.20,0.00,COMMERCIAL SUPPLIER 
 06-05-2022,Adults,Outlook Care - 4 Peel Way,Supported Other Accommodation - Private Contractors Payment,1710.56,0.00,COMMERCIAL SUPPLIER 
 06-05-2022,Adults,Outlook Care - 4 Peel Way,Supported Other Accommodation - Private Contractors Payment,1710.56,0.00,COMMERCIAL SUPPLIER 
 31-05-2022,Adults,Outlook Care - 4 Peel Way,Supported Other Accommodation - Private Contractors Payment,1710.56,0.00,COMMERCIAL SUPPLIER 
 06-05-2022,Adults,Care-Away Ltd T/A Care Support,Home Care - Private Contractors Payment,1711.54,0.00,COMMERCIAL SUPPLIER 
 06-05-2022,Adults,Outlook Care - 4 Peel Way,Supported Other Accommodation - Private Contractors Payment,1719.80,0.00,COMMERCIAL SUPPLIER 
 31-05-2022,Adults,Outlook Care - 4 Peel Way,Supported Other Accommodation - Private Contractors Payment,1719.80,0.00,COMMERCIAL SUPPLIER 
 06-05-2022,Adults,Vibrance ,Residential Placements - Private Contractors Payment,1720.76,0.00,COMMERCIAL SUPPLIER 
 31-05-2022,Adults,Vibrance ,Residential Placements - Private Contractors Payment,1720.76,0.00,COMMERCIAL SUPPLIER 
 06-05-2022,Adults,2 Peel Way - Outlook Care,Supported Other Accommodation - Private Contractors Payment,1721.00,0.00,NON COMMERCIAL SUPPLIER 
 31-05-2022,Adults,2 Peel Way - Outlook Care,Supported Other Accommodation - Private Contractors Payment,1721.00,0.00,NON COMMERCIAL SUPPLIER 
 06-05-2022,Adults,Affinia Healthcare Ltd_a,Supported Other Accommodation - Private Contractors Payment,1731.28,0.00,COMMERCIAL SUPPLIER 
 31-05-2022,Adults,Affinia Healthcare Ltd_a,Supported Other Accommodation - Private Contractors Payment,1731.28,0.00,COMMERCIAL SUPPLIER 
 06-05-2022,Adults,Care-Away Ltd T/A Care Support,Home Care - Private Contractors Payment,1740.07,0.00,COMMERCIAL SUPPLIER 
 06-05-2022,Adults,Beechcourt Care Centre - Bondcare,Nursing Homes - Private Contractors Payment,1743.43,0.00,COMMERCIAL SUPPLIER 
 23-05-2022,Adults,Bluebird Care Havering,Home Care - Private Contractors Payment,1750.04,0.00,COMMERCIAL SUPPLIER 
 06-05-2022,Adults,Affinia Healthcare Ltd_a,Supported Other Accommodation - Private Contractors Payment,1751.12,0.00,COMMERCIAL SUPPLIER 
 06-05-2022,Adults,Affinia Healthcare Ltd_a,Supported Other Accommodation - Private Contractors Payment,1751.12,0.00,COMMERCIAL SUPPLIER 
 06-05-2022,Adults,Affinia Healthcare Ltd_a,Supported Other Accommodation - Private Contractors Payment,1751.12,0.00,COMMERCIAL SUPPLIER 
 31-05-2022,Adults,Affinia Healthcare Ltd_a,Supported Other Accommodation - Private Contractors Payment,1751.12,0.00,COMMERCIAL SUPPLIER 
 31-05-2022,Adults,Affinia Healthcare Ltd_a,Supported Other Accommodation - Private Contractors Payment,1751.12,0.00,COMMERCIAL SUPPLIER 
 31-05-2022,Adults,Affinia Healthcare Ltd_a,Supported Other Accommodation - Private Contractors Payment,1751.12,0.00,COMMERCIAL SUPPLIER 
 06-05-2022,Adults,Affinia Healthcare Ltd_a,Supported Other Accommodation - Private Contractors Payment,1752.48,0.00,COMMERCIAL SUPPLIER 
 31-05-2022,Adults,Affinia Healthcare Ltd_a,Supported Other Accommodation - Private Contractors Payment,1752.48,0.00,COMMERCIAL SUPPLIER 
 06-05-2022,Adults,Coastal Supported Living CIC,Supported Other Accommodation - Private Contractors Payment,1752.92,0.00,COMMERCIAL SUPPLIER 
 31-05-2022,Adults,Coastal Supported Living CIC,Supported Other Accommodation - Private Contractors Payment,1752.92,0.00,COMMERCIAL SUPPLIER 
 06-05-2022,Adults,Abbottswood Lodge,Residential Placements - Private Contractors Payment,1763.76,0.00,COMMERCIAL SUPPLIER 
 31-05-2022,Adults,Abbottswood Lodge,Residential Placements - Private Contractors Payment,1763.76,0.00,COMMERCIAL SUPPLIER 
 31-05-2022,Adults,GCH - Hillside Nursing Home,Nursing Homes - Private Contractors Payment,1764.29,0.00,COMMERCIAL SUPPLIER 
 06-05-2022,Adults,Outlook Care - 4 Peel Way,Supported Other Accommodation - Private Contractors Payment,1771.65,0.00,COMMERCIAL SUPPLIER 
 06-05-2022,Adults,Bettertogether Limited,Supported Other Accommodation - Private Contractors Payment,1776.00,0.00,NON COMMERCIAL SUPPLIER 
 31-05-2022,Adults,Bettertogether Limited,Supported Other Accommodation - Private Contractors Payment,1776.00,0.00,NON COMMERCIAL SUPPLIER 
 31-05-2022,Adults,Barleycroft Care Home Ltd,Residential Placements - Private Contractors Payment,1787.14,0.00,COMMERCIAL SUPPLIER 
 06-05-2022,Adults,Outlook Care - 4 Peel Way,Supported Other Accommodation - Private Contractors Payment,1796.08,0.00,COMMERCIAL SUPPLIER 
 31-05-2022,Adults,Outlook Care - 4 Peel Way,Supported Other Accommodation - Private Contractors Payment,1796.08,0.00,COMMERCIAL SUPPLIER 
 09-05-2022,Adults,Care-Away Ltd T/A Care Support,Home Care - Private Contractors Payment,1797.12,0.00,COMMERCIAL SUPPLIER 
 31-05-2022,Adults,Care-Away Ltd T/A Care Support,Home Care - Private Contractors Payment,1797.12,0.00,COMMERCIAL SUPPLIER 
 10-05-2022,Adults,Manor Lodge Care Home,Residential Placements - Private Contractors Payment,1800.00,0.00,COMMERCIAL SUPPLIER 
 10-05-2022,Adults,Manor Lodge Care Home,Residential Placements - Private Contractors Payment,1800.00,0.00,COMMERCIAL SUPPLIER 
 09-05-2022,Adults,Home Sweet Home Care Ltd,Home Care - Private Contractors Payment,1817.78,0.00,COMMERCIAL SUPPLIER 
 06-05-2022,Adults,Affinia Healthcare Ltd_a,Supported Other Accommodation - Private Contractors Payment,1817.80,0.00,COMMERCIAL SUPPLIER 
 31-05-2022,Adults,Affinia Healthcare Ltd_a,Supported Other Accommodation - Private Contractors Payment,1817.80,0.00,COMMERCIAL SUPPLIER 
 09-05-2022,Adults,Romford Private Hire Ltd,Client Transport,1820.00,0.00,COMMERCIAL SUPPLIER 
 06-05-2022,Adults,Bettertogether Limited,Supported Other Accommodation - Private Contractors Payment,1832.00,0.00,NON COMMERCIAL SUPPLIER 
 06-05-2022,Adults,Bettertogether Limited,Supported Other Accommodation - Private Contractors Payment,1832.00,0.00,NON COMMERCIAL SUPPLIER 
 06-05-2022,Adults,Bettertogether Limited,Supported Other Accommodation - Private Contractors Payment,1832.00,0.00,NON COMMERCIAL SUPPLIER 
 06-05-2022,Adults,Bettertogether Limited,Supported Other Accommodation - Private Contractors Payment,1832.00,0.00,NON COMMERCIAL SUPPLIER 
 06-05-2022,Adults,Bettertogether Limited,Supported Other Accommodation - Private Contractors Payment,1832.00,0.00,NON COMMERCIAL SUPPLIER 
 06-05-2022,Adults,Bettertogether Limited,Supported Other Accommodation - Private Contractors Payment,1832.00,0.00,NON COMMERCIAL SUPPLIER 
 06-05-2022,Adults,Bettertogether Limited,Supported Other Accommodation - Private Contractors Payment,1832.00,0.00,NON COMMERCIAL SUPPLIER 
 31-05-2022,Adults,Bettertogether Limited,Supported Other Accommodation - Private Contractors Payment,1832.00,0.00,NON COMMERCIAL SUPPLIER 
 31-05-2022,Adults,Bettertogether Limited,Supported Other Accommodation - Private Contractors Payment,1832.00,0.00,NON COMMERCIAL SUPPLIER 
 31-05-2022,Adults,Bettertogether Limited,Supported Other Accommodation - Private Contractors Payment,1832.00,0.00,NON COMMERCIAL SUPPLIER 
 31-05-2022,Adults,Bettertogether Limited,Supported Other Accommodation - Private Contractors Payment,1832.00,0.00,NON COMMERCIAL SUPPLIER 
 31-05-2022,Adults,Bettertogether Limited,Supported Other Accommodation - Private Contractors Payment,1832.00,0.00,NON COMMERCIAL SUPPLIER 
 31-05-2022,Adults,Bettertogether Limited,Supported Other Accommodation - Private Contractors Payment,1832.00,0.00,NON COMMERCIAL SUPPLIER 
 31-05-2022,Adults,Bettertogether Limited,Supported Other Accommodation - Private Contractors Payment,1832.00,0.00,NON COMMERCIAL SUPPLIER 
 06-05-2022,Adults,Ranc Care Homes Ltd - Romford Care Centre,Nursing Homes - Private Contractors Payment,1857.14,0.00,COMMERCIAL SUPPLIER 
 31-05-2022,Adults,DMP Healthcare (Heatherbrook) Ltd,Nursing Homes - Private Contractors Payment,1860.00,0.00,NON COMMERCIAL SUPPLIER 
 02-05-2022,Adults,Gims Care Solution Ltd_a,Home Care - Private Contractors Payment,1889.28,0.00,NON COMMERCIAL SUPPLIER 
 06-05-2022,Adults,Maison Moti Ltd,Supported Other Accommodation - Private Contractors Payment,1890.00,0.00,COMMERCIAL SUPPLIER 
 06-05-2022,Adults,Heath Care Services Ltd ,Supported Other Accommodation - Private Contractors Payment,1890.00,0.00,COMMERCIAL SUPPLIER 
 31-05-2022,Adults,Maison Moti Ltd,Supported Other Accommodation - Private Contractors Payment,1890.00,0.00,COMMERCIAL SUPPLIER 
 06-05-2022,Adults,Affinia Healthcare Ltd_a,Supported Other Accommodation - Private Contractors Payment,1901.04,0.00,COMMERCIAL SUPPLIER 
 31-05-2022,Adults,Affinia Healthcare Ltd_a,Supported Other Accommodation - Private Contractors Payment,1901.04,0.00,COMMERCIAL SUPPLIER 
 06-05-2022,Adults,Ashgate House Ltd_a,Residential Placements - Private Contractors Payment,1932.96,0.00,COMMERCIAL SUPPLIER 
 31-05-2022,Adults,Ashgate House Ltd_a,Residential Placements - Private Contractors Payment,1932.96,0.00,COMMERCIAL SUPPLIER 
 31-05-2022,Adults,EC Romford Holdings Ltd,Residential Placements - Private Contractors Payment,1934.00,0.00,COMMERCIAL SUPPLIER 
 06-05-2022,Adults,Endsleigh Care Ltd,Residential Placements - Private Contractors Payment,1940.84,0.00,COMMERCIAL SUPPLIER 
 31-05-2022,Adults,Endsleigh Care Ltd,Residential Placements - Private Contractors Payment,1940.84,0.00,COMMERCIAL SUPPLIER 
 31-05-2022,Adults,DMP Healthcare (Heatherbrook) Ltd,Nursing Homes - Private Contractors Payment,1950.00,0.00,NON COMMERCIAL SUPPLIER 
 06-05-2022,Adults,MNS Care Plc_a,Respite Care - Private Contractors Payment,1951.43,0.00,COMMERCIAL SUPPLIER 
 31-05-2022,Adults,DMP Healthcare (Heatherbrook) Ltd,Nursing Homes - Private Contractors Payment,1953.00,0.00,NON COMMERCIAL SUPPLIER 
 31-05-2022,Adults,Ranc Care Homes Ltd - Romford Care Centre,Respite Care - Private Contractors Payment,1964.29,0.00,COMMERCIAL SUPPLIER 
 03-05-2022,Adults,London Borough of Barking & Dagenham_a,Daycare - Private Contractors Payment,1980.00,0.00,LOCAL AUTHORITY SERVICES 
 31-05-2022,Adults,Care-Away Ltd T/A Care Support,Home Care - Private Contractors Payment,1980.16,0.00,COMMERCIAL SUPPLIER 
 06-05-2022,Adults,Lodge Lane Care Home Limited,Residential Placements - Private Contractors Payment,1985.71,0.00,COMMERCIAL SUPPLIER 
 06-05-2022,Adults,Ranc Care Homes Ltd - Romford Care Centre,Respite Care - Private Contractors Payment,1985.71,0.00,COMMERCIAL SUPPLIER 
 31-05-2022,Adults,Lodge Lane Care Home Limited,Residential Placements - Private Contractors Payment,1985.71,0.00,COMMERCIAL SUPPLIER 
 09-05-2022,Adults,Care-Away Ltd T/A Care Support,Home Care - Private Contractors Payment,1996.80,0.00,COMMERCIAL SUPPLIER 
 09-05-2022,Adults,Care-Away Ltd T/A Care Support,Home Care - Private Contractors Payment,1996.80,0.00,COMMERCIAL SUPPLIER 
 06-05-2022,Adults,Blueboard Care Services Ltd,Supported Other Accommodation - Private Contractors Payment,1999.20,0.00,COMMERCIAL SUPPLIER 
 31-05-2022,Adults,Blueboard Care Services Ltd,Supported Other Accommodation - Private Contractors Payment,1999.20,0.00,COMMERCIAL SUPPLIER 
 01-05-2022,Adults,Marlow,Residential Placements - Private Contractors Payment,2018.48,0.00,COMMERCIAL SUPPLIER 
 01-05-2022,Adults,Lorablooms Care Services Ltd,Home Care - Private Contractors Payment,2027.52,0.00,NON COMMERCIAL SUPPLIER 
 01-05-2022,Adults,Lorablooms Care Services Ltd,Home Care - Private Contractors Payment,2027.52,0.00,NON COMMERCIAL SUPPLIER 
 09-05-2022,Adults,Bluebird Care Havering,Home Care - Private Contractors Payment,2028.78,0.00,COMMERCIAL SUPPLIER 
 30-05-2022,Adults,Care-Away Ltd T/A Care Support,Home Care - Private Contractors Payment,2030.08,0.00,COMMERCIAL SUPPLIER 
 06-05-2022,Adults,John Stanleys Care Agency Ltd,Home Care - Private Contractors Payment,2032.94,0.00,COMMERCIAL SUPPLIER 
 06-05-2022,Adults,Adjuvo Care Essex Ltd ,Supported Other Accommodation - Private Contractors Payment,2033.72,0.00,COMMERCIAL SUPPLIER 
 31-05-2022,Adults,Adjuvo Care Essex Ltd ,Supported Other Accommodation - Private Contractors Payment,2033.72,0.00,COMMERCIAL SUPPLIER 
 06-05-2022,Adults,DMP Healthcare (Heatherbrook) Ltd,Nursing Homes - Private Contractors Payment,2034.00,0.00,NON COMMERCIAL SUPPLIER 
 31-05-2022,Adults,DMP Healthcare (Heatherbrook) Ltd,Nursing Homes - Private Contractors Payment,2034.00,0.00,NON COMMERCIAL SUPPLIER 
 11-05-2022,Adults,Matrix SCM Ltd,Agency Staff,2037.44,0.00,COMMERCIAL SUPPLIER 
 06-05-2022,Adults,Black Swan International Ltd - Drummonds,Residential Placements - Private Contractors Payment,2044.00,0.00,COMMERCIAL SUPPLIER 
 31-05-2022,Adults,Black Swan International Ltd - Drummonds,Residential Placements - Private Contractors Payment,2044.00,0.00,COMMERCIAL SUPPLIER 
 16-05-2022,Adults,Trinity London Care Ltd,Daycare - Private Contractors Payment,2050.00,0.00,COMMERCIAL SUPPLIER 
 16-05-2022,Adults,Trinity London Care Ltd,Daycare - Private Contractors Payment,2050.00,0.00,COMMERCIAL SUPPLIER 
 16-05-2022,Adults,Trinity London Care Ltd,Daycare - Private Contractors Payment,2050.00,0.00,COMMERCIAL SUPPLIER 
 06-05-2022,Adults,Affinia Healthcare Ltd_a,Supported Other Accommodation - Private Contractors Payment,2053.68,0.00,COMMERCIAL SUPPLIER 
 31-05-2022,Adults,Affinia Healthcare Ltd_a,Supported Other Accommodation - Private Contractors Payment,2053.68,0.00,COMMERCIAL SUPPLIER 
 06-05-2022,Adults,Bettertogether Limited,Supported Other Accommodation - Private Contractors Payment,2056.00,0.00,NON COMMERCIAL SUPPLIER 
 06-05-2022,Adults,Bettertogether Limited,Supported Other Accommodation - Private Contractors Payment,2056.00,0.00,NON COMMERCIAL SUPPLIER 
 06-05-2022,Adults,Bettertogether Limited,Supported Other Accommodation - Private Contractors Payment,2056.00,0.00,NON COMMERCIAL SUPPLIER 
 31-05-2022,Adults,Bettertogether Limited,Supported Other Accommodation - Private Contractors Payment,2056.00,0.00,NON COMMERCIAL SUPPLIER 
 31-05-2022,Adults,Bettertogether Limited,Supported Other Accommodation - Private Contractors Payment,2056.00,0.00,NON COMMERCIAL SUPPLIER 
 31-05-2022,Adults,Bettertogether Limited,Supported Other Accommodation - Private Contractors Payment,2056.00,0.00,NON COMMERCIAL SUPPLIER 
 06-05-2022,Adults,One Tree Estates Ltd t/a Ashbrook Nursing Home,Nursing Homes - Private Contractors Payment,2064.29,0.00,COMMERCIAL SUPPLIER 
 06-05-2022,Adults,Sahara Care Ltd,Residential Placements - Private Contractors Payment,2072.00,0.00,COMMERCIAL SUPPLIER 
 31-05-2022,Adults,Sahara Care Ltd,Residential Placements - Private Contractors Payment,2072.00,0.00,COMMERCIAL SUPPLIER 
 06-05-2022,Adults,Crowstone Care Home Ltd - The Grange,Residential Placements - Private Contractors Payment,2078.44,0.00,COMMERCIAL SUPPLIER 
 31-05-2022,Adults,Crowstone Care Home Ltd - The Grange,Residential Placements - Private Contractors Payment,2078.44,0.00,COMMERCIAL SUPPLIER 
 06-05-2022,Adults,Lodge Lane Care Home Limited,Residential Placements - Private Contractors Payment,2085.00,0.00,COMMERCIAL SUPPLIER 
 06-05-2022,Adults,GCH - Hillside Nursing Home,Nursing Homes - Private Contractors Payment,2089.29,0.00,COMMERCIAL SUPPLIER 
 31-05-2022,Adults,Havering Care Homes Ltd t/a Upminster Nursing Home,Nursing Homes - Private Contractors Payment,2089.29,0.00,COMMERCIAL SUPPLIER 
 31-05-2022,Adults,Care-Away Ltd T/A Care Support,Home Care - Private Contractors Payment,2096.64,0.00,COMMERCIAL SUPPLIER 
 06-05-2022,Adults,Alpine Resources UK Ltd,Supported Other Accommodation - Private Contractors Payment,2100.00,0.00,COMMERCIAL SUPPLIER 
 06-05-2022,Adults,Ebony Health Care Services Limited,Supported Other Accommodation - Private Contractors Payment,2100.00,0.00,COMMERCIAL SUPPLIER 
 06-05-2022,Adults,Ebony Health Care Services Limited,Supported Other Accommodation - Private Contractors Payment,2100.00,0.00,COMMERCIAL SUPPLIER 
 31-05-2022,Adults,Alpine Resources UK Ltd,Supported Other Accommodation - Private Contractors Payment,2100.00,0.00,COMMERCIAL SUPPLIER 
 31-05-2022,Adults,Ebony Health Care Services Limited,Supported Other Accommodation - Private Contractors Payment,2100.00,0.00,COMMERCIAL SUPPLIER 
 31-05-2022,Adults,One Tree Estates Ltd t/a Ashbrook Nursing Home,Nursing Homes - Private Contractors Payment,2112.00,0.00,COMMERCIAL SUPPLIER 
 06-05-2022,Adults,Outreach Support Services Ltd,Supported Other Accommodation - Private Contractors Payment,2121.00,0.00,COMMERCIAL SUPPLIER 
 31-05-2022,Adults,Outreach Support Services Ltd,Supported Other Accommodation - Private Contractors Payment,2121.00,0.00,COMMERCIAL SUPPLIER 
 06-05-2022,Adults,Fountains Care Centre - Bondcare,Nursing Homes - Private Contractors Payment,2130.86,0.00,COMMERCIAL SUPPLIER 
 06-05-2022,Adults,Runwood Homes Plc - Woodbury Court,Residential Placements - Private Contractors Payment,2132.00,0.00,COMMERCIAL SUPPLIER 
 31-05-2022,Adults,Runwood Homes Plc - Woodbury Court,Residential Placements - Private Contractors Payment,2132.00,0.00,COMMERCIAL SUPPLIER 
 03-05-2022,Adults,London Borough of Barking & Dagenham_a,Daycare - Private Contractors Payment,2160.00,0.00,LOCAL AUTHORITY SERVICES 
 20-05-2022,Adults,Personal Information ? Redacted,Home Care - Private Contractors Payment,2164.80,0.00,INDIVIDUALS 
 06-05-2022,Adults,Lukka Care Homes Ltd - Ravenscourt,Respite Care - Private Contractors Payment,2166.86,0.00,COMMERCIAL SUPPLIER 
 31-05-2022,Adults,GCH - Hillside Nursing Home,Nursing Homes - Private Contractors Payment,2171.43,0.00,COMMERCIAL SUPPLIER 
 09-05-2022,Adults,Care-Away Ltd T/A Care Support,Home Care - Private Contractors Payment,2196.48,0.00,COMMERCIAL SUPPLIER 
 31-05-2022,Adults,Cygnet Health Care,Residential Placements - Private Contractors Payment,2205.00,0.00,COMMERCIAL SUPPLIER 
 31-05-2022,Adults,Cygnet Health Care,Residential Placements - Private Contractors Payment,2205.00,0.00,COMMERCIAL SUPPLIER 
 31-05-2022,Adults,Cygnet Health Care,Residential Placements - Private Contractors Payment,2205.00,0.00,COMMERCIAL SUPPLIER 
 31-05-2022,Adults,Cygnet Health Care,Residential Placements - Private Contractors Payment,2205.00,0.00,COMMERCIAL SUPPLIER 
 31-05-2022,Adults,Cygnet Health Care,Residential Placements - Private Contractors Payment,2205.00,0.00,COMMERCIAL SUPPLIER 
 11-05-2022,Adults,Matrix SCM Ltd,Agency Staff,2222.16,0.00,COMMERCIAL SUPPLIER 
 18-05-2022,Adults,Matrix SCM Ltd,Agency Staff,2222.16,0.00,COMMERCIAL SUPPLIER 
 06-05-2022,Adults,One Tree Estates Ltd t/a Ashbrook Nursing Home,Nursing Homes - Private Contractors Payment,2228.57,0.00,COMMERCIAL SUPPLIER 
 31-05-2022,Adults,DMP Healthcare (Heatherbrook) Ltd,Nursing Homes - Private Contractors Payment,2228.57,0.00,NON COMMERCIAL SUPPLIER 
 31-05-2022,Adults,Barleycroft Care Home Ltd,Nursing Homes - Private Contractors Payment,2228.57,0.00,COMMERCIAL SUPPLIER 
 31-05-2022,Adults,DMP Healthcare (Heatherbrook) Ltd,Nursing Homes - Private Contractors Payment,2232.00,0.00,NON COMMERCIAL SUPPLIER 
 06-05-2022,Adults,Bettertogether Limited,Supported Other Accommodation - Private Contractors Payment,2236.00,0.00,NON COMMERCIAL SUPPLIER 
 31-05-2022,Adults,Bettertogether Limited,Supported Other Accommodation - Private Contractors Payment,2236.00,0.00,NON COMMERCIAL SUPPLIER 
 09-05-2022,Adults,Bluebird Care Havering,Home Care - Private Contractors Payment,2250.00,0.00,COMMERCIAL SUPPLIER 
 30-05-2022,Adults,All Therapy Solutions Ltd,Occupational Health,2250.00,0.00,COMMERCIAL SUPPLIER 
 06-05-2022,Adults,The Maltings Care Home,Residential Placements - Private Contractors Payment,2250.64,0.00,COMMERCIAL SUPPLIER 
 06-05-2022,Adults,Outlook Care_a,Supported Other Accommodation - Private Contractors Payment,2253.44,0.00,COMMERCIAL SUPPLIER 
 31-05-2022,Adults,Outlook Care_a,Supported Other Accommodation - Private Contractors Payment,2253.44,0.00,COMMERCIAL SUPPLIER 
 06-05-2022,Adults,Beechcourt Care Centre - Bondcare,Nursing Homes - Private Contractors Payment,2257.14,0.00,COMMERCIAL SUPPLIER 
 06-05-2022,Adults,Faris Lodge,Supported Other Accommodation - Private Contractors Payment,2267.72,0.00,COMMERCIAL SUPPLIER 
 31-05-2022,Adults,Faris Lodge,Supported Other Accommodation - Private Contractors Payment,2267.72,0.00,COMMERCIAL SUPPLIER 
 06-05-2022,Adults,Pathways Care Group Ltd,Residential Placements - Private Contractors Payment,2285.56,0.00,COMMERCIAL SUPPLIER 
 31-05-2022,Adults,Pathways Care Group Ltd,Residential Placements - Private Contractors Payment,2285.56,0.00,COMMERCIAL SUPPLIER 
 06-05-2022,Adults,Park Riding,Residential Placements - Private Contractors Payment,2295.12,0.00,COMMERCIAL SUPPLIER 
 31-05-2022,Adults,Park Riding,Residential Placements - Private Contractors Payment,2295.12,0.00,COMMERCIAL SUPPLIER 
 06-05-2022,Adults,DMP Healthcare (Cherry Orchard) Ltd,Residential Placements - Private Contractors Payment,2300.12,0.00,COMMERCIAL SUPPLIER 
 31-05-2022,Adults,DMP Healthcare (Cherry Orchard) Ltd,Residential Placements - Private Contractors Payment,2300.12,0.00,COMMERCIAL SUPPLIER 
 06-05-2022,Adults,Moreland House_a,Nursing Homes - Private Contractors Payment,2306.24,0.00,COMMERCIAL SUPPLIER 
 31-05-2022,Adults,Moreland House_a,Nursing Homes - Private Contractors Payment,2306.24,0.00,COMMERCIAL SUPPLIER 
 06-05-2022,Adults,Livability - John Grooms Court,Residential Placements - Private Contractors Payment,2311.28,0.00,COMMERCIAL SUPPLIER 
 06-05-2022,Adults,Livability - John Grooms Court,Residential Placements - Private Contractors Payment,2311.28,0.00,COMMERCIAL SUPPLIER 
 31-05-2022,Adults,Livability - John Grooms Court,Residential Placements - Private Contractors Payment,2311.28,0.00,COMMERCIAL SUPPLIER 
 31-05-2022,Adults,Livability - John Grooms Court,Residential Placements - Private Contractors Payment,2311.28,0.00,COMMERCIAL SUPPLIER 
 06-05-2022,Adults,Fountains Care Centre - Bondcare,Residential Placements - Private Contractors Payment,2314.24,0.00,COMMERCIAL SUPPLIER 
 31-05-2022,Adults,Fountains Care Centre - Bondcare,Residential Placements - Private Contractors Payment,2314.24,0.00,COMMERCIAL SUPPLIER 
 31-05-2022,Adults,Care-Away Ltd T/A Care Support,Home Care - Private Contractors Payment,2329.60,0.00,COMMERCIAL SUPPLIER 
 06-05-2022,Adults,Sahara Care Ltd,Residential Placements - Private Contractors Payment,2335.71,0.00,COMMERCIAL SUPPLIER 
 06-05-2022,Adults,2 Peel Way - Outlook Care,Supported Other Accommodation - Private Contractors Payment,2344.96,0.00,NON COMMERCIAL SUPPLIER 
 31-05-2022,Adults,2 Peel Way - Outlook Care,Supported Other Accommodation - Private Contractors Payment,2344.96,0.00,NON COMMERCIAL SUPPLIER 
 31-05-2022,Adults,Lorablooms Care Services Ltd,Home Care - Private Contractors Payment,2365.44,0.00,NON COMMERCIAL SUPPLIER 
 31-05-2022,Adults,Lorablooms Care Services Ltd,Home Care - Private Contractors Payment,2365.44,0.00,NON COMMERCIAL SUPPLIER 
 06-05-2022,Adults,HC-One Oval Ltd - Chaseview,Nursing Homes - Private Contractors Payment,2367.86,0.00,COMMERCIAL SUPPLIER 
 09-05-2022,Adults,Care-Away Ltd T/A Care Support,Home Care - Private Contractors Payment,2396.16,0.00,COMMERCIAL SUPPLIER 
 06-05-2022,Adults,One Tree Estates Ltd t/a Ashbrook Nursing Home,Nursing Homes - Private Contractors Payment,2400.00,0.00,COMMERCIAL SUPPLIER 
 10-05-2022,Adults,All Therapy Solutions Ltd,Occupational Health,2400.00,0.00,COMMERCIAL SUPPLIER 
 06-05-2022,Adults,Clearwater Care (Hackney) Ltd - Craigdale,Supported Other Accommodation - Private Contractors Payment,2413.04,0.00,COMMERCIAL SUPPLIER 
 31-05-2022,Adults,Clearwater Care (Hackney) Ltd - Craigdale,Supported Other Accommodation - Private Contractors Payment,2413.04,0.00,COMMERCIAL SUPPLIER 
 31-05-2022,Adults,Ranc Care Homes Ltd - Romford Care Centre,Nursing Care Income,2414.28,0.00,COMMERCIAL SUPPLIER 
 06-05-2022,Adults,Masumin Ltd t/s Abbeleigh House,Residential Placements - Private Contractors Payment,2416.00,0.00,COMMERCIAL SUPPLIER 
 06-05-2022,Adults,Masumin Ltd t/s Abbeleigh House,Residential Placements - Private Contractors Payment,2416.00,0.00,COMMERCIAL SUPPLIER 
 06-05-2022,Adults,Masumin Ltd t/s Abbeleigh House,Residential Placements - Private Contractors Payment,2416.00,0.00,COMMERCIAL SUPPLIER 
 06-05-2022,Adults,Masumin Ltd t/s Abbeleigh House,Residential Placements - Private Contractors Payment,2416.00,0.00,COMMERCIAL SUPPLIER 
 06-05-2022,Adults,Masumin Ltd t/s Abbeleigh House,Residential Placements - Private Contractors Payment,2416.00,0.00,COMMERCIAL SUPPLIER 
 06-05-2022,Adults,Masumin Ltd t/s Abbeleigh House,Residential Placements - Private Contractors Payment,2416.00,0.00,COMMERCIAL SUPPLIER 
 31-05-2022,Adults,Ash Grove Residential Care Home,Residential Placements - Private Contractors Payment,2416.00,0.00,COMMERCIAL SUPPLIER 
 31-05-2022,Adults,Ash Grove Residential Care Home,Residential Placements - Private Contractors Payment,2416.00,0.00,COMMERCIAL SUPPLIER 
 31-05-2022,Adults,Ash Grove Residential Care Home,Residential Placements - Private Contractors Payment,2416.00,0.00,COMMERCIAL SUPPLIER 
 31-05-2022,Adults,Ash Grove Residential Care Home,Residential Placements - Private Contractors Payment,2416.00,0.00,COMMERCIAL SUPPLIER 
 31-05-2022,Adults,Ash Grove Residential Care Home,Residential Placements - Private Contractors Payment,2416.00,0.00,COMMERCIAL SUPPLIER 
 31-05-2022,Adults,Ash Grove Residential Care Home,Residential Placements - Private Contractors Payment,2416.00,0.00,COMMERCIAL SUPPLIER 
 31-05-2022,Adults,Ash Grove Residential Care Home,Residential Placements - Private Contractors Payment,2416.00,0.00,COMMERCIAL SUPPLIER 
 31-05-2022,Adults,Ash Grove Residential Care Home,Residential Placements - Private Contractors Payment,2416.00,0.00,COMMERCIAL SUPPLIER 
 31-05-2022,Adults,Ash Grove Residential Care Home,Residential Placements - Private Contractors Payment,2416.00,0.00,COMMERCIAL SUPPLIER 
 31-05-2022,Adults,Ash Grove Residential Care Home,Residential Placements - Private Contractors Payment,2416.00,0.00,COMMERCIAL SUPPLIER 
 31-05-2022,Adults,Ash Grove Residential Care Home,Residential Placements - Private Contractors Payment,2416.00,0.00,COMMERCIAL SUPPLIER 
 31-05-2022,Adults,Ash Grove Residential Care Home,Residential Placements - Private Contractors Payment,2416.00,0.00,COMMERCIAL SUPPLIER 
 31-05-2022,Adults,Ash Grove Residential Care Home,Residential Placements - Private Contractors Payment,2416.00,0.00,COMMERCIAL SUPPLIER 
 31-05-2022,Adults,Ash Grove Residential Care Home,Residential Placements - Private Contractors Payment,2416.00,0.00,COMMERCIAL SUPPLIER 
 31-05-2022,Adults,Ash Grove Residential Care Home,Residential Placements - Private Contractors Payment,2416.00,0.00,COMMERCIAL SUPPLIER 
 31-05-2022,Adults,Ash Grove Residential Care Home,Residential Placements - Private Contractors Payment,2416.00,0.00,COMMERCIAL SUPPLIER 
 31-05-2022,Adults,Ash Grove Residential Care Home,Residential Placements - Private Contractors Payment,2416.00,0.00,COMMERCIAL SUPPLIER 
 31-05-2022,Adults,Ash Grove Residential Care Home,Residential Placements - Private Contractors Payment,2416.00,0.00,COMMERCIAL SUPPLIER 
 31-05-2022,Adults,Ash Grove Residential Care Home,Residential Placements - Private Contractors Payment,2416.00,0.00,COMMERCIAL SUPPLIER 
 31-05-2022,Adults,Ash Grove Residential Care Home,Residential Placements - Private Contractors Payment,2416.00,0.00,COMMERCIAL SUPPLIER 
 31-05-2022,Adults,Ash Grove Residential Care Home,Residential Placements - Private Contractors Payment,2416.00,0.00,COMMERCIAL SUPPLIER 
 31-05-2022,Adults,Ash Grove Residential Care Home,Residential Placements - Private Contractors Payment,2416.00,0.00,COMMERCIAL SUPPLIER 
 31-05-2022,Adults,Ash Grove Residential Care Home,Residential Placements - Private Contractors Payment,2416.00,0.00,COMMERCIAL SUPPLIER 
 31-05-2022,Adults,Ash Grove Residential Care Home,Residential Placements - Private Contractors Payment,2416.00,0.00,COMMERCIAL SUPPLIER 
 31-05-2022,Adults,Ash Grove Residential Care Home,Residential Placements - Private Contractors Payment,2416.00,0.00,COMMERCIAL SUPPLIER 
 31-05-2022,Adults,Ash Grove Residential Care Home,Residential Placements - Private Contractors Payment,2416.00,0.00,COMMERCIAL SUPPLIER 
 31-05-2022,Adults,Ash Grove Residential Care Home,Residential Placements - Private Contractors Payment,2416.00,0.00,COMMERCIAL SUPPLIER 
 31-05-2022,Adults,Ash Grove Residential Care Home,Residential Placements - Private Contractors Payment,2416.00,0.00,COMMERCIAL SUPPLIER 
 31-05-2022,Adults,Ash Grove Residential Care Home,Residential Placements - Private Contractors Payment,2416.00,0.00,COMMERCIAL SUPPLIER 
 31-05-2022,Adults,Ash Grove Residential Care Home,Residential Placements - Private Contractors Payment,2416.00,0.00,COMMERCIAL SUPPLIER 
 31-05-2022,Adults,Ash Grove Residential Care Home,Residential Placements - Private Contractors Payment,2416.00,0.00,COMMERCIAL SUPPLIER 
 31-05-2022,Adults,Ash Grove Residential Care Home,Residential Placements - Private Contractors Payment,2416.00,0.00,COMMERCIAL SUPPLIER 
 06-05-2022,Adults,Ebony Health Care Services Limited,Supported Other Accommodation - Private Contractors Payment,2417.68,0.00,COMMERCIAL SUPPLIER 
 31-05-2022,Adults,Ebony Health Care Services Limited,Supported Other Accommodation - Private Contractors Payment,2417.68,0.00,COMMERCIAL SUPPLIER 
 06-05-2022,Adults,Clearwater Care (Hackney) Ltd - Craigdale,Supported Other Accommodation - Private Contractors Payment,2425.52,0.00,COMMERCIAL SUPPLIER 
 31-05-2022,Adults,Clearwater Care (Hackney) Ltd - Craigdale,Supported Other Accommodation - Private Contractors Payment,2425.52,0.00,COMMERCIAL SUPPLIER 
 06-05-2022,Adults,St Mary's House,Residential Placements - Private Contractors Payment,2427.28,0.00,COMMERCIAL SUPPLIER 
 31-05-2022,Adults,St Mary's House,Residential Placements - Private Contractors Payment,2427.28,0.00,COMMERCIAL SUPPLIER 
 06-05-2022,Adults,Sandstone Care Liverpool Ltd,Residential Placements - Private Contractors Payment,2438.76,0.00,COMMERCIAL SUPPLIER 
 31-05-2022,Adults,Sandstone Care Liverpool Ltd,Residential Placements - Private Contractors Payment,2438.76,0.00,COMMERCIAL SUPPLIER 
 11-05-2022,Adults,Essex Cares Ltd,Private Contractors Payment - Other,2440.75,0.00,COMMERCIAL SUPPLIER 
 23-05-2022,Adults,Bluebird Care Havering,Home Care - Private Contractors Payment,2450.00,0.00,COMMERCIAL SUPPLIER 
 23-05-2022,Adults,Bluebird Care Havering,Home Care - Private Contractors Payment,2450.00,0.00,COMMERCIAL SUPPLIER 
 23-05-2022,Adults,Bluebird Care Havering,Home Care - Private Contractors Payment,2450.00,0.00,COMMERCIAL SUPPLIER 
 06-05-2022,Adults,Gable Court Nursing Home Ltd,Nursing Homes - Private Contractors Payment,2452.76,0.00,COMMERCIAL SUPPLIER 
 31-05-2022,Adults,Gable Court Nursing Home Ltd,Nursing Homes - Private Contractors Payment,2452.76,0.00,COMMERCIAL SUPPLIER 
 06-05-2022,Adults,Adjuvo Care and Support Ltd,Supported Other Accommodation - Private Contractors Payment,2463.68,0.00,COMMERCIAL SUPPLIER 
 31-05-2022,Adults,Adjuvo Care and Support Ltd,Supported Other Accommodation - Private Contractors Payment,2463.68,0.00,COMMERCIAL SUPPLIER 
 06-05-2022,Adults,Black Swan International Ltd - Drummonds,Residential Placements - Private Contractors Payment,2468.80,0.00,COMMERCIAL SUPPLIER 
 06-05-2022,Adults,Black Swan International Ltd - Drummonds,Residential Placements - Private Contractors Payment,2468.80,0.00,COMMERCIAL SUPPLIER 
 31-05-2022,Adults,Black Swan International Ltd - Drummonds,Residential Placements - Private Contractors Payment,2468.80,0.00,COMMERCIAL SUPPLIER 
 31-05-2022,Adults,Black Swan International Ltd - Drummonds,Residential Placements - Private Contractors Payment,2468.80,0.00,COMMERCIAL SUPPLIER 
 06-05-2022,Adults,Highfield Care Homes Ltd t/a Romford Grange Care Home,Nursing Homes - Private Contractors Payment,2472.84,0.00,COMMERCIAL SUPPLIER 
 31-05-2022,Adults,Highfield Care Homes Ltd t/a Romford Grange Care Home,Nursing Homes - Private Contractors Payment,2472.84,0.00,COMMERCIAL SUPPLIER 
 06-05-2022,Adults,Fountains Care Centre - Bondcare,Residential Placements - Private Contractors Payment,2480.00,0.00,COMMERCIAL SUPPLIER 
 06-05-2022,Adults,Fountains Care Centre - Bondcare,Residential Placements - Private Contractors Payment,2480.00,0.00,COMMERCIAL SUPPLIER 
 06-05-2022,Adults,Fountains Care Centre - Bondcare,Residential Placements - Private Contractors Payment,2480.00,0.00,COMMERCIAL SUPPLIER 
 06-05-2022,Adults,Fountains Care Centre - Bondcare,Residential Placements - Private Contractors Payment,2480.00,0.00,COMMERCIAL SUPPLIER 
 06-05-2022,Adults,Highfield Care Homes Ltd t/a Romford Grange Care Home,Residential Placements - Private Contractors Payment,2480.00,0.00,COMMERCIAL SUPPLIER 
 06-05-2022,Adults,Highfield Care Homes Ltd t/a Romford Grange Care Home,Residential Placements - Private Contractors Payment,2480.00,0.00,COMMERCIAL SUPPLIER 
 06-05-2022,Adults,HC-One Oval Ltd - The Hornchurch Nursing Centre,Nursing Homes - Private Contractors Payment,2480.00,0.00,COMMERCIAL SUPPLIER 
 06-05-2022,Adults,HC-One Oval Ltd - The Hornchurch Nursing Centre,Nursing Homes - Private Contractors Payment,2480.00,0.00,COMMERCIAL SUPPLIER 
 06-05-2022,Adults,Beechcourt Care Centre - Bondcare,Residential Placements - Private Contractors Payment,2480.00,0.00,COMMERCIAL SUPPLIER 
 06-05-2022,Adults,Oakley Carehomes Ltd t/a Abbey Care Home,Residential Placements - Private Contractors Payment,2480.00,0.00,COMMERCIAL SUPPLIER 
 06-05-2022,Adults,Masumin Ltd t/s Abbeleigh House,Residential Placements - Private Contractors Payment,2480.00,0.00,COMMERCIAL SUPPLIER 
 06-05-2022,Adults,Clover Cottage Ltd,Residential Placements - Private Contractors Payment,2480.00,0.00,COMMERCIAL SUPPLIER 
 06-05-2022,Adults,Clover Cottage Ltd,Residential Placements - Private Contractors Payment,2480.00,0.00,COMMERCIAL SUPPLIER 
 06-05-2022,Adults,Clover Cottage Ltd,Residential Placements - Private Contractors Payment,2480.00,0.00,COMMERCIAL SUPPLIER 
 06-05-2022,Adults,Clover Cottage Ltd,Residential Placements - Private Contractors Payment,2480.00,0.00,COMMERCIAL SUPPLIER 
 06-05-2022,Adults,Clover Cottage Ltd,Residential Placements - Private Contractors Payment,2480.00,0.00,COMMERCIAL SUPPLIER 
 06-05-2022,Adults,Langley House,Residential Placements - Private Contractors Payment,2480.00,0.00,COMMERCIAL SUPPLIER 
 06-05-2022,Adults,Langley House,Residential Placements - Private Contractors Payment,2480.00,0.00,COMMERCIAL SUPPLIER 
 06-05-2022,Adults,Langley House,Residential Placements - Private Contractors Payment,2480.00,0.00,COMMERCIAL SUPPLIER 
 06-05-2022,Adults,Oaks Residential Home,Residential Placements - Private Contractors Payment,2480.00,0.00,COMMERCIAL SUPPLIER 
 06-05-2022,Adults,Priory Supporting Care Ltd,Residential Placements - Private Contractors Payment,2480.00,0.00,COMMERCIAL SUPPLIER 
 06-05-2022,Adults,Ash Grove Residential Care Home,Residential Placements - Private Contractors Payment,2480.00,0.00,COMMERCIAL SUPPLIER 
 06-05-2022,Adults,Ash Grove Residential Care Home,Residential Placements - Private Contractors Payment,2480.00,0.00,COMMERCIAL SUPPLIER 
 06-05-2022,Adults,Ash Grove Residential Care Home,Residential Placements - Private Contractors Payment,2480.00,0.00,COMMERCIAL SUPPLIER 
 06-05-2022,Adults,Ash Grove Residential Care Home,Residential Placements - Private Contractors Payment,2480.00,0.00,COMMERCIAL SUPPLIER 
 06-05-2022,Adults,GCH - Hillside Nursing Home,Residential Placements - Private Contractors Payment,2480.00,0.00,COMMERCIAL SUPPLIER 
 06-05-2022,Adults,Genesis Residential Homes Ltd - Dothan House,Residential Placements - Private Contractors Payment,2480.00,0.00,COMMERCIAL SUPPLIER 
 06-05-2022,Adults,Barleycroft Care Home Ltd,Residential Placements - Private Contractors Payment,2480.00,0.00,COMMERCIAL SUPPLIER 
 06-05-2022,Adults,Barleycroft Care Home Ltd,Residential Placements - Private Contractors Payment,2480.00,0.00,COMMERCIAL SUPPLIER 
 06-05-2022,Adults,Barleycroft Care Home Ltd,Residential Placements - Private Contractors Payment,2480.00,0.00,COMMERCIAL SUPPLIER 
 31-05-2022,Adults,Fountains Care Centre - Bondcare,Residential Placements - Private Contractors Payment,2480.00,0.00,COMMERCIAL SUPPLIER 
 31-05-2022,Adults,Fountains Care Centre - Bondcare,Residential Placements - Private Contractors Payment,2480.00,0.00,COMMERCIAL SUPPLIER 
 31-05-2022,Adults,Fountains Care Centre - Bondcare,Residential Placements - Private Contractors Payment,2480.00,0.00,COMMERCIAL SUPPLIER 
 31-05-2022,Adults,Fountains Care Centre - Bondcare,Residential Placements - Private Contractors Payment,2480.00,0.00,COMMERCIAL SUPPLIER 
 31-05-2022,Adults,Beechcourt Care Centre - Bondcare,Residential Placements - Private Contractors Payment,2480.00,0.00,COMMERCIAL SUPPLIER 
 31-05-2022,Adults,Oakley Carehomes Ltd t/a Abbey Care Home,Residential Placements - Private Contractors Payment,2480.00,0.00,COMMERCIAL SUPPLIER 
 31-05-2022,Adults,Masumin Ltd t/s Abbeleigh House,Residential Placements - Private Contractors Payment,2480.00,0.00,COMMERCIAL SUPPLIER 
 31-05-2022,Adults,Clover Cottage Ltd,Residential Placements - Private Contractors Payment,2480.00,0.00,COMMERCIAL SUPPLIER 
 31-05-2022,Adults,Clover Cottage Ltd,Residential Placements - Private Contractors Payment,2480.00,0.00,COMMERCIAL SUPPLIER 
 31-05-2022,Adults,Clover Cottage Ltd,Residential Placements - Private Contractors Payment,2480.00,0.00,COMMERCIAL SUPPLIER 
 31-05-2022,Adults,Clover Cottage Ltd,Residential Placements - Private Contractors Payment,2480.00,0.00,COMMERCIAL SUPPLIER 
 31-05-2022,Adults,Clover Cottage Ltd,Residential Placements - Private Contractors Payment,2480.00,0.00,COMMERCIAL SUPPLIER 
 31-05-2022,Adults,Langley House,Residential Placements - Private Contractors Payment,2480.00,0.00,COMMERCIAL SUPPLIER 
 31-05-2022,Adults,Langley House,Residential Placements - Private Contractors Payment,2480.00,0.00,COMMERCIAL SUPPLIER 
 31-05-2022,Adults,Langley House,Residential Placements - Private Contractors Payment,2480.00,0.00,COMMERCIAL SUPPLIER 
 31-05-2022,Adults,Oaks Residential Home,Residential Placements - Private Contractors Payment,2480.00,0.00,COMMERCIAL SUPPLIER 
 31-05-2022,Adults,Priory Supporting Care Ltd,Residential Placements - Private Contractors Payment,2480.00,0.00,COMMERCIAL SUPPLIER 
 31-05-2022,Adults,Ash Grove Residential Care Home,Residential Placements - Private Contractors Payment,2480.00,0.00,COMMERCIAL SUPPLIER 
 31-05-2022,Adults,Ash Grove Residential Care Home,Residential Placements - Private Contractors Payment,2480.00,0.00,COMMERCIAL SUPPLIER 
 31-05-2022,Adults,Ash Grove Residential Care Home,Residential Placements - Private Contractors Payment,2480.00,0.00,COMMERCIAL SUPPLIER 
 31-05-2022,Adults,GCH - Hillside Nursing Home,Residential Placements - Private Contractors Payment,2480.00,0.00,COMMERCIAL SUPPLIER 
 31-05-2022,Adults,Genesis Residential Homes Ltd - Dothan House,Residential Placements - Private Contractors Payment,2480.00,0.00,COMMERCIAL SUPPLIER 
 31-05-2022,Adults,Highfield Care Homes Ltd t/a Romford Grange Care Home,Residential Placements - Private Contractors Payment,2480.00,0.00,COMMERCIAL SUPPLIER 
 31-05-2022,Adults,Highfield Care Homes Ltd t/a Romford Grange Care Home,Residential Placements - Private Contractors Payment,2480.00,0.00,COMMERCIAL SUPPLIER 
 31-05-2022,Adults,Barleycroft Care Home Ltd,Residential Placements - Private Contractors Payment,2480.00,0.00,COMMERCIAL SUPPLIER 
 31-05-2022,Adults,Barleycroft Care Home Ltd,Residential Placements - Private Contractors Payment,2480.00,0.00,COMMERCIAL SUPPLIER 
 31-05-2022,Adults,Barleycroft Care Home Ltd,Residential Placements - Private Contractors Payment,2482.14,0.00,COMMERCIAL SUPPLIER 
 06-05-2022,Adults,Bupa Care Homes (CFH Care) Ltd ,Nursing Homes - Private Contractors Payment,2484.25,0.00,COMMERCIAL SUPPLIER 
 06-05-2022,Adults,Pathways Care Group Ltd,Residential Placements - Private Contractors Payment,2486.16,0.00,COMMERCIAL SUPPLIER 
 31-05-2022,Adults,Pathways Care Group Ltd,Residential Placements - Private Contractors Payment,2486.16,0.00,COMMERCIAL SUPPLIER 
 31-05-2022,Adults,Ranc Care Homes Ltd - Romford Care Centre,Respite Care - Private Contractors Payment,2500.00,0.00,COMMERCIAL SUPPLIER 
 31-05-2022,Adults,Ash Grove Residential Care Home,Residential Placements - Private Contractors Payment,2502.29,0.00,COMMERCIAL SUPPLIER 
 31-05-2022,Adults,Ash Grove Residential Care Home,Residential Placements - Private Contractors Payment,2502.29,0.00,COMMERCIAL SUPPLIER 
 06-05-2022,Adults,Alpine Resources UK Ltd,Supported Other Accommodation - Private Contractors Payment,2504.24,0.00,COMMERCIAL SUPPLIER 
 31-05-2022,Adults,Alpine Resources UK Ltd,Supported Other Accommodation - Private Contractors Payment,2504.24,0.00,COMMERCIAL SUPPLIER 
 06-05-2022,Adults,HC-One Oval Ltd - The Hornchurch Nursing Centre,Nursing Homes - Private Contractors Payment,2507.14,0.00,COMMERCIAL SUPPLIER 
 31-05-2022,Adults,Fountains Care Centre - Bondcare,Nursing Homes - Private Contractors Payment,2507.14,0.00,COMMERCIAL SUPPLIER 
 31-05-2022,Adults,DMP Healthcare (Heatherbrook) Ltd,Nursing Homes - Private Contractors Payment,2511.00,0.00,NON COMMERCIAL SUPPLIER 
 06-05-2022,Adults,HC-One Oval Ltd - Chaseview,Nursing Homes - Private Contractors Payment,2516.76,0.00,COMMERCIAL SUPPLIER 
 06-05-2022,Adults,Alexander Court Care Centre - Bondcare,Nursing Homes - Private Contractors Payment,2516.76,0.00,COMMERCIAL SUPPLIER 
 06-05-2022,Adults,Acer Healthcare Operation Ltd,Nursing Homes - Private Contractors Payment,2516.76,0.00,COMMERCIAL SUPPLIER 
 31-05-2022,Adults,HC-One Oval Ltd - Chaseview,Nursing Homes - Private Contractors Payment,2516.76,0.00,COMMERCIAL SUPPLIER 
 31-05-2022,Adults,Acer Healthcare Operation Ltd,Nursing Homes - Private Contractors Payment,2516.76,0.00,COMMERCIAL SUPPLIER 
 03-05-2022,Adults,All Therapy Solutions Ltd,Occupational Health,2520.00,0.00,COMMERCIAL SUPPLIER 
 06-05-2022,Adults,Ebony Health Care Services Limited,Supported Other Accommodation - Private Contractors Payment,2520.00,0.00,COMMERCIAL SUPPLIER 
 06-05-2022,Adults,Independent Community Support Ltd t/a Wingletye Lodge ,Supported Other Accommodation - Private Contractors Payment,2520.00,0.00,COMMERCIAL SUPPLIER 
 31-05-2022,Adults,Ebony Health Care Services Limited,Supported Other Accommodation - Private Contractors Payment,2520.00,0.00,COMMERCIAL SUPPLIER 
 31-05-2022,Adults,Independent Community Support Ltd t/a Wingletye Lodge ,Supported Other Accommodation - Private Contractors Payment,2520.00,0.00,COMMERCIAL SUPPLIER 
 06-05-2022,Adults,Masumin Ltd t/s Abbeleigh House,Residential Placements - Private Contractors Payment,2524.00,0.00,COMMERCIAL SUPPLIER 
 06-05-2022,Adults,Masumin Ltd t/s Abbeleigh House,Residential Placements - Private Contractors Payment,2524.00,0.00,COMMERCIAL SUPPLIER 
 06-05-2022,Adults,Masumin Ltd t/s Abbeleigh House,Residential Placements - Private Contractors Payment,2524.00,0.00,COMMERCIAL SUPPLIER 
 06-05-2022,Adults,Masumin Ltd t/s Abbeleigh House,Residential Placements - Private Contractors Payment,2524.00,0.00,COMMERCIAL SUPPLIER 
 06-05-2022,Adults,Masumin Ltd t/s Abbeleigh House,Residential Placements - Private Contractors Payment,2524.00,0.00,COMMERCIAL SUPPLIER 
 06-05-2022,Adults,Masumin Ltd t/s Abbeleigh House,Residential Placements - Private Contractors Payment,2524.00,0.00,COMMERCIAL SUPPLIER 
 06-05-2022,Adults,Masumin Ltd t/s Abbeleigh House,Residential Placements - Private Contractors Payment,2524.00,0.00,COMMERCIAL SUPPLIER 
 06-05-2022,Adults,Masumin Ltd t/s Abbeleigh House,Residential Placements - Private Contractors Payment,2524.00,0.00,COMMERCIAL SUPPLIER 
 06-05-2022,Adults,Masumin Ltd t/s Abbeleigh House,Residential Placements - Private Contractors Payment,2524.00,0.00,COMMERCIAL SUPPLIER 
 06-05-2022,Adults,Masumin Ltd t/s Abbeleigh House,Residential Placements - Private Contractors Payment,2524.00,0.00,COMMERCIAL SUPPLIER 
 06-05-2022,Adults,Masumin Ltd t/s Abbeleigh House,Residential Placements - Private Contractors Payment,2524.00,0.00,COMMERCIAL SUPPLIER 
 06-05-2022,Adults,Masumin Ltd t/s Abbeleigh House,Residential Placements - Private Contractors Payment,2524.00,0.00,COMMERCIAL SUPPLIER 
 06-05-2022,Adults,Ladyville Lodge_a,Nursing Homes - Private Contractors Payment,2525.92,0.00,COMMERCIAL SUPPLIER 
 31-05-2022,Adults,Ladyville Lodge_a,Nursing Homes - Private Contractors Payment,2525.92,0.00,COMMERCIAL SUPPLIER 
 06-05-2022,Adults,Manor Lodge Care Home,Residential Placements - Private Contractors Payment,2527.56,0.00,COMMERCIAL SUPPLIER 
 31-05-2022,Adults,Manor Lodge Care Home,Residential Placements - Private Contractors Payment,2527.56,0.00,COMMERCIAL SUPPLIER 
 06-05-2022,Adults,Havering Care Homes Ltd t/a Abbscross Nursing Home,Nursing Homes - Private Contractors Payment,2528.00,0.00,COMMERCIAL SUPPLIER 
 06-05-2022,Adults,Havering Care Homes Ltd t/a Abbscross Nursing Home,Nursing Homes - Private Contractors Payment,2528.00,0.00,COMMERCIAL SUPPLIER 
 06-05-2022,Adults,Havering Care Homes Ltd t/a Abbscross Nursing Home,Nursing Homes - Private Contractors Payment,2528.00,0.00,COMMERCIAL SUPPLIER 
 06-05-2022,Adults,Havering Care Homes Ltd t/a Abbscross Nursing Home,Nursing Homes - Private Contractors Payment,2528.00,0.00,COMMERCIAL SUPPLIER 
 06-05-2022,Adults,One Tree Estates Ltd t/a Ashbrook Nursing Home,Nursing Homes - Private Contractors Payment,2528.00,0.00,COMMERCIAL SUPPLIER 
 06-05-2022,Adults,Highfield Care Homes Ltd t/a Romford Grange Care Home,Nursing Homes - Private Contractors Payment,2528.00,0.00,COMMERCIAL SUPPLIER 
 06-05-2022,Adults,Highfield Care Homes Ltd t/a Romford Grange Care Home,Nursing Homes - Private Contractors Payment,2528.00,0.00,COMMERCIAL SUPPLIER 
 06-05-2022,Adults,Highfield Care Homes Ltd t/a Romford Grange Care Home,Nursing Homes - Private Contractors Payment,2528.00,0.00,COMMERCIAL SUPPLIER 
 06-05-2022,Adults,MNS Care Plc_a,Nursing Homes - Private Contractors Payment,2528.00,0.00,COMMERCIAL SUPPLIER 
 06-05-2022,Adults,Havering Care Homes Ltd t/a Upminster Nursing Home,Nursing Homes - Private Contractors Payment,2528.00,0.00,COMMERCIAL SUPPLIER 
 06-05-2022,Adults,Havering Care Homes Ltd t/a Upminster Nursing Home,Nursing Homes - Private Contractors Payment,2528.00,0.00,COMMERCIAL SUPPLIER 
 06-05-2022,Adults,Havering Care Homes Ltd t/a Upminster Nursing Home,Nursing Homes - Private Contractors Payment,2528.00,0.00,COMMERCIAL SUPPLIER 
 06-05-2022,Adults,Havering Care Homes Ltd t/a Upminster Nursing Home,Nursing Homes - Private Contractors Payment,2528.00,0.00,COMMERCIAL SUPPLIER 
 06-05-2022,Adults,Lukka Care Homes Ltd - Ravenscourt,Nursing Homes - Private Contractors Payment,2528.00,0.00,COMMERCIAL SUPPLIER 
 06-05-2022,Adults,HC-One Oval Ltd - The Hornchurch Nursing Centre,Nursing Homes - Private Contractors Payment,2528.00,0.00,COMMERCIAL SUPPLIER 
 06-05-2022,Adults,HC-One Oval Ltd - The Hornchurch Nursing Centre,Nursing Homes - Private Contractors Payment,2528.00,0.00,COMMERCIAL SUPPLIER 
 06-05-2022,Adults,HC-One Oval Ltd - The Hornchurch Nursing Centre,Nursing Homes - Private Contractors Payment,2528.00,0.00,COMMERCIAL SUPPLIER 
 06-05-2022,Adults,HC-One Oval Ltd - The Hornchurch Nursing Centre,Nursing Homes - Private Contractors Payment,2528.00,0.00,COMMERCIAL SUPPLIER 
 06-05-2022,Adults,Beechcourt Care Centre - Bondcare,Nursing Homes - Private Contractors Payment,2528.00,0.00,COMMERCIAL SUPPLIER 
 06-05-2022,Adults,Beechcourt Care Centre - Bondcare,Nursing Homes - Private Contractors Payment,2528.00,0.00,COMMERCIAL SUPPLIER 
 06-05-2022,Adults,Beechcourt Care Centre - Bondcare,Nursing Homes - Private Contractors Payment,2528.00,0.00,COMMERCIAL SUPPLIER 
 06-05-2022,Adults,Beechcourt Care Centre - Bondcare,Nursing Homes - Private Contractors Payment,2528.00,0.00,COMMERCIAL SUPPLIER 
 06-05-2022,Adults,Beechcourt Care Centre - Bondcare,Nursing Homes - Private Contractors Payment,2528.00,0.00,COMMERCIAL SUPPLIER 
 06-05-2022,Adults,Beechcourt Care Centre - Bondcare,Nursing Homes - Private Contractors Payment,2528.00,0.00,COMMERCIAL SUPPLIER 
 06-05-2022,Adults,Beechcourt Care Centre - Bondcare,Nursing Homes - Private Contractors Payment,2528.00,0.00,COMMERCIAL SUPPLIER 
 06-05-2022,Adults,Beechcourt Care Centre - Bondcare,Nursing Homes - Private Contractors Payment,2528.00,0.00,COMMERCIAL SUPPLIER 
 06-05-2022,Adults,Alexander Court Care Centre - Bondcare,Nursing Homes - Private Contractors Payment,2528.00,0.00,COMMERCIAL SUPPLIER 
 06-05-2022,Adults,Alexander Court Care Centre - Bondcare,Nursing Homes - Private Contractors Payment,2528.00,0.00,COMMERCIAL SUPPLIER 
 06-05-2022,Adults,Alexander Court Care Centre - Bondcare,Nursing Homes - Private Contractors Payment,2528.00,0.00,COMMERCIAL SUPPLIER 
 06-05-2022,Adults,Ladyville Lodge_a,Nursing Homes - Private Contractors Payment,2528.00,0.00,COMMERCIAL SUPPLIER 
 06-05-2022,Adults,Ladyville Lodge_a,Nursing Homes - Private Contractors Payment,2528.00,0.00,COMMERCIAL SUPPLIER 
 06-05-2022,Adults,Barleycroft Care Home Ltd,Nursing Homes - Private Contractors Payment,2528.00,0.00,COMMERCIAL SUPPLIER 
 06-05-2022,Adults,Ranc Care Homes Ltd - Romford Care Centre,Nursing Homes - Private Contractors Payment,2528.00,0.00,COMMERCIAL SUPPLIER 
 31-05-2022,Adults,Havering Care Homes Ltd t/a Abbscross Nursing Home,Nursing Homes - Private Contractors Payment,2528.00,0.00,COMMERCIAL SUPPLIER 
 31-05-2022,Adults,Havering Care Homes Ltd t/a Abbscross Nursing Home,Nursing Homes - Private Contractors Payment,2528.00,0.00,COMMERCIAL SUPPLIER 
 31-05-2022,Adults,Havering Care Homes Ltd t/a Abbscross Nursing Home,Nursing Homes - Private Contractors Payment,2528.00,0.00,COMMERCIAL SUPPLIER 
 31-05-2022,Adults,Havering Care Homes Ltd t/a Abbscross Nursing Home,Nursing Homes - Private Contractors Payment,2528.00,0.00,COMMERCIAL SUPPLIER 
 31-05-2022,Adults,One Tree Estates Ltd t/a Ashbrook Nursing Home,Nursing Homes - Private Contractors Payment,2528.00,0.00,COMMERCIAL SUPPLIER 
 31-05-2022,Adults,MNS Care Plc_a,Nursing Homes - Private Contractors Payment,2528.00,0.00,COMMERCIAL SUPPLIER 
 31-05-2022,Adults,Lukka Care Homes Ltd - Ravenscourt,Nursing Homes - Private Contractors Payment,2528.00,0.00,COMMERCIAL SUPPLIER 
 31-05-2022,Adults,HC-One Oval Ltd - The Hornchurch Nursing Centre,Nursing Homes - Private Contractors Payment,2528.00,0.00,COMMERCIAL SUPPLIER 
 31-05-2022,Adults,HC-One Oval Ltd - The Hornchurch Nursing Centre,Nursing Homes - Private Contractors Payment,2528.00,0.00,COMMERCIAL SUPPLIER 
 31-05-2022,Adults,HC-One Oval Ltd - The Hornchurch Nursing Centre,Nursing Homes - Private Contractors Payment,2528.00,0.00,COMMERCIAL SUPPLIER 
 31-05-2022,Adults,HC-One Oval Ltd - The Hornchurch Nursing Centre,Nursing Homes - Private Contractors Payment,2528.00,0.00,COMMERCIAL SUPPLIER 
 31-05-2022,Adults,Beechcourt Care Centre - Bondcare,Nursing Homes - Private Contractors Payment,2528.00,0.00,COMMERCIAL SUPPLIER 
 31-05-2022,Adults,Beechcourt Care Centre - Bondcare,Nursing Homes - Private Contractors Payment,2528.00,0.00,COMMERCIAL SUPPLIER 
 31-05-2022,Adults,Beechcourt Care Centre - Bondcare,Nursing Homes - Private Contractors Payment,2528.00,0.00,COMMERCIAL SUPPLIER 
 31-05-2022,Adults,Beechcourt Care Centre - Bondcare,Nursing Homes - Private Contractors Payment,2528.00,0.00,COMMERCIAL SUPPLIER 
 31-05-2022,Adults,Beechcourt Care Centre - Bondcare,Nursing Homes - Private Contractors Payment,2528.00,0.00,COMMERCIAL SUPPLIER 
 31-05-2022,Adults,Beechcourt Care Centre - Bondcare,Nursing Homes - Private Contractors Payment,2528.00,0.00,COMMERCIAL SUPPLIER 
 31-05-2022,Adults,Beechcourt Care Centre - Bondcare,Nursing Homes - Private Contractors Payment,2528.00,0.00,COMMERCIAL SUPPLIER 
 31-05-2022,Adults,Beechcourt Care Centre - Bondcare,Nursing Homes - Private Contractors Payment,2528.00,0.00,COMMERCIAL SUPPLIER 
 31-05-2022,Adults,Alexander Court Care Centre - Bondcare,Nursing Homes - Private Contractors Payment,2528.00,0.00,COMMERCIAL SUPPLIER 
 31-05-2022,Adults,Ladyville Lodge_a,Nursing Homes - Private Contractors Payment,2528.00,0.00,COMMERCIAL SUPPLIER 
 31-05-2022,Adults,Ladyville Lodge_a,Nursing Homes - Private Contractors Payment,2528.00,0.00,COMMERCIAL SUPPLIER 
 31-05-2022,Adults,Ranc Care Homes Ltd - Romford Care Centre,Nursing Homes - Private Contractors Payment,2528.00,0.00,COMMERCIAL SUPPLIER 
 31-05-2022,Adults,Highfield Care Homes Ltd t/a Romford Grange Care Home,Nursing Homes - Private Contractors Payment,2528.00,0.00,COMMERCIAL SUPPLIER 
 31-05-2022,Adults,Highfield Care Homes Ltd t/a Romford Grange Care Home,Nursing Homes - Private Contractors Payment,2528.00,0.00,COMMERCIAL SUPPLIER 
 31-05-2022,Adults,Highfield Care Homes Ltd t/a Romford Grange Care Home,Nursing Homes - Private Contractors Payment,2528.00,0.00,COMMERCIAL SUPPLIER 
 31-05-2022,Adults,Havering Care Homes Ltd t/a Upminster Nursing Home,Nursing Homes - Private Contractors Payment,2528.00,0.00,COMMERCIAL SUPPLIER 
 31-05-2022,Adults,Havering Care Homes Ltd t/a Upminster Nursing Home,Nursing Homes - Private Contractors Payment,2528.00,0.00,COMMERCIAL SUPPLIER 
 31-05-2022,Adults,Havering Care Homes Ltd t/a Upminster Nursing Home,Nursing Homes - Private Contractors Payment,2528.00,0.00,COMMERCIAL SUPPLIER 
 31-05-2022,Adults,Havering Care Homes Ltd t/a Upminster Nursing Home,Nursing Homes - Private Contractors Payment,2528.00,0.00,COMMERCIAL SUPPLIER 
 31-05-2022,Adults,Barleycroft Care Home Ltd,Nursing Homes - Private Contractors Payment,2528.00,0.00,COMMERCIAL SUPPLIER 
 31-05-2022,Adults,Barleycroft Care Home Ltd,Nursing Homes - Private Contractors Payment,2528.00,0.00,COMMERCIAL SUPPLIER 
 06-05-2022,Adults,Highfield Care Homes Ltd t/a Romford Grange Care Home,Residential Placements - Private Contractors Payment,2530.96,0.00,COMMERCIAL SUPPLIER 
 31-05-2022,Adults,Highfield Care Homes Ltd t/a Romford Grange Care Home,Residential Placements - Private Contractors Payment,2530.96,0.00,COMMERCIAL SUPPLIER 
 06-05-2022,Adults,Runwood Homes - Windle Court,Residential Placements - Private Contractors Payment,2542.04,0.00,COMMERCIAL SUPPLIER 
 31-05-2022,Adults,Runwood Homes - Windle Court,Residential Placements - Private Contractors Payment,2542.04,0.00,COMMERCIAL SUPPLIER 
 06-05-2022,Adults,St Giles Homes Ltd T/A Forest Home,Residential Placements - Private Contractors Payment,2544.84,0.00,COMMERCIAL SUPPLIER 
 31-05-2022,Adults,St Giles Homes Ltd T/A Forest Home,Residential Placements - Private Contractors Payment,2544.84,0.00,COMMERCIAL SUPPLIER 
 04-05-2022,Adults,Matrix SCM Ltd,Agency Staff,2546.80,0.00,COMMERCIAL SUPPLIER 
